{"text_format":"1","workbook":"xlsx","n_sheets":8,"sheets":["INVOICE","Customers","Articles","About me","Language","Language table","Data","Parametre"],"not_rendered":{"charts":0,"images":0,"macros":1,"external_links":0,"defined_names":2,"comments":0,"pivot_tables":0},"unopened":[],"bounds":{"document_bytes":16777216,"sheet_cells":100000,"rows_first":2000,"rows_last":500,"rows_between":2000,"halvings":0,"cell_chars":16384,"cell_head_chars":4096},"cells_cut":0,"cells_raw":0,"read":"whole","date_system":"1900"}

{"sheet":"INVOICE","index":0,"n_rows":49,"n_cols":34,"rows_kept":49,"cut":false,"hidden":false,"merged":[[23,17,23,19],[20,17,20,19],[21,17,21,19],[22,17,22,19],[6,23,6,25],[10,23,10,25],[11,23,11,25],[12,23,12,25],[13,23,13,25],[24,20,24,22],[25,20,25,22],[26,20,26,22],[1,20,1,25],[0,22,0,25],[2,22,2,25],[3,22,3,25],[5,24,5,25],[9,23,9,25],[8,23,8,25],[7,23,7,25],[27,20,27,22],[28,20,28,22],[19,20,19,22],[20,20,20,22],[21,20,21,22],[10,20,10,22],[11,17,11,19],[26,23,26,25],[39,23,39,25],[27,17,27,19],[28,17,28,19],[29,17,29,19],[36,23,36,25],[28,23,28,25],[24,23,24,25],[19,23,19,25],[14,23,14,25],[25,17,25,19],[26,17,26,19],[22,20,22,22],[23,20,23,22],[18,17,18,19],[19,17,19,19],[24,17,24,19],[40,23,40,25],[11,20,11,22],[12,20,12,22],[13,20,13,22],[14,20,14,22],[15,20,15,22],[16,20,16,22],[17,20,17,22],[18,20,18,22],[29,23,29,25],[15,23,15,25],[16,23,16,25],[17,23,17,25],[18,23,18,25],[20,23,20,25],[21,23,21,25],[22,23,22,25],[23,23,23,25],[25,23,25,25],[29,20,29,22],[30,20,30,22],[38,23,38,25],[27,23,27,25],[34,23,34,25],[29,15,29,16],[30,15,30,16],[10,17,10,19],[10,15,10,16],[11,15,11,16],[12,15,12,16],[13,15,13,16],[14,15,14,16],[15,15,15,16],[16,15,16,16],[17,15,17,16],[12,17,12,19],[13,17,13,19],[14,17,14,19],[15,17,15,19],[16,17,16,19],[17,17,17,19],[22,15,22,16],[23,15,23,16],[24,15,24,16],[25,15,25,16],[26,15,26,16],[18,15,18,16],[19,15,19,16],[20,15,20,16],[21,15,21,16],[28,12,28,14],[29,12,29,14],[30,12,30,14],[10,12,10,14],[12,12,12,14],[13,12,13,14],[14,12,14,14],[15,12,15,14],[27,12,27,14],[11,12,11,14],[16,12,16,14],[17,12,17,14],[18,12,18,14],[19,12,19,14],[20,12,20,14],[21,12,21,14],[22,12,22,14],[23,12,23,14],[27,15,27,16],[28,15,28,16],[24,12,24,14],[25,12,25,14],[10,10,10,11],[11,10,11,11],[12,10,12,11],[13,10,13,11],[14,10,14,11],[15,10,15,11],[16,10,16,11],[17,10,17,11],[18,10,18,11],[26,12,26,14],[19,10,19,11],[20,10,20,11],[21,10,21,11],[11,8,11,9],[12,8,12,9],[13,8,13,9],[14,8,14,9],[15,8,15,9],[16,8,16,9],[17,8,17,9],[18,8,18,9],[19,8,19,9],[23,8,23,9],[24,8,24,9],[25,8,25,9],[26,8,26,9],[20,8,20,9],[21,8,21,9],[22,8,22,9],[22,10,22,11],[23,10,23,11],[24,10,24,11],[25,10,25,11],[26,10,26,11],[27,1,27,7],[28,1,28,7],[29,1,29,7],[28,8,28,9],[29,8,29,9],[29,10,29,11],[27,8,27,9],[28,10,28,11],[27,10,27,11],[10,1,10,7],[11,1,11,7],[12,1,12,7],[13,1,13,7],[14,1,14,7],[15,1,15,7],[16,1,16,7],[17,1,17,7],[18,1,18,7],[19,1,19,7],[20,1,20,7],[21,1,21,7],[48,19,48,24],[39,17,39,19],[31,1,31,7],[31,8,31,9],[31,10,31,11],[31,12,31,14],[31,15,31,16],[31,17,31,19],[31,20,31,22],[31,23,31,25],[32,1,32,7],[32,8,32,9],[32,10,32,11],[32,12,32,14],[37,23,37,25],[46,3,46,8],[45,3,45,8],[37,1,37,7],[37,8,37,9],[38,1,38,7],[38,8,38,9],[33,1,33,7],[33,8,33,9],[37,10,37,11],[5,0,5,5],[6,0,6,5],[7,0,7,5],[8,0,8,5],[34,17,34,19],[34,20,34,22],[36,1,36,7],[36,8,36,9],[36,10,36,11],[36,12,36,14],[36,15,36,16],[36,17,36,19],[36,20,36,22],[34,1,34,7],[34,8,34,9],[30,1,30,7],[22,1,22,7],[23,1,23,7],[24,1,24,7],[25,1,25,7],[26,1,26,7],[37,12,37,14],[37,15,37,16],[37,17,37,19],[38,10,38,11],[38,12,38,14],[40,21,40,22],[37,20,37,22],[38,15,38,16],[38,17,38,19],[47,3,47,8],[38,20,38,22],[39,20,39,22],[40,17,40,19],[40,14,40,16],[39,14,39,16],[39,11,39,13],[40,11,40,13],[40,7,40,10],[39,7,39,10],[44,9,44,12],[35,1,35,7],[35,8,35,9],[35,10,35,11],[35,12,35,14],[35,15,35,16],[35,17,35,19],[35,20,35,22],[35,23,35,25],[34,10,34,11],[34,12,34,14],[34,15,34,16],[30,8,30,9],[32,15,32,16],[32,17,32,19],[32,20,32,22],[32,23,32,25],[33,10,33,11],[33,12,33,14],[33,15,33,16],[33,17,33,19],[33,20,33,22],[33,23,33,25],[30,17,30,19],[30,23,30,25],[30,10,30,11]]}
[{"$f":"'About me'!B1","v":"ExcelGuru.no"},null,null,null,null,null,null,null,null,null,null,null,null,null,null,null,null,null,{"$f":"txt(5,_InvLng)","v":"VAT nie"},null,null,null,{"$f":" 'About me'!$B$2","v":"123456789 MVA"},null,null,null,null,null,null,null,null,null,"*vat*"]
[{"$f":"'About me'!B5","v":"MyRoad 12"},null,null,null,null,null,null,null,null,null,null,null,null,null,null,null,null,null,null,null,{"$f":"'About me'!B3","v":"Foretaksregisteret"}]
[{"$f":"'About me'!B6 & \" \" & 'About me'!B7","v":"1781 Halden"},null,null,null,null,null,{"$f":"IF(G4<>\"\",txt(4,_InvLng),\"\")","v":"Nazwa Kontaktu"},null,null,null,null,null,null,null,null,null,null,null,{"$f":"txt(6,_InvLng)","v":"Komórka"},null,null,null,{"$f":"'About me'!B8","v":4799887766}]
[{"$f":"'About me'!B9","v":"ketil@excelguru.com"},null,null,null,null,null,{"$f":"'About me'!B4","v":"Ketil"},null,null,null,null,null,null,null,null,null,null,null,{"$f":"txt(7,_InvLng)","v":"konto bankowe"},null,null,null,{"$f":"'About me'!B10","v":"1234.55.67891"}]
[null,null,null,null,null,null,null,null,null,null,null,null,null,null,null,null,null,null,{"$f":"IF(X41>=0,txt(2,_InvLng),txt(3,_InvLng))","v":"FAKTURA"}]
["Polish handyman",null,null,null,null,null,null,0,null,null,null,null,null,null,null,null,null,null,{"$f":"txt(8,_InvLng)","v":"Numer klienta"},null,null,null,null,null,{"$f":"INDEX(Customers!A:A,MATCH(A6,Customers!B:B,))","v":1005}]
[{"$f":"IFERROR(VLOOKUP($Y$6,Customers!$A:$H,3,FALSE),\"\")","v":0},null,null,null,null,null,null,null,null,null,null,null,null,null,null,null,null,null,{"$f":"IF(X41>=0,txt(9,_InvLng),txt(10,_InvLng))","v":"Faktury nr"},null,null,null,null,{"$f":"Parametre!B1","v":1021}]
[{"$f":"IFERROR(TEXT(VLOOKUP($Y$6,Customers!$A:$H,5,FALSE),\"0000\")& \" \" & VLOOKUP($Y$6,Customers!$A:$H,6,FALSE),\"\")","v":"0000 "},null,null,null,null,null,{"$f":"txt(4,_InvLng)","v":"Nazwa Kontaktu"},null,null,null,null,null,null,null,null,null,null,null,{"$f":"txt(11,_InvLng)","v":"Data faktury"},null,null,null,null,{"$f":"TODAY()","v":"2021-09-07"}]
[{"$f":"IFERROR(VLOOKUP($Y$6,Customers!$A:$H,8,FALSE),\"\")","v":0},null,null,null,null,null,{"$f":"IFERROR(VLOOKUP($Y$6,Customers!$A:$J,7,FALSE),\"\")","v":0},null,null,null,null,null,null,null,null,null,null,null,{"$f":"txt(12,_InvLng)","v":"Termin płatności"},null,null,null,null,{"$f":"IFERROR(X8+VLOOKUP(Y6,Customers!A:I,9,FALSE),X8+14)","v":"2021-09-21"}]
[null,null,null,null,null,null,null,null,null,null,null,null,null,null,null,null,null,null,{"$f":"txt(64,_InvLng)","v":"Waluta"},null,null,null,null,{"$f":"IF(AND(Parametre!B22=TRUE,_xlfn.XLOOKUP($Y$6,Customers!$A:$A,Customers!$L:$L)<>\"\"),_xlfn.XLOOKUP($Y$6,Customers!$A:$A,Customers!$L:$L),'About me'!B11)","v":"EUR"}]
[{"$f":"txt(13,_InvLng)","v":"Artykuł"},{"$f":"txt(14,_InvLng)","v":"Opis"},null,null,null,null,null,null,{"$f":"txt(15,_InvLng)","v":"Ilość"},null,{"$f":"txt(16,_InvLng)","v":"Jednostka"},null,{"$f":"txt(17,_InvLng)","v":"Cena £"},null,null,{"$f":"txt(18,_InvLng)","v":"Zniżka"},null,{"$f":"txt(19,_InvLng)","v":"Ilość"},null,null,{"$f":"txt(20,_InvLng)","v":"faktura VAT"},null,null,{"$f":"txt(21,_InvLng)","v":"Łączna kwota"}]
[101,"terapia",null,null,null,null,null,null,4,null,"godzina",null,8,null,null,null,null,{"$f":"IFERROR((M12*I12)-AH12,\"\")","v":32},null,null,{"$f":"IFERROR(AG12*R12%,\"\")","v":0},null,null,{"$f":"IFERROR(IF(U12<>\"\",R12+U12,R12),\"\")","v":32},null,null,null,null,null,null,null,null,null,{"$f":"IFERROR(I12*M12*P12%,0)","v":0}]
[100,"Coaching",null,null,null,null,null,null,6,null,"godzin",null,10,null,null,null,null,{"$f":"IFERROR((M13*I13)-AH13,\"\")","v":60},null,null,0,null,null,{"$f":"IFERROR(IF(U13<>\"\",R13+U13,R13),\"\")","v":60},null,null,null,null,null,null,null,null,null,{"$f":"IFERROR(I13*M13*P13%,0)","v":0}]
[102,"programowanie",null,null,null,null,null,null,55,null,"godzin",null,10,null,null,null,null,{"$f":"IFERROR((M14*I14)-AH14,\"\")","v":550},null,null,137.5,null,null,{"$f":"IFERROR(IF(U14<>\"\",R14+U14,R14),\"\")","v":687.5},null,null,null,null,null,null,null,null,25,0]
[null,null,null,null,null,null,null,null,null,null,null,null,null,null,null,null,null,0,null,null,0,null,null,0,null,null,null,null,null,null,null,null,null,0]
[null,null,null,null,null,null,null,null,null,null,null,null,null,null,null,null,null,0,null,null,0,null,null,0,null,null,null,null,null,null,null,null,null,0]
[null,null,null,null,null,null,null,null,null,null,null,null,null,null,null,null,null,0,null,null,0,null,null,0,null,null,null,null,null,null,null,null,null,0]
[null,null,null,null,null,null,null,null,null,null,null,null,null,null,null,null,null,0,null,null,0,null,null,0,null,null,null,null,null,null,null,null,null,0]
[null,null,null,null,null,null,null,null,null,null,null,null,null,null,null,null,null,0,null,null,{"$f":"IFERROR(AG19*R19%,\"\")","v":0},null,null,0,null,null,null,null,null,null,null,null,null,0]
[null,null,null,null,null,null,null,null,null,null,null,null,null,null,null,null,null,0,null,null,0,null,null,0,null,null,null,null,null,null,null,null,null,0]
[null,null,null,null,null,null,null,null,null,null,null,null,null,null,null,null,null,0,null,null,0,null,null,0,null,null,null,null,null,null,null,null,null,0]
[null,null,null,null,null,null,null,null,null,null,null,null,null,null,null,null,null,0,null,null,0,null,null,0,null,null,null,null,null,null,null,null,null,0]
[null,null,null,null,null,null,null,null,null,null,null,null,null,null,null,null,null,0,null,null,0,null,null,0,null,null,null,null,null,null,null,null,null,0]
[null,null,null,null,null,null,null,null,null,null,null,null,null,null,null,null,null,0,null,null,0,null,null,{"$f":"IFERROR(IF(U24<>\"\",R24+U24,R24),\"\")","v":0},null,null,null,null,null,null,null,null,null,0]
[null,null,null,null,null,null,null,null,null,null,null,null,null,null,null,null,null,0,null,null,0,null,null,0,null,null,null,null,null,null,null,null,null,0]
[null,null,null,null,null,null,null,null,null,null,null,null,null,null,null,null,null,0,null,null,0,null,null,0,null,null,null,null,null,null,null,null,null,0]
[null,null,null,null,null,null,null,null,null,null,null,null,null,null,null,null,null,0,null,null,0,null,null,0,null,null,null,null,null,null,null,null,null,0]
[null,null,null,null,null,null,null,null,null,null,null,null,null,null,null,null,null,0,null,null,{"$f":"IFERROR(AG28*R28%,\"\")","v":0},null,null,0,null,null,null,null,null,null,null,null,null,0]
[null,null,null,null,null,null,null,null,null,null,null,null,null,null,null,null,null,0,null,null,0,null,null,0,null,null,null,null,null,null,null,null,null,0]
[null,null,null,null,null,null,null,null,null,null,null,null,null,null,null,null,null,0,null,null,0,null,null,0,null,null,null,null,null,null,null,null,null,0]
[null,null,null,null,null,null,null,null,null,null,null,null,null,null,null,null,null,0,null,null,0,null,null,0,null,null,null,null,null,null,null,null,null,0]
[null,null,null,null,null,null,null,null,null,null,null,null,null,null,null,null,null,0,null,null,0,null,null,0,null,null,null,null,null,null,null,null,null,0]
[null,null,null,null,null,null,null,null,null,null,null,null,null,null,null,null,null,0,null,null,0,null,null,0,null,null,null,null,null,null,null,null,null,0]
[null,null,null,null,null,null,null,null,null,null,null,null,null,null,null,null,null,0,null,null,0,null,null,0,null,null,null,null,null,null,null,null,null,0]
[null,null,null,null,null,null,null,null,null,null,null,null,null,null,null,null,null,0,null,null,0,null,null,0,null,null,null,null,null,null,null,null,null,0]
[null,null,null,null,null,null,null,null,null,null,null,null,null,null,null,null,null,{"$f":"IFERROR((M36*I36)-AH36,\"\")","v":0},null,null,{"$f":"IFERROR(AG36*R36%,\"\")","v":0},null,null,{"$f":"IFERROR(IF(U36<>\"\",R36+U36,R36),\"\")","v":0},null,null,null,null,null,null,null,null,null,{"$f":"IFERROR(I36*M36*P36%,0)","v":0}]
[null,null,null,null,null,null,null,null,null,null,null,null,null,null,null,null,null,0,null,null,0,null,null,0,null,null,null,null,null,null,null,null,null,0]
[null,null,null,null,null,null,null,null,null,null,null,null,null,null,null,null,null,0,null,null,0,null,null,0,null,null,null,null,null,null,null,null,null,0]
[null,null,null,null,null,null,null,null,null,null,null,null,null,null,null,null,null,0,null,null,0,null,null,0,null,null,null,null,null,null,null,null,null,0]
[null,null,null,null,null,null,null,{"$f":"txt(22,_InvLng)","v":"Netto"},null,null,null,{"$f":"txt(24,_InvLng)","v":"Podstawa VAT"},null,null,{"$f":"txt(18,_InvLng)","v":"Zniżka"},null,null,{"$f":"txt(20,_InvLng)","v":"faktura VAT"},null,null,{"$f":"txt(25,_InvLng)","v":"Zaokrąglanie"},null,null,{"$f":"txt(26,_InvLng)","v":"Łączna kwota"}]
[null,null,null,null,null,null,null,{"$f":"SUM(R12:T39)","v":642},null,null,null,{"$f":"SUMIFS(R12:T39,U12:W39,\"<>0\")","v":550},null,null,{"$f":"SUM(AH12:AH39)","v":0},null,null,{"$f":"SUM(U12:W39)","v":137.5},null,null,null,{"$f":"(H41+R41)-INT(H41+R41)","v":0.5},null,{"$f":"IF(V41>=0.5,INT(H41+R41)+1,INT(H41+R41))","v":780}]
[]
[{"$f":"IF(txt(67,_InvLng)=\"\",'About me'!B15,txt(67,_InvLng))","v":"Jeśli nie zapłacisz w odpowiednim czasie, będziemy Cię łaskotać. Poważnie!"}]
[]
[{"$f":"txt(23,_InvLng)","v":"Informacje o płatności"},null,null,null,null,null,null,null,null,{"$f":"txt(66,_InvLng)","v":"Firma"},null,null,null,{"$f":"A1","v":"ExcelGuru.no"}]
[{"$f":"IF(X41>0,txt(9,_InvLng),txt(10,_InvLng))","v":"Faktury nr"},null,null,{"$f":"X7","v":1021},null,null,null,null,null,{"$f":"txt(7,_InvLng)","v":"konto bankowe"},null,null,null,{"$f":"W4","v":"1234.55.67891"}]
[{"$f":"txt(11,_InvLng)","v":"Data faktury"},null,null,{"$f":"X8","v":"2021-09-07"},null,null,null,null,null,{"$f":"txt(84,_InvLng)","v":"Bank"},null,null,null,{"$f":"'About me'!B12","v":"Melhusbanken"}]
[{"$f":"txt(12,_InvLng)","v":"Termin płatności"},null,null,{"$f":"X9","v":"2021-09-21"},null,null,null,null,null,{"$f":"IF(N48<>\"\",txt(85,_InvLng),\"\")","v":"Numer IBAN"},null,null,null,{"$f":"'About me'!B13","v":"NO0000000000000"}]
[null,null,null,null,null,null,null,null,null,{"$f":"IF(N49<>\"\",txt(86,_InvLng),\"\")","v":"Kod SWIFT"},null,null,null,{"$f":"'About me'!B14","v":"MEB00000000"},null,null,null,null,null,"excelguru.no"]

{"sheet":"Customers","index":1,"n_rows":10,"n_cols":13,"rows_kept":10,"cut":false,"hidden":false,"merged":[]}
[{"$f":"txt(38,_Lng)","v":"Customer no"},{"$f":"txt(39,_Lng)","v":"Address 1"},{"$f":"txt(40,_Lng)","v":"Address 2"},{"$f":"txt(42,_Lng)","v":"Post no"},{"$f":"txt(43,_Lng)","v":"Place"},{"$f":"txt(69,_Lng)","v":"Country"},{"$f":"txt(44,_Lng)","v":"Contact person"},{"$f":"txt(45,_Lng)","v":"Email"},{"$f":"txt(46,_Lng)","v":"Due days"},{"$f":"txt(47,_Lng)","v":"Discount"},{"$f":"txt(68,_Lng)","v":"Language"},{"$f":"txt(64,_Lng)","v":"Currency"},{"$f":"txt(87,_Lng)","v":"Inactive"}]
[1001,"Excelguru","Ringveien 12",101,"Halden",null,"Bjarne","ketil@junkmail.com",14,0,"Norwegian","NOK"]
[1002,"Ola Nordmann","Kariveien 12",1890,"Tistedal",null,"Kurt","kurt@tullemail.no",14,0,"Norwegian","NOK"]
[1003,"Andersen  AS",null,1781,"Halden",null,"Ole","ole@tullemail.no",14,0,"Norwegian","NOK"]
[1004,"Bobby Englishman","Somewhere street",12345,"London","UK","Bill","bob@funnyaddress.com",14,5,"English","EUR"]
[1005,"Polish handyman",null,null,null,null,null,null,14,null,"Polish","EUR"]
[1006,"Svensken",null,null,null,null,null,null,14,null,"Swedish","SEK"]
[1007,"Mr. Russian",null,null,null,null,null,null,14,null,"Russian","RUB"]
[1008,"Gert German","Meine Straße 7",12345,"Berlin","Germany","Gert","gert@funnyaddress.com",14,null,"German","EUR"]
[1009,"The Punjabi programmer",null,null,null,null,null,null,14,null,"Punjabi","INR"]

{"sheet":"Articles","index":2,"n_rows":6,"n_cols":46,"rows_kept":6,"cut":false,"hidden":false,"merged":[[0,42,0,45],[0,26,0,29],[0,30,0,33],[0,34,0,37],[0,38,0,41],[0,22,0,25],[0,0,0,5],[0,6,0,9],[0,10,0,13],[0,14,0,17],[0,18,0,21]]}
[{"$f":"INDIRECT(\"Parametre!E25\")","v":"English"},null,null,null,null,null,{"$f":"INDEX(Parametre!$E:$E,MATCH(A1,Parametre!$E$1:$E$41,0)+1)","v":"Norwegian"},null,null,null,{"$f":"INDEX(Parametre!$E:$E,MATCH(G1,Parametre!$E$1:$E$41,0)+1)","v":"Swedish"},null,null,null,{"$f":"INDEX(Parametre!$E:$E,MATCH(K1,Parametre!$E$1:$E$41,0)+1)","v":"Danish"},null,null,null,{"$f":"INDEX(Parametre!$E:$E,MATCH(O1,Parametre!$E$1:$E$41,0)+1)","v":"Finnish"},null,null,null,{"$f":"INDEX(Parametre!$E:$E,MATCH(S1,Parametre!$E$1:$E$41,0)+1)","v":"German"},null,null,null,{"$f":"INDEX(Parametre!$E:$E,MATCH(W1,Parametre!$E$1:$E$41,0)+1)","v":"Polish"},null,null,null,{"$f":"INDEX(Parametre!$E:$E,MATCH(AA1,Parametre!$E$1:$E$41,0)+1)","v":"Latvian"},null,null,null,{"$f":"INDEX(Parametre!$E:$E,MATCH(AE1,Parametre!$E$1:$E$41,0)+1)","v":"Lithuanian"},null,null,null,{"$f":"INDEX(Parametre!$E:$E,MATCH(AI1,Parametre!$E$1:$E$41,0)+1)","v":"Russian"},null,null,null,{"$f":"INDEX(Parametre!$E:$E,MATCH(AM1,Parametre!$E$1:$E$41,0)+1)","v":"Punjabi"}]
[{"$f":"txt(48,_Lng)","v":"Article no"},{"$f":"txt(49,_Lng)","v":"Description"},{"$f":"txt(50,_Lng)","v":"Unit"},{"$f":"txt(51,_Lng)","v":"Price"},{"$f":"txt(52,_Lng)","v":"VAT %"},{"$f":"txt(53,_Lng)","v":"Article discount"},{"$f":"txt(49,_Lng)","v":"Description"},{"$f":"txt(50,_Lng)","v":"Unit"},{"$f":"txt(51,_Lng)","v":"Price"},{"$f":"txt(52,_Lng)","v":"VAT %"},{"$f":"txt(49,_Lng)","v":"Description"},{"$f":"txt(50,_Lng)","v":"Unit"},{"$f":"txt(51,_Lng)","v":"Price"},{"$f":"txt(52,_Lng)","v":"VAT %"},{"$f":"txt(49,_Lng)","v":"Description"},{"$f":"txt(50,_Lng)","v":"Unit"},{"$f":"txt(51,_Lng)","v":"Price"},{"$f":"txt(52,_Lng)","v":"VAT %"},{"$f":"txt(49,_Lng)","v":"Description"},{"$f":"txt(50,_Lng)","v":"Unit"},{"$f":"txt(51,_Lng)","v":"Price"},{"$f":"txt(52,_Lng)","v":"VAT %"},{"$f":"txt(49,_Lng)","v":"Description"},{"$f":"txt(50,_Lng)","v":"Unit"},{"$f":"txt(51,_Lng)","v":"Price"},{"$f":"txt(52,_Lng)","v":"VAT %"},{"$f":"txt(49,_Lng)","v":"Description"},{"$f":"txt(50,_Lng)","v":"Unit"},{"$f":"txt(51,_Lng)","v":"Price"},{"$f":"txt(52,_Lng)","v":"VAT %"},{"$f":"txt(49,_Lng)","v":"Description"},{"$f":"txt(50,_Lng)","v":"Unit"},{"$f":"txt(51,_Lng)","v":"Price"},{"$f":"txt(52,_Lng)","v":"VAT %"},{"$f":"txt(49,_Lng)","v":"Description"},{"$f":"txt(50,_Lng)","v":"Unit"},{"$f":"txt(51,_Lng)","v":"Price"},{"$f":"txt(52,_Lng)","v":"VAT %"},{"$f":"txt(49,_Lng)","v":"Description"},{"$f":"txt(50,_Lng)","v":"Unit"},{"$f":"txt(51,_Lng)","v":"Price"},{"$f":"txt(52,_Lng)","v":"VAT %"},{"$f":"txt(49,_Lng)","v":"Description"},{"$f":"txt(50,_Lng)","v":"Unit"},{"$f":"txt(51,_Lng)","v":"Price"},{"$f":"txt(52,_Lng)","v":"VAT %"}]
[100,"Coaching","Hours",120,25,null,"Coaching","Timer",1200,null,"Coaching","timmar",990,null,null,null,null,null,null,null,null,null,"Coaching","Stunden",110,null,"Coaching","godzin",10,null,null,null,null,null,null,null,null,null,"тренировка","часов",11000,null,"ਕੋਚਿੰਗ","ਘੰਟੇ",11000]
[101,"Therapy","Hours",65,0,null,"Terapi","Time",650,null,"Terapix","timmar",1100,null,null,null,null,null,null,null,null,null,"Therapie","Stunde",65,null,"terapia","godzina",8,null,null,null,null,null,null,null,null,null,"терапия","час",6500,null,"ਥੇਰੇਪੀ","ਘੰਟੇ",6500]
[102,"Programming ","Hours",128,25,null,"Programmering","Timer",1280,25,"Programmering","timmar",1200,null,null,null,null,null,null,null,null,null,"Programmierung","Stunden",130,null,"programowanie","godzin",10,null,null,null,null,null,null,null,null,null,"программирование","часов",13000,null,"ਪ੍ਰੋਗਰਾਮਿੰਗ","ਘੰਟੇ",13000]
[103,"Pastry",null,1,null,null,"Bakevarer","Stk",25,null,null,null,null,null,null,null,null,null,null,null,null,null,"Gebäck",null,1,null,null,null,null,null,null,null,null,null,null,null,null,null,"печенье",null,10]

{"sheet":"About me","index":3,"n_rows":15,"n_cols":2,"rows_kept":15,"cut":false,"hidden":false,"merged":[]}
[{"$f":"txt(53+ROW(),_Lng)","v":"Company name"},"ExcelGuru.no"]
["VAT no","123456789 MVA"]
["Additional company info","Foretaksregisteret"]
["Contact name","Ketil"]
["Address","MyRoad 12"]
["Post no",1781]
["Place","Halden"]
["Cell phone",4799887766]
["Email","ketil@excelguru.com"]
["Account no","1234.55.67891"]
["Currency","NOK"]
[{"$f":"txt(84,_Lng)","v":"Bank"},"Melhusbanken"]
[{"$f":"txt(85,_Lng)","v":"IBAN number"},"NO0000000000000"]
[{"$f":"txt(86,_Lng)","v":"SWIFT code"},"MEB00000000"]
[{"$f":"txt(65,_Lng)","v":"Reminder text"},"If you don't pay in time, we will ticle you. Seriously!"]

{"sheet":"Language","index":4,"n_rows":91,"n_cols":96,"rows_kept":91,"cut":false,"hidden":false,"merged":[]}
["Afrikaans","Albanian","Amharic","Armenian","Azeerbaijani","Basque","Belarusian","Bengali","Bosnian","Bulgarian","Catalan","Cebuano","Chinese (Simplified)","Chinese (Traditional)","Corsican","Croatian","Czech","Danish","Dutch","English","Esperanto","Estonian","Finnish","French","Frisian","Galician","Georgian","German","Greek","Gujarati","Haitian Creole","Hausa","Hawaiian","Hindi","Hmong","Hungarian","Icelandic","Igbo","Indonesian","Irish","Italian","Japanese","Javanese","Kannada","Kazakh","Khmer","Korean","Kyrgyz","Lao","Latin","Latvian","Lithuanian","Luxembourgish","Macedonian","Malagasy","Malay","Malayalam","Maltese","Maori","Marathi","Mongolian","Myanmar (Burmese)","Nepali","Norwegian","Nyanja (Chichewa)","Polish","Portuguese (Portugal, Brazil)","Punjabi","Romanian","Russian","Samoan","Scots Gaelic","Serbian","Sesotho","Shona","Sinhala (Sinhalese)","Slovak","Slovenian","Somali","Spanish","Sundanese","Swahili","Swedish","Tagalog (Filipino)","Tajik","Tamil","Telugu","Thai","Turkish","Ukrainian","Uzbek","Vietnamese","Welsh","Xhosa","Yoruba","Zulu"]
["FAKTUUR","FATURA","INVOICE","INVOICE- ը","FAKTURA","FACTURA","КОШТ","চালান","FAKULTET","ФАКТУРА","FACTURA","INVOICE","INVOICE","INVOICE","INVOICE","DOSTAVNICA","FAKTURA","FAKTURA","FACTUUR","INVOICE","INVOZO","INVOICE","LASKU","FACTURE D'ACHAT","INVOICE","FACTURA","ინვოისი","RECHNUNG","ΤΙΜΟΛΟΓΙΟ","INVOICE","REVIZYON","GASKIYA","INVOICE","चालान","INVOICE","SZÁMLA","FJÁRFESTING","OBI","FAKTUR","INVOICE","FATTURA","請求書","INVOICE","INVOICE","INVOICE","INVOICE","송장","Эсеп-дүмүрчөк","INVOICE","INVOICE","INVOICE","SĄSKAITAS","INVOICE","ФИНАНСИРАЊЕ","faktiora","INVOICE","INVOICE","FATTURA","Tuhinga","INVOICE","INVOICE","ငွေတောင်းခံလွှာ","INVOICE","FAKTURA","INVOICE","FAKTURA","FATURA","INVOICE","FACTURA FISCALA","ВЫСТАВЛЕННЫЙ СЧЕТ","INVOICE","INVOICE","ФАКТУРА","INVOICE","INVOICE","ඉන්ෙවොයිසිය","Invoice","FAKTOR","INVOICE","FACTURA","paktur","INVOICE","FAKTURA","INVOICE","ИНТИХОБОТ","விலைப்பட்டியல்","వాయిస్","ใบแจ้งหนี้","FATURA","ВАРТОСТІ","INVOICE","HÓA ĐƠN","ARCHWILIO","INVOICE","NIPA","I-INVOICE"]
["KREDIET NOTA","SHËNIM KREDIT","የተሸጠ ዕቃ ሲመለስ የሚሰጥ ወረቀት","ՎԱՐԿԱՅԻՆ ԱՎԻԶՈ","KREDİT QEYDİ","KREDITU OHARRA","крэдытавых авізо","ক্রেডিট নোট","KREDITNA NAPOMENA","КРЕДИТНА БЕЛЕЖКА","NOTA DE CRÈDIT","TALANON SA CREDIT","Xìnyòng piàojù","Xìnyòng piàojù","CRITERIA","OBAVIJEST O KREDITU","DOBROPIS","KREDITNOTA","KREDIETNOTA","CREDIT NOTE","Kredito NOTO","KREDIIDILINE MÄRKUS","LUOTTORISUUS","NOTE DE CRÉDIT","CREDIT NOTE","NOTA DE CRÉDITO","საკრედიტო შენიშვნა","GUTSCHRIFT","ΠΙΣΤΩΤΙΚΟ ΣΗΜΕΙΩΜΑ","ઉધાર નોધ","KREDI NOTE","CREDIT NOTE","CREDIT NOTE","क्रेडिट नोट","CREDIT NOTE","JÓVÁÍRÁS","INNEIGNARNÓTU","AKWỤKWỌ AKWỤKWỌ","NOTA KREDIT","NÓTA CREIDMHEASA","NOTA DI CREDITO","クレジットメモ","CATETAN KREDIT","ಕ್ರೆಡಿಟ್ ಸೂಚನೆ","НЕСИЕ ЕСКЕРТПЕ","កំណត់ចំណាំឥណទាន","신용 노트","КРЕДИТ ЭСКЕРТҮҮ","CREDIT NOTE","CREDIT NOTE","KREDĪTA PIEZĪME","KREDITO PASTABA","GUTTSCHRËFT","КРЕДИТНА ЗАБЕЛЕШКА","AOKA IANAO","NOTA KREDIT","ക്രെഡിറ്റ് നോട്ട്","NOTA TA 'KREDITU","CREDIT NOTE","उधार पत्र","ЗАРИМ АСУУЛТ","Credit မှတ်ချက်","CREDIT नोट","Kreditnota","CREDIT NOTE","INFORMACJA KREDYTOWA","NOTA DE CRÉDITO","ਕਰੈਡਿਟ ਸੂਚਨਾ","NOTĂ DE CREDIT","КРЕДИТНАЯ ЗАПИСКА","FUAFUAGA MANATU","FIOSRACHADH CREDIT","КЊИЖНО","CREDIT NOTE","CREDIT NOTE","ණය විස්තරය","KREDITNÁ POZNÁMKA","DOBROPIS","FIIRO GAAR AH","NOTA DE CRÉDITO","kiridit CATETAN","CREDIT NOTE","KREDIT NOTE","TALAAN NG CREDIT","Ҳисоботи кредитӣ","கிரெடிட் குறிப்பு","క్రెడిట్ గమనిక","ใบลดหนี้","KREDİ NOTU","КРЕДИТОВЕ АВІЗО","KREDIT ESLATMA","GHI CHÚ TÍN DỤNG","NODYN CREDYD","ISAZISO SETYALA","AKIYESI OJU","INCWADI YESIKWELETU"]
["Kontak naam","Emri i kontaktit","የዕውቂያ ስም","Կոնտակտ անունը","Əlaqə adı","Harremanetarako Izena","кантактная асоба","যোগাযোগের নাম","Ime kontakta","Име за контакт","Nom de contacte","Pangalan sa kontak","Liánxì rén xìngmíng","Liánxì rén xìngmíng","U nome di cuntattu","Ime kontakta","Kontaktní jméno","Kontakt navn","Contactnaam","Contact name","Kontakto nomo","Kontaktisiku nimi","Yhteyshenkilön nimi","Nom du contact","Kontaktnamme","Nome de contacto","საკონტაქტო სახელი","Kontaktname","Ονομα επαφής","સંપર્ક નામ","Non kontak","Sunan tuntuɓa","Contact name","संपर्क नाम","Contact name","Kapcsolatfelvétel neve","Nafn tengiliðar","Aha aha","Nama Kontak","Ainm an Teagmhálaí","Nome del contatto","連絡先","Jeneng kontak","ಸಂಪರ್ಕಿಸುವ ಹೆಸರು","Байланысу аты","ឈ្មោះ​ទំនាក់ទំនង","담당자 이름","Байланыш аты-жөнү","ຊື່​ຕິດ​ຕໍ່","Nomen Contangionis","Kontakta vārds","Kontaktinis vardas","Kontaktnumm","Име за контакт","Contact name","Nama kenalan","കോൺടാക്റ്റ് പേര്","Isem tal-Kuntatt","Ingoa Whakapā","संपर्क नाव","Холбоо барих нэр","ဆက်သွယ်ရန်အမည်","संपर्क नाम","Kontakt navn","Dzina lalumikizidwe","Nazwa Kontaktu","Nome de contato","ਸੰਪਰਕ ਨਾਮ","Nume de contact","Контактное лицо","Igoa faʻafesoʻotaʻi","Cuir fios gu ainm","Контакт Име","Lebitso la lebitso","Zita rekubatana","ඇමතුම් නාමය","Kontaktné meno","Kontaktno ime","Magaca xiriirka","Nombre de contacto","ngaran kontak","Jina la mawasiliano","Kontaktnamn","Pangalan ng contact","Номи мухотиб","தொடர்பு பெயர்","సంప్రదింపు పేరు","ชื่อผู้ติดต่อ","İrtibat adı","Контактна Особа","Kontakt nomi","Tên Liên lạc","Enw cyswllt","Igama lokuqhagamshelwa","Orukọ olubasọrọ","Igama longaxhumana naye"]
["BTW No","TVSH nr","ተ.እ.ታ. ቁጥር","ԱԱՀ №","ƏDV No","BEZa ez","ПДВ,","কর নাম্বার","PDV br","ДДС номер","IVA no","VAT No","Zēngzhí shuì biānhào","Zēngzhí shuì biānhào","VAT No","PDV br","DPH č","Moms nr","btw nr","VAT No","VAT Ne","Mida ei","ALV","Numéro de TVA","VAT Nee","IVE non","დღგ არა","Umsatzsteuernummer","Αριθμός ΦΠΑ","વેટ નં","VAT Non","VAT A'a","VAT No","वैट नहीं","VAT No","ÁFA nélkül","VSK nr","VAT Mba","PPN No","Uimh. CBL","IVA n","付加価値税登録番号","PPN No","ವ್ಯಾಟ್ ಇಲ್ಲ","ҚҚС Жоқ","លេខពន្ធអាករ","부가가치세 없음","КНС табылган жок","VAT No","non LACUS","PVN Nr","PVM Nr","TVA Nee","ДДВ бр","VAT No","VAT No","വാറ്റ് നം","Nru tal-VAT","Tatau No","व्हॅट नंबर","НӨАТ-ын дугаар","VAT ကိုအဘယ်သူမျှမ","VAT No","Org.nr","VAT Ayi","VAT nie","VAT não","ਵੈਟ ਨੰ","TVA nr","НДС нет","Totogi Nu","Àireamh VAT","Пиб","Che. Ea VAT","VAT Kwete","අගය මත බදු අංකය","DPH č","DDV št","VAT Maya","IVA No","PPN No","No ya VAT","Momsregistreringsnummer","Hindi","VAT No","VAT எண்","VAT సంఖ్య","หมายเลข VAT","KDV No","ПДВ немає","QQS raqami","Số thuế GTGT","Rhif TAW","I-VAT","VAT Bẹẹkọ","I-VAT Ayikho"]
["Loopfoon","Telefon celular","ተንቀሳቃሽ ስልክ","Բջջային հեռախոս","Cib telefonu","Mugikorra","Мабільны тэлефон","মুঠোফোন","Mobitel","Мобилен телефон","Mòbil","Cell phone","Shǒujī","Shǒujī","Telefuninu","Mobitel","Mobilní telefon","Mobiltelefon","Mobiele telefoon","Cell phone","Poŝtelefono","Mobiiltelefon","Kännykkä","Téléphone portable","Mobile tillefoan","Teléfono móbil","მობილური ტელეფონი","Handy","Κινητό τηλέφωνο","સેલ ફોન","Telefòn selilè","Wayar salula","Cell phone","सेल फोन","Cell phone","Mobiltelefon","Farsími","Ekwentị","Telepon selular","Fón póca","Cellulare","携帯電話","Ponsel","ಸೆಲ್ ಫೋನ್","Ұялы телефон","ទូរស័ព្ទ​ចល័ត","휴대 전화","Уюлдук телефон","ໂທລະ​ສັບ​ມື​ຖື","cell phone","Mobilais telefons","Mobilusis telefonas","Handy","Мобилен телефон","Finday","Telefon bimbit","സെൽ ഫോൺ","Mowbajl","Waea Cell","सेल फोन","Гар утас","ဆဲလ်ဖုန်း","मोबाइल फोन","Mobiltelefon","Foni yam'manja","Komórka","Celular","ਮੋਬਾਇਲ ਫੋਨ","Telefon mobil","Сотовый телефон","Sela foni","Fòn-làimhe","Мобилни телефон","Lekolulo","Nharembozha","ජංගම දුරකථනය","Mobilný telefón","Mobitel","Taleefan gacanta","Teléfono móvil","Hapé","Simu ya mkononi","Mobiltelefon","Cell phone","Телефони мобилӣ","கைப்பேசி","సెల్ ఫోన్","โทรศัพท์มือถือ","Cep telefonu","Мобільний телефон","Uyali telefon","Điện thoại di động","Ffon symudol","Unomyayi","Foonu alagbeka","Umakhalekhukhwini"]
["bankrekening","Llogari bankare","የባንክ ሒሳብ","բանկային հաշիվ","Bank hesabı","Banku kontua","банкаўскі рахунак","ব্যাংক হিসাব","bankovni račun","банкова сметка","compte bancari","Akawnt sa bangko","Yínháng zhànghù","Yínháng zhànghù","Cuntu Bancu","bankovni račun","bankovní účet","bankkonto","bankrekening","Bank account","bankokonto","pangakonto","pankkitili","compte bancaire","bankrekken","conta bancaria","საბანკო ანგარიში","Bankkonto","τραπεζικός λογαριασμός","બેંક એકાઉન્ટ","Kont labank","Asusun bank","Bank account","बैंक खाता","Bank account","bankszámla","bankareikning","Akaụntụ Bank","akun bank","cuntas bainc","conto bancario","銀行口座","akun bank","ಬ್ಯಾಂಕ್ ಖಾತೆ","банк шоты","គណនីធនាគារ","은행 계좌","банк эсеби","ບັນ​ຊີ​ທະ​ນາ​ຄານ","patrimonio putent","bankas konts","banko sąskaita","Bankkonto","Банкарска сметка","Banky banky","akaun bank","ബാങ്ക് അക്കൗണ്ട്","Kont bankarju","Pūkete Bank","बँक खाते","банкны данс","ဘဏ်အကောင့်","बैंक खाता","Bankkonto","Konki ya banki","konto bankowe","conta bancária","ਬੈੰਕ ਖਾਤਾ","cont bancar","банковский счет","Faletupe Faletupe","cunntas banca","банковни рачун","Bonnete ea banka","Bhangi yebhangi","බැංකු ගිණුම","bankový účet","bančni račun","Koontada Bangiga","cuenta bancaria","akun bank","akaunti ya benki","bankkonto","Bank account","Ҳисоби бонкӣ","வங்கி கணக்கு","బ్యాంకు ఖాతా","บัญชีธนาคาร","banka hesabı","банківський рахунок","bank hisob raqami","tài khoản ngân hàng","cyfrif banc","i-akhawunti yebhanki","Ifowo iroyin","I-akhawunti yasebhange"]
["Kliëntnr","Nr i Klientit","የደንበኛ ቁጥር","Հաճախորդի համարը","Müştəri Xeyr","Bezeroak ez","заказчык Няма","গ্রাহক নং","Klijent br","Клиентски номер","Client no","Customer No","Kèhù biānhào","Kèhù biānhào","Cliente No","Br. Br","Zákazník č","Kunde nr","Klant Nr","Customer No","Kliento Ne","Kliendi nr","Asiakasnumero","No de client","Kunde Nee","Cliente non","დამკვეთი არ არის","Kunden-Nr","Αριθμός πελάτη","ગ્રાહક નંબર","Kliyan Non","Abokin ciniki Ba","Customer No","ग्राहक संख्या","Customer No","Ügyfélszám","Viðskiptavinur nr","Onye Ahịa","Nomor pelanggan","Uimh. Chustaiméara","Cliente n","顧客番号","Ora Ana Anggota","ಗ್ರಾಹಕ ಸಂಖ್ಯೆ","Тұтынушы №","អតិថិជនលេខ","고객 번호","Клиенттин номери","Customer No","Nulla elit","Klienta Nr","Kliento Nr","Client Nee","Клиент бр","Customer No","Nombor pelanggan","ഉപഭോക്താവ് ഇല്ല","Nru tal-Klijent","Kore Kaihoko","ग्राहक क्रमांक","Харилцагчийн дугаар","ဖောက်သည်အဘယ်သူမျှမ","ग्राहक संख्या","Kunde nr","Ayi Ayi","Numer klienta","Cliente Não","ਗਾਹਕ ਨੰਬਰ","Client nr","№ клиента","Leai Tagata Leai","Àireamh Luchd-ceannach","Клијент бр","Che. Ea bareki","Mutengesi Kwete","ගණුදෙනුකරුවන්ගේ අංකය","Zákaznícke číslo","Stranka št","Macaamiisha Maya","Ningún cliente","customer No","No ya Wateja","Kund nummer","Numero ng kustomer","Муштариёни мизоҷ","வாடிக்கையாளர் இல்லை","కస్టమర్ సంఖ్య","หมายเลขลูกค้า","Müşteri numarası","Замовник №","Xaridor No","Khách hàng Không","Rhif Cwsmer","NoThengi","Onibara Bẹẹkọ","Ikhomenti"]
["Kwitansie No","Numri i fatures","የደረሰኝ ቁጥር","Հաշիվ-ապրանքագիր #","Faktura No","Faktura No","кошт Няма","চালান নং","Faktura br","Фактура номер","Factura no","Invoice No","Fāpiào hàomǎ","Fāpiào hàomǎ","Fattura senza","Račun br","Faktura číslo","Faktura nr","Factuur nr","Invoice No","Fakturo Ne","Arve nr","Lasku nro","Facture Non","Invoice Nee","Factura n","ინვოისის ნომერი","Rechnungsnummer","Αριθμός τιμολογίου","ઇન્વોઇસ નં","Fakti Non","Invoice A'a","Invoice No","चालान नंबर","Invoice No","Nincs számla","Reikningsnúmer nr","Onyonye Mba","Nomor faktur","Sonrasc Uimh","Fattura n","請求書番号","Invoice No","ಸರಕುಪಟ್ಟಿ ಇಲ್ಲ","Шот-фактура №","លេខ​វិ​ក័​យ​ប័ត្រ","송장 번호","Эсеп-дүмүрчөк табылган жок","ໃບແຈ້ງຫນີ້ No","Ratio nulla","Rēķina Nr","Sąskaitos Nr","Invoice Nee","Фактура бр","Fanamarinana Tsia","Invois No","ഇൻവോയ്സ് നം","Fattura Nru","Te nama Kore","चलन क्रमांक","Нэхэмжлэх дугаар","ငွေတောင်းခံလွှာအဘယ်သူမျှမ","बिल संख्या","Faktura nr","Ndalama Ayi","Faktury nr","Fatura não","ਇਨਵੌਇਸ ਨੰ","Factura nu","Счет-фактура Нет","Faʻamatalaga Nu","Àireamh Fiosrachaidh","Фактура бр","Nye ea Invoice","Invoice Kwete","කුවිතාන්සිය අංක","Faktúra č","Številka računa","Qaansheega Maya","Factura no","invoice No","No ya ankara","Faktura nr","Hindi Invoice","Арзиши №","விலைப்பட்டியல் எண்","వాయిస్ నంబర్ లేదు","หมายเลขใบแจ้งหนี้","Fatura No","Номер рахунку","Faktura raqami №","Hóa đơn không có","Rhif Anfoneb","Invoice No","Aṣayan Bẹẹkọ","I-Invoyisi Cha"]
["Kredietnota nr","Shënimi i kredisë nr","የብድር ማስታወሻ ቁጥር","Վարկի համարը no","Kredit qeydləri yoxdur","Kreditu-oharra ez","Крэдытная нота няма","ক্রেডিট নোট না","Kreditna nota br","Кредитна нота не","Nota de crèdit núm","Hinumdomi no","Xìnyòng zhèng hàomǎ","Xìnyòng zhèng hàomǎ","Nota di creditu micca","Kreditna br","Úvěrová zpráva č","Kreditnota nr","Creditnota nr","Credit note no","Kredita noto ne","Krediitkaardiga nr","Luottotiedote no","Note de crédit non","Credit note nee","Nota de crédito non","საკრედიტო შენიშვნა არა","Gutschrift Nr","Πιστωτικό σημείωμα αριθ","ક્રેડિટ નોટ નં","Kredi nòt pa gen okenn","Bayanan bashi ba","Credit note no","क्रेडिट नोट नंबर","Credit note no","Hiteljegyzetszám","Lánshæfismat nr","Ihe nchoputa amaghi","Catatan kredit no","Nóta creidmheasa uimh","Nota di credito n","クレジットメモ","Cathetan kredit no","ಕ್ರೆಡಿಟ್ ನೋಟ್ ನಂ","Несие ескертпесі №","ចំណាំឥណទាន","신용 메모 없음","Насыя кыска жазуу","ຫມາຍເລກບັນຊີເຄດິດ","Non credit nota","Kredītu piezīme Nr","Kredito Nr","Kredittstut no","Кредитна белешка бр","Credit note no","Nota kredit no","ക്രെഡിറ്റ് നോട്ട് നം","Nota ta 'kreditu nru","Kaore he nama nama","क्रेडिट नोट क्र","Зээлийн тэмдэглэл","credit note ကိုအဘယ်သူမျှမ","क्रेडिट नोट no","Kreditnota","Ndondomeko ya ngongole ayi","Nota kredytowa nr","Nota de crédito não","ਕ੍ਰੈਡਿਟ ਨੋਟ ਨੰ","Notă de credit nr","Кредитная нота нет","Faʻaaliga aitalafu leai","Nota creideis a-mhàin","Кредитна нота бр","Tlhaloso ea mokoloto ha","Chikwereti chinyorwa no","ණය සටහන් අංකය","Kreditná karta č","Kreditna opomba št","Lacagta codeynta","Nota de crédito no","catetan kiridit euweuh","Nambari ya mkopo hakuna","Kreditnota nr","Tala ng credit no","Нусхаи қарзӣ","கடன் குறிப்பு இல்லை","క్రెడిట్ గమనిక సంఖ్య","หมายเลขใบลดหนี้","Kredi notu no","Кредитна заява №","Kredit yozuvi yo'q","Ghi có ghi","Nodyn credyd rhif","Inqaku lesikweletu","Akiyesi akọsilẹ ko si","Inombolo yesikweletu ayikho"]
["Faktuurdatum","Data e faturës","የደረሰኝ ቀን","Ավանդի ամսաթիվը","Faktura tarixi","Faktura data","дата рахункі","চালান তারিখ","Datum računa","Датата на фактурата","Data de la factura","Petsa sa invoice","Fāpiào rìqí","Fāpiào rìqí","Data di fattura","Datum dostavnice","Datum faktury","Fakturadato","Factuur datum","Invoice date","Fakturo dato","Arve kuupäevast","Laskutus päivämäärä","Date de facture","Datum fan de rekken","Data de factura","ინვოისის თარიღი","Rechnungsdatum","Την ημερομηνία του τιμολογίου","ઇન્વોઇસ તારીખ","Fakti dat","Lambar farashi","Invoice date","चालान की तारीख","Invoice date","Számla kiállítási dátuma","Dagsetning reiknings","Ụbọchị ezitere","Tanggal faktur","Dáta sonraisc","Data fattura","請求書の日付","Tanggal invoice","ಸರಕುಪಟ್ಟಿ ದಿನಾಂಕ","Шот-фактура күні","កាលបរិច្ឆេទវិក្កយបត្រ","송장 날짜","Эсеп-дүмүрчөктүн күнү","ວັນ​ທີ່​ໃບ​ເກັບ​ເງິນ","Date cautionem","Rēķina datums","Sąskaitos data","Rechnungsdatum","Датум на фактура","Daty ho an'ny faktiora","Tarikh invois","രസീത് തീയതി","Data tal-fattura","Te rā nama","चलन तारीख","Нэхэмжлэлийн өдөр","ငွေတောင်းခံလွှာနေ့စွဲ","इनभ्वाइस मिति","Fakturadato","Tsiku la chikhoso","Data faktury","Data da fatura","ਚਲਾਨ ਤਾਰੀਖ","Data facturii","Дата счета","Aso faʻasoa","Ceann-là a 'chunntais","Датум фактуре","Letsatsi la invoice","Invoice zuva","ඉන්වොයිසි දිනය","Dátum vystavenia faktúry","Datum računa","Taariikhda wax-qabadka","Fecha de la factura","titimangsa invoice","Tarehe ya ankara","Fakturadatum","Petsa ng invoice","Санаи ҳисобӣ","விலைப்பட்டியல் தேதி","చలానా తారీకు","วันที่ในใบแจ้งหนี้","Fatura tarihi","Дата рахунка-фактури","Billing sanasi","Ngày lập hoá đơn","Dyddiad yr anfoneb","Umhla we-Invoyisi","Ọjọ iwifun","Usuku lwe-invoyisi"]
["Sperdatum","Data e duhur","የመጨረሻ ማስረከቢያ ቀን","Վերջնաժամկետ","Bitiş tarixi, son tarix","Data ordaindua","Тэрмін","নির্দিষ্ট তারিখ","Datum roka","Дата на падежа","Data de venciment","Tungod sa petsa","Jiézhǐ rìqí","Jiézhǐ rìqí","Scadenza","Datum dospijeća","Datum splatnosti","Afleveringsdato","Opleveringsdatum","Due date","Due dato","Tähtaeg","Eräpäivä","Date d'échéance","Ferfaldatum","Data de caducidade","თარიღის თანახმად","Geburtstermin","Ημερομηνία λήξης","નિયત તારીખ","Dat pou renmet","Kwanan lokaci","Due date","नियत तारीख","Due date","Esedékesség","Gjalddagi","Oge ngwụcha","Batas tanggal terakhir","Dáta dlite","Scadenza","期日","Tanggal amarga","ದಿನಾಂಕದಂದು","Мерзімнің өту күні","កាលបរិច្ឆេទ​កំណត់","마감일","Бүтүмдүк дата","ວັນ​ຄົບ​ກໍາ​ນົດ","ob diem","Gala termiņš","Terminas","Fällegkeetsdatum","Датум на достасување","Daty farany","Tarikh luput","അവസാന തീയതി","Data tal-għeluq","Te ra","निहित तारीख","Хугацаатай дуусах хугацаа","နောက်ဆုံးရက်","म्याद मिति","Forfallsdato","Tsiku lomaliza","Termin płatności","Data de Vencimento","ਅਦਾਇਗੀ ਤਾਰੀਖ","Data scadentă","Срок","O afea","An latha ri thighinn","Рок предаје","Letsatsi la tebello","Zuva racho","ගෙවිය යුතු දිනය","Do dátumu","Datum zapadlosti","Taariikhda kuxiga","Fecha de vencimiento","Tanggal paling telat","Tarehe ya kukamilisha","Förfallodatum","Takdang petsa","Мӯҳлати пардохт","காரணமாக தேதி","గడువు తేది","วันครบกำหนด","Bitiş tarihi","Термін сплати","Muddati","Ngày đáo hạn","Dyddiad dyledus","Umhla wokuphila","Asiko to ba to","Usuku olumisiwe"]
["Artikel","artikull","አንቀጽ","Հոդված","Məqalə","Artikulu","артыкул","প্রবন্ধ","Članak","статия","Article","Artikulo","Wénzhāng","Wénzhāng","Articulu","Članak","Článek","artikel","Artikel","Article","Artikolo","Artikkel","Artikla","Article","Lidwurd","Artigo","მუხლი","Artikel","Αρθρο","કલમ","Atik","Mataki na ashirin","Article","लेख","Article","Cikk","Gr","Nkeji edemede","Artikel","Airteagal","Articolo","記事","Artikel","ಲೇಖನ","Мақала","អត្ថបទ","조","макала","ມາດຕາ","articuli","Pants","Straipsnis","Artikel","Член","Article","Artikel","ലേഖനം","Artikolu","Tuhinga","लेख","Зүйл","ဆောင်းပါး","लेख","Artikkel","Nkhani","Artykuł","Artigo","ਆਰਟੀਕਲ","Articol","Статья","Mataupu","Artaigil","Чланак","Article","Chirevo","ලිපිය","článok","Članek","Qodobka","Artículo","artikel","Kifungu","Artikel","Artikulo","Мақолаҳо |","கட்டுரை","వ్యాసం","บทความ","makale","Стаття","Maqola","Bài báo","Erthygl","I sihloko","Abala","Isihloko"]
["beskrywing","Përshkrim","መግለጫ","Նկարագրություն","Təsvir","deskribapena","апісанне","বিবরণ","Opis","описание","Descripció","Deskripsiyon","Miáoshù","Miáoshù","Descrizzione","Opis","Popis","Beskrivelse","Beschrijving","Description","Priskribo","Kirjeldus","Kuvaus","La description","Beskriuwing","Descrición","აღწერა","Beschreibung","Περιγραφή","વર્ણન","Deskripsyon","Bayani","Description","विवरण","Description","Leírás","Lýsing","Nkọwa","Deskripsi","Cur síos","Descrizione","説明","Gambaran","ವಿವರಣೆ","Сипаттама","ការពិពណ៌នា","기술","баяндоо","ລາຍລະອຽດ","Description","Apraksts","apibūdinimas","Beschreiwung","Опис","Description","Penerangan","വിവരണം","Deskrizzjoni","Whakaahuatanga","वर्णन","Тодорхойлолт","ဖေါ်ပြချက်","विवरण","Beskrivelse","Kufotokozera","Opis","Descrição","ਵਰਣਨ","Descriere","Описание","Faʻamatalaga","Tuairisgeul","Опис","Tlhaloso","Tsanangudzo","විස්තර","popis","Opis","Sharaxaad","Descripción","gambaran","Maelezo","Beskrivning","Paglalarawan","Тавсифи","விளக்கம்","వివరణ","ลักษณะ","Açıklama","Опис","Ta'rif","Sự miêu tả","Disgrifiad","Inkcazo","Apejuwe","Incazelo"]
["hoeveelheid","sasi","ብዛት","Քանակ","Miqdarı","Kopurua","колькасць","পরিমাণ","Količina","количество","Quantitat","Gidaghanon","Shùliàng","Shùliàng","Quantità","Količina","Množství","Antal","Aantal stuks","Quantity","Kvanto","Kogus","Määrä","Quantité","Kwantiteit","Cantidade","რაოდენობა","Menge","Ποσότητα","જથ્થો","Kantite","Yawan","Quantity","मात्रा","Quantity","Mennyiség","Magn","Ọnụ ọgụgụ","Kuantitas","Cainníocht","Quantità","量","Jumlah","ಪ್ರಮಾಣ","Саны","បរិមាណ","수량","сан","Quantity","quantitas","Daudzums","Kiekis","Quantitéit","Квантитет","Quantity","Kuantiti","അളവ്","Kwantità","Maha","प्रमाण","Тоо хэмжээ","အရေအတွက်","मात्रा","Mengde","Chiwerengero","Ilość","Quantidade","ਗਿਣਤੀ","Cantitate","Количество","Aotelega","Àireamh","Количина","Palo","Kuwanda","ප්රමාණය","množstvo","Količina","Tirada","Cantidad","kuantitas","Wingi","Kvantitet","Dami","Миқдори кам","அளவு","మొత్తము","ปริมาณ","miktar","Кількість","Miqdor","Số lượng","Nifer","Ubungakanani","Opolopo","Inani"]
["eenheid","njësi","ክፍል","Բաժին","Vahid","unitatea","блок","একক","Jedinica","Мерна единица","Unitat","Yunit","Dānyuán","Dānyuán","Unità","Jedinica","Jednotka","Enhed","Eenheid","Unit","Unueco","Üksus","yksikkö","Unité","Ienheid","Unidade","ერთეული","Einheit","Μονάδα","એકમ","Inite","Ƙungiya","Unit","इकाई","Unit","Egység","Eining","Otu","Satuan","Aonad","Unità","単位","Unit","ಘಟಕ","Бөлім","ឯកតា","단위","Unit","Unit","Unit","Vienība","Vienetas","Eenheet","Единица","Unit","Unit","യൂണിറ്റ്","Unità","Unit","युनिट","Нэгж","ယူနစ်","यूनिट","Enhet","Chigawo","Jednostka","Unidade","ਇਕਾਈ","Unitate","Ед. изм","Vaega","Aonad","Јединица","Sehlopha","Unit","ඒකකය","jednotka","Enota","Unug","Unidad","kamanunggalan","Kitengo","Enhet","Unit","Қисми","அலகு","యూనిట్","หน่วย","birim","Підрозділ","Birlik","Đơn vị","Uned","Iyunithi","Aini","Unit"]
["prys","çmim","ዋጋ","Գինը","Qiymət","Prezioa","цана","মূল্য","Cijena","Цена","Preu","Presyo","Jiàqián","Jiàqián","U prezzu","Cijena","Cena","Pris","Prijs","Price","Prezo","Hind","Hinta","Prix","Priis","Prezo","ფასი","Preis","Τιμή","કિંમત","Pri","Farashin","Price","मूल्य","Price","Ár","Verð","Ahịa","Harga","Praghas","Prezzo","価格","Rega","ಬೆಲೆ","Бағасы","តំលៃ","가격","баа","ລາຄາ","pretium","Cena","Kaina","Präis","Цена","Price","Harga","വില","Prezz","Utu","किंमत","Үнэ","စျေးနှုန်း","मूल्य","Pris","Mtengo","Cena £","Preço","ਕੀਮਤ","Preț","Цена","Tau","Prìs","Цена","Theko","Mutengo","මිල","cena","Cena","Qiimo","Precio","harga","Bei","Pris","Presyo","Нарх","விலை","ధర","ราคา","Fiyat","Ціна","Narxlari","Giá bán","Pris","Ixabiso","Iye owo","Intengo"]
["afslag","zbritje","ቅናሽ","Զեղչ","Endirim","Deskontua","зніжка","ডিসকাউন্ট","Popust","отстъпка","Descompte","Diskwento","Zhékòu","Zhékòu","Discount","Popust","Sleva","Rabat","Korting","Discount","Rabato","Allahindlus","Alennus","Remise","Koarting","Desconto","ფასდაკლება","Rabatt","Εκπτωση","ડિસ્કાઉન્ટ","Rabè","Dama","Discount","छूट","Discount","Kedvezmény","Afsláttur","Ego","Diskon","Lascaine","Sconto","ディスカウント","Diskon","ರಿಯಾಯಿತಿ","Жеңілдік","បញ្ចុះតម្លៃ","할인","арзандатуу","ສ່ວນລົດ","Buy","Atlaide","Nuolaida","Remise","Попуст","Discount","Diskaun","ഡിസ്കൌണ്ട്","Discount","Te utu","सवलत","Хөнгөлөлт","လျှော့စျေး","छुट","Rabatt","Zopereka","Zniżka","Desconto","ਛੂਟ","Reducere","скидка","Faʻasalaga","Lùghdachadh","Попуст","Tlhōlisano","Discount","වට්ටම්","zľava","Popust","Discount","Descuento","potongan harga","Punguzo","Rabatt","Discount","Тахфӣ","தள்ளுபடி","డిస్కౌంట్","ส่วนลด","İndirim","Знижка","Dasturi","Giảm giá","Disgownt","Isaphulelo","Iye","Isaphulelo"]
["bedrag","sasi","መጠን","Գումարը","Məbləğ","Zenbateko","сума","পরিমাণ","Iznos","Количество","Import","Amgo","Liàng","Liàng","Amount","Iznos","Množství","Beløb","Bedrag","Amount","Kvanto","Summa","Määrä","Montant","Tal","Cantidade","თანხა","Menge","Ποσό","રકમ","Kantite lajan","Adadin","Amount","रकम","Amount","Összeg","Magn","Ọnụ","Jumlah","Méid","Quantità","量","Jumlah","ಮೊತ್ತ","Сома","ចំនួន","양","суммасы","ຈໍາ​ນວນ","tantum","Summa","Suma","Betrag","износ","vola","Jumlah","തുക","Ammont","Te nui","रक्कम","Дүн","ငွေပမာဏ","राशि","Beløp","Zambiri","Ilość","Montante","ਦੀ ਰਕਮ","Cantitate","Количество","Aofaʻi","Suim","Износ","Chelete","Nhamba","ප්රමාණය","čiastka","Znesek","Tirada","Cantidad","jumlah","Kiasi","Belopp","Halaga","Маблағ","தொகை","మొత్తం","จำนวน","Miktar","Сума","Miqdori","Số tiền","Swm","Isixa","Iye","Inani"]
["BTW","TVSH","ተእታ","ԱԱՀ","ƏDV","BEZa","ПДВ","ভ্যাট","PDV","ДДС","IVA","VAT","Zēngzhí shuì","Zēngzhí shuì","VAT","PDV","káď","moms","VAT","VAT","VAT","Käibemaks","arvonlisävero","T.V.A.","VAT","IVE","დღგ","Mehrwertsteuer","ΔΕΞΑΜΕΝΗ","વેટ","VAT","VAT","VAT","वैट","VAT","áfa","VSK","VAT","TONG","CBL","I.V.A.","バット","PPN","ವ್ಯಾಟ್","ҚҚС","ពន្ធលើតម្លៃបន្ថែម","큰 통","КНС","VAT","LACUS","PVN","PVM","TVA","ДДВ","VAT","VAT","വാറ്റ്","VAT","Tuhinga o mua","व्हॅट","НӨАТ","VAT","VAT","MVA","VAT","faktura VAT","CUBA","ਵੈਟ","TVA","НДС","VAT","VAT","ПДВ","VAT","VAT","වැට්","DPH","DDV","VAT","TINA","PPN","VAT","MOMS","VAT","VAT","வாட்","వేట్","ภาษีมูลค่าเพิ่ม","DKV","ПДВ","QQS","VAT","TAW","VAT","VAT","I-VAT"]
["Totale bedrag","Shuma totale","አጠቃላይ ድምሩ","Ընդհանուր գումարը","Ümumi miqdar","Kopuru osoa","Агульная колькасць","সর্বমোট পরিমাণ","Ukupan iznos","Обща сума","Suma total","Kabilugan nga kantidad","Zǒng jīn'é","Zǒng jīn'é","Ammisa totali","Ukupni iznos","Celková částka","Total beløb","Totaalbedrag","Total amount","Tuta kvanto","Kogu summa","Kokonaismäärä","Montant total","Totaalbedrach","Cantidade total","მთლიანი რაოდენობა","Gesamtmenge","Συνολικό ποσό","કુલ રકમ","Total kantite lajan","Jimla","Total amount","कुल रकम","Total amount","Teljes összeg","Heildarupphæð","Mkpokọta ọnụego","Jumlah total","Iomlán","Importo totale","合計金額","Total jumlah","ಒಟ್ಟು ಮೊತ್ತ","Жалпы сома","ចំនួន​សរុប","총액","Жалпы суммасы","ຈໍາ​ນວນ​ທັງ​ຫມົດ","Summa","Kopējā summa","Visas kiekis","De ganze Montant","Вкупна количина","Fitambarany","Jumlah keseluruhan","മൊത്തം തുക","Ammont totali","Te tapeke moni","एकूण रक्कम","Нийт дүн","စုစုပေါင်းပမာဏ","कुल राशि","Totalsum","Kuchuluka kwake pamodzi","Łączna kwota","Valor total","ਕੁੱਲ ਮਾਤਰਾ","Valoare totală","Итого","Aofaiga o tupe","Suim iomlan","Укупан износ","Kakaretso","Zvose zviyero","මුලු වටිනාකම","Celková suma","Skupni znesek","Tirada guud","Cantidad total","Jumlah total","Jumla","Totalsumma","Kabuuang halaga","Ҳамагӣ","மொத்த தொகை","మొత్తం మొత్తం","จำนวนเงินทั้งหมด","Toplam tutar","Загальна кількість","Umumiy hisob","Tổng cộng","Cyfanswm","Imali iyonke","Oye gbo e","Ingqikithi yemali"]
["net","Neto","Net","Զուտ","Net","Sarean","нета","নেট","Net","нето","Net","Limpyo","Jìng","Jìng","Net","Neto","Síť","Net","Netto","Net","Net","Net","Netto","Net","Net","Rede","წმინდა","Netz","Καθαρά","નેટ","Net","Net","Net","जाल","Net","Háló","Net","Net","Bersih","Glan","Netto","ネット","Net","ನೆಟ್","Net","សុទ្ធ","그물","тор","ສຸດທິ","Net","Tīkls","Tinklas","Net","Net","Net","Bersih","നെറ്റ്","Net","Net","नेट","Цэвэр","ပိုက်","नेट","Netto","Net","Netto","Líquido","ਨੈੱਟ","Net","Сеть","Net","Net","Нет","Nete","Net","ශුද්ධ","netto","Mreža","Net","Red","net","Wavu","Netto","Net","Нет","நிகர","నికర","สุทธิ","Ağ","Мережа","Net","Mạng lưới","Net","Net","Ipele","Net"]
["betaling inligting","Informacionet e pagesës","የክፍያ መረጃ","Վճարման տեղեկություն","Ödəniş haqqında məlumat","Ordainketa informazioa","Інфармацыя аб аплаце","পেমেন্ট তথ্য","Informacije o plaćanju","Информация за плащане","Informació de pagament","Impormasyon sa pagbayad","Fùkuǎn xìnxī","Fùkuǎn xìnxī","Pagate info","Informacije o plaćanju","platební info","Betalingsinformation","Betaling informatie","Payment info","Pago info","Makseinfo","maksutiedot","information de paiement","Betellingsynfo","Información de pagamento","გადახდის ინფორმაცია","Zahlungsinformationen","πληροφορίες πληρωμής","ચુકવણી માહિતી","Enfòmasyon peman","Biyan kuɗi","Payment info","भुगतान की जानकारी","Payment info","Fizetési információ","greiðsluupplýsingar","Ịkwụ ụgwọ ego","informasi pembayaran","Faisnéis íocaíochta","Informazioni di pagamento","支払い情報","Informasi pembayaran","ಪಾವತಿ ಮಾಹಿತಿ","Төлем туралы ақпарат","ព័ត៌មានបង់ប្រាក់","지불 정보","Төлөм маалыматы","ຂໍ້ມູນການຈ່າຍເງິນ","Payment info","maksājuma informācija","mokėjimo informacija","Bezuelungsinformatioun","Плаќање информации","Fepetra takiana","Maklumat pembayaran","പണം അടച്ച വിവരം","Informazzjoni dwar il-ħlas","Mōhiohio utu","देय माहिती","Төлбөрийн мэдээлэл","ငွေပေးချေမှုရမည့်အချက်အလက်များ","भुक्तानी जानकारी","Betalingsinformasjon","Malipiro","Informacje o płatności","informação de pagamento","ਭੁਗਤਾਨ ਜਾਣਕਾਰੀ","Informatii plată","Платежная информация","Tupe totogi","Fiosrachadh pàighidh","Информације о плаћању","Litaba tsa lekhetho","Payment info","ගෙවීම් තොරතුරු","Informácie o platbe","informacije o plačilu","Macluumaadka lacag bixinta","información de pago","info pamayaran","Maelezo ya malipo","Betalningsinfo","Impormasyon sa pagbabayad","Маълумоти пардохтӣ","கட்டண தகவல்","చెల్లింపు సమాచారం","ข้อมูลการชำระเงิน","Ödeme bilgisi","Платіжна інформація","To'lov haqida ma'lumot","Thông tin thanh toán","Gwybodaeth am daliad","Ulwazi lokuhlawula","Alaye isanwo","Ulwazi lokukhokha"]
["BTW basis","Bazën e Vat","ቫት","Վատ հիմքը","VAT əsasları","Vatikaren oinarria","Vat аснова","ভ্যাট ভিত্তিতে","Vat osnova","База база","Base del vat","Bas nga basehan","Zēngzhí shuì jīchǔ","Zēngzhí shuì jīchǔ","A basa di Vat","Vat baze","Vat základ","Momsgrundlag","Vatbasis","Vat basis","Vata bazo","Vat baas","Vat-perusta","Base de TVA","Vat basis","Base de vat","დღგ საფუძველზე","MwSt-Basis","Βασική βάση","વેટ આધારે","Bas baz","Vat tushe","Vat basis","वैट आधार","Vat basis","Vám alapon","Vat grundvöllur","Vat ndabere","Dasar pp","Bunús na Vatacáine","Base IVA","バットベース","Vat basis","ವ್ಯಾಟ್ ಆಧಾರ","ҚҚ негіздері","មូលដ្ឋាន","부가 가치세 (VAT) 기준","КНС негиз","Vat basis","Verba ex","Vat bāze","Vat pagrindu","Stëmmen","ДДВ основа","Vat base","Asas Vat","വാറ്റ് അടിസ്ഥാനം","Il-bażi tal-VAT","Kaupapa Vat","वॅट आधार","Ват суурь","VAT အခြေခံ","वैट आधार","Mva gr.lag","Vat maziko","Podstawa VAT","Base de Vat","ਵੈਟ ਬੇਸ","Vat bază","Ват-основа","Vat faavae","Bhathar bunaiteach","Ват основа","Vat base","Vat basis","Vat පදනම","Vat základ","Vatna osnova","Saldhigga Wat","Base de IVA","dadasar PPN","Msingi wa Vat","Vatbasis","Bat base sa Vat","Асосӣ","வேட் அடிப்படையில்","వ్యాట్ ఆధారంగా","พื้นฐาน VAT","KDV esasına göre","Вата основі","QQS asosida","Cơ sở vật chất","Sail y Fat","Siseko seVat","Vat ipilẹ","Isisekelo se-Vat"]
["afronding","Llogaritja","መደርደር","Կլորացում","Yuvarlaqlaşdırma","biribilketak","акругленне","রাউন্ডইং","Zaokruživanje","Усъвършенстването","Redondeig","Pagtan-aw","Sìshěwǔrù","Sìshěwǔrù","Rounding","Zaokruživanje","Zaokrouhlení","Afrunding","ronding","Rounding","Rondigo","Ümardamine","pyöristys","Arrondir","Rûning","Redondeo","დამრგვალება","Rundung","Στρογγύλεμα","રાઉન્ડિંગ","Awondi","Zagaye","Rounding","गोलाई","Rounding","kerekítés","Afrennsli","Na-echegharị","Pembulatan","Cruinniú","Arrotondamento","丸め","Rounding","ಪೂರ್ಣಾಂಕವನ್ನು","Дөңгелектеу","ជុំទី","반올림","кадамы","Rounding","Circumvectus","Noapaļošana","Apvalinimas","Rounding","Заокружување","Rounding","Pusingan","വൃത്താകം","L-arrotondament","Tuhinga","राउंडिंग","Дугуйрсан","ရှာနိုင်ပါတယ်","राउन्डिंग","Avrunding","Kuzungulira","Zaokrąglanie","Arredondamento","ਗੋਲਿੰਗ","rotunjirea","округление","Loto","A 'dol timcheall","Заокруживање","Ho potoloha","Rounding","වටරවුම","zaokrúhľovania","Zaokroževanje","Wareeysi","Redondeo","rounding","Kupiga kura","Avrundning","Rounding","Мубориза","முழுமையாக்கும் விதமாக","చుట్టుముట్టే","การล้อม","yuvarlatma","Округлення","Rounding","Làm tròn","Rowndio","Ukujikeleza","Ayika","Ukujikeleza"]
["Totale bedrag","Shuma totale","አጠቃላይ ድምሩ","Ընդհանուր գումարը","Ümumi miqdar","Kopuru osoa","Агульная колькасць","সর্বমোট পরিমাণ","Ukupan iznos","Обща сума","Suma total","Kabilugan nga kantidad","Zǒng jīn'é","Zǒng jīn'é","Ammisa totali","Ukupni iznos","Celková částka","Total beløb","Totaalbedrag","Total amount","Tuta kvanto","Kogu summa","Kokonaismäärä","Montant total","Totaalbedrach","Cantidade total","მთლიანი რაოდენობა","Gesamtmenge","Συνολικό ποσό","કુલ રકમ","Total kantite lajan","Jimla","Total amount","कुल रकम","Total amount","Teljes összeg","Heildarupphæð","Mkpokọta ọnụego","Jumlah total","Iomlán","Importo totale","合計金額","Total jumlah","ಒಟ್ಟು ಮೊತ್ತ","Жалпы сома","ចំនួន​សរុប","총액","Жалпы суммасы","ຈໍາ​ນວນ​ທັງ​ຫມົດ","Summa","Kopējā summa","Visas kiekis","De ganze Montant","Вкупна количина","Fitambarany","Jumlah keseluruhan","മൊത്തം തുക","Ammont totali","Te tapeke moni","एकूण रक्कम","Нийт дүн","စုစုပေါင်းပမာဏ","कुल राशि","Totalsum","Kuchuluka kwake pamodzi","Łączna kwota","Valor total","ਕੁੱਲ ਮਾਤਰਾ","Valoare totală","Итого","Aofaiga o tupe","Suim iomlan","Укупан износ","Kakaretso","Zvose zviyero","මුලු වටිනාකම","Celková suma","Skupni znesek","Tirada guud","Cantidad total","Jumlah total","Jumla","Totalsumma","Kabuuang halaga","Ҳамагӣ","மொத்த தொகை","మొత్తం మొత్తం","จำนวนเงินทั้งหมด","Toplam tutar","Загальна кількість","Umumiy hisob","Tổng cộng","Cyfanswm","Imali iyonke","Oye gbo e","Ingqikithi yemali"]
["Kliënt soek","Kërkimi i klientit","የደንበኛ ፍለጋ","Հաճախորդների որոնում","Müştəri axtarış","Bezeroaren bilaketa","пошук кліента","গ্রাহক অনুসন্ধান","Traženje kupca","Търсене на клиенти","Cerca al client","Pagpangita sa kustomer","Kèhù sōusuǒ","Kèhù sōusuǒ","Ricerca di u cliente","Pretraživanje korisnika","Vyhledávání zákazníků","Kundesøgning","Zoeken naar klanten","Customer search","Klienta serĉo","Kliendiotsing","Asiakashaku","Recherche de client","Kunde sykjen","Busca ao cliente","მომხმარებელთა ძებნა","Kundensuche","Αναζήτηση πελατών","ગ્રાહક શોધ","Kliyan rechèch","Binciken abokan ciniki","Customer search","ग्राहक खोज","Customer search","Ügyfél keresés","Viðskiptavinur leit","Nyocha ndị ahịa","Pencarian pelanggan","Cuardach do chustaiméirí","Ricerca clienti","顧客の検索","Panelusuran pelanggan","ಗ್ರಾಹಕ ಹುಡುಕಾಟ","Клиенттерді іздеу","ស្វែងរកអតិថិជន","고객 검색","кардарларды издөө","ຄົ້ນຫາລູກຄ້າ","Customer quaerere","Klientu meklēšana","Klientų paieška","Client Sich","Пребарување на купувачи","Fikarohana mpanjifa","Carian pelanggan","ഉപഭോക്തൃ തിരയൽ","Tiftix tal-klijenti","Rapu kaihoko","ग्राहक शोध","Хэрэглэгчийн хайлт","ဖောက်သည်ရှာဖွေရေး","ग्राहक खोजी","Kundesøk","Kusaka kwa kasitomala","Wyszukiwanie klienta","Pesquisa do cliente","ਗਾਹਕ ਦੀ ਭਾਲ","Căutare clienți","Поиск клиентов","Suʻesuʻega a le tagata","Rannsachadh luchd-cleachdaidh","Тражење купца","Ho batlisisa bareki","Mutengi kutsvaga","පාරිභෝගික සෙවුම","Vyhľadávanie zákazníkov","Iskanje strank","Raadinta macaamiisha","Búsqueda de clientes","pilarian customer","Utafutaji wa Wateja","Kundsökning","Paghahanap ng kostumer","Ҷустуҷӯи муштарӣ","வாடிக்கையாளர் தேடல்","కస్టమర్ శోధన","ค้นหาลูกค้า","Müşteri arama","Пошук клієнтів","Xaridor qidirish","Tìm kiếm khách hàng","Chwilio cwsmeriaid","Ukukhangela kwamakhasimende","Ṣiṣe ayẹwo onibara","Ukusesha kwamakhasimende"]
["Artikel soek","Kërkimi i artikullit","የጽሑፍ ፍለጋ","Հոդված որոնում","Maddə axtarış","Artikuluen bilaketa","пошук артыкула","আর্টিকেল অনুসন্ধান","Pretraga članka","Търсене в статии","Cerca d'articles","Pagpangita sa artikulo","Wénzhāng sōusuǒ","Wénzhāng sōusuǒ","Articulu di ricerca","Traženje članka","Vyhledávání článků","Artikel søgning","Artikel zoeken","Article search","Artikola serĉo","Artikli otsing","Artikkelihaku","Recherche d'article","Artikel sykjen","Busca de artigos","მუხლი ძებნა","Artikelsuche","Αναζήτηση άρθρου","લેખ શોધ","Atik rechèch","Mataki na bincike","Article search","लेख खोज","Article search","Cikk keresés","Greinar leit","Nchọta ihe","Pencarian artikel","Airteagal cuardaigh","Ricerca di articoli","記事の検索","Panelusuran artikel","ಲೇಖನ ಹುಡುಕಾಟ","Мақаланы іздеу","ស្វែងរកអត្ថបទ","기술 자료 검색","берене издөө","ຄົ້ນຫາບົດຄວາມ","articulus quaerere","Raksta meklēšana","Straipsnio paieška","Artikelen kucken","Член пребарување","Fikarohana amin'ny lahatsoratra","Carian artikel","ലേഖന തിരയൽ","Tfittxija ta 'l-Artikolu","Tuhinga rapu","लेख शोध","Нийтлэлийн хайлт","အပိုဒ်ရှာဖွေရေး","लेख खोजी","Artikkelsøk","Kusaka kwa mutu","Wyszukiwanie artykułów","Pesquisa de artigos","ਲੇਖ ਦੀ ਖੋਜ","Căutarea unui articol","Поиск статьи","Mataupu suʻesuʻe","Rannsachadh artaigil","Претрага чланака","Article Search","Chirevo chekutsvaga","ලිපි සෙවීම","Hľadanie článku","Iskanje članka","Qodobka raadinta","Búsqueda de artículos","artikel pilarian","Utafutaji wa makala","Artikel sökning","Paghahanap ng artikulo","Мақолаҳои нопурра","கட்டுரைத் தேடல்","వ్యాసం శోధన","การค้นหาบทความ","Makale araması","Пошук статті","Maqola qidirish","Tìm bài viết","Chwilio erthygl","Ukukhangela kweCandelo","Abala àkọlé","Ukuseshwa kwe-Article"]
["OK","Ne rregull","እሺ","լավ","tamam","Ados","добра","ঠিক আছে","uredu","Добре","D'acord","OK","Hǎo","Hǎo","Accede","u redu","OK","Okay","OK","OK","bone","Okei","kunnossa","D'accord","OK","Ok","კარგი","OK","Εντάξει","ઠીક છે","OK","KO","OK","ठीक","OK","rendben","Allt í lagi","Ọ DỊ MMA","baik","OK","ok","[OK]","OK","ಸರಿ","ЖАРАЙДЫ МА","យល់ព្រម","승인","OK","ຕົກ​ລົງ","Bene","labi","Gerai","ok","добро","ok","okey","ശരി","kollox sew","OK","ठीक आहे","БОЛЖ БАЙНА УУ","ရလား","ठिक छ","OK","Chabwino","ok","Está bem","ਠੀਕ ਹੈ","O.K","ОК","OK","Ceart","ок","OK","Zvakanaka","හරි","OK","v redu","OK","DE ACUERDO","OKÉ","sawa","ok","OK","Хуб","சரி","అలాగే","ตกลง","tamam","добре","OK","được","iawn","Kulungile","O DARA","KULUNGILE"]
["kliënte","Klientët","ደንበኞች","Հաճախորդներ","Müştərilər","Bezeroak","кліенты","গ্রাহকরা","Kupci","Клиенти","Clients","Mga kustomer","Gùkè","Gùkè","Clienti","Kupci","Zákazníci","kunder","Klanten","Customers","Klientoj","Kliendid","Asiakkaat","Les clients","Klanten","Clientes","კლიენტები","Kunden","Οι πελάτες","ગ્રાહકો","Kliyan","Abokan ciniki","Customers","ग्राहकों","Customers","Az ügyfelek","Viðskiptavinir","Ahịa","Pelanggan","Custaiméirí","Clienti","顧客","Pelanggan","ಗ್ರಾಹಕರು","Клиенттер","អតិថិជន","고객","кардарлар","ລູກຄ້າ","customers","Klienti","Klientai","Clienten","Клиенти","mpanjifa","Pelanggan","ഉപഭോക്താക്കൾ","Klijenti","Kaihoko","ग्राहक","Хэрэглэгчид","ဖောက်သည်များ","ग्राहकहरू","Kunde","Amakhasimende","Klienci","clientes","ਗਾਹਕ","clienţii","Клиенты","Tagata faʻatau","Luchd-cleachdaidh","Купци","Barekisi","Terenda","පාරිභෝගිකයන්","zákazníci","Stranke","Macaamiisha","Clientes","konsumén","Wateja","kunder","Mga customer","Муштариён","வாடிக்கையாளர்கள்","వినియోగదారుడు","ลูกค้า","Müşteriler","Клієнти","Xaridorlar","Khách hàng","Cwsmeriaid","Abaxhasi","Awon onibara","Amakhasimende"]
["Artikels","Artikuj","ጽሑፎች","Հոդվածներ","Məqalələr","artikuluak","артыкулы","প্রবন্ধ","Članci","статии","Articles","Mga artikulo","Yòngpǐn","Yòngpǐn","Articuli","Članci","Články","Artikler","artikelen","Articles","Artikoloj","Artiklid","Artikkelit","Des articles","Artikelen","Artigos","სტატიები","Artikel","Άρθρα","લેખ","Atik","Articles","Articles","सामग्री","Articles","Cikkek","Greinar","Isiokwu","Artikel","Airteagail","articoli","記事","Artikel","ಲೇಖನಗಳು","Мақалалар","អត្ថបទ","조항","макалалар","ບົດຄວາມ","vasa","Raksti","Straipsniai","Artikelen","Статии","Articles","Artikel","ലേഖനങ്ങൾ","Artikoli","Tuhinga_","लेख","Нийтлэл","ဆောင်းပါးများ","लेखहरू","Artikler","Nkhani","Artykuły","Artigos","ਲੇਖ","Articole","статьи","Mataupu","Artaigilean","Чланци","Lihlooho","Zvinyorwa","ලිපි","články","Članki","Maqaallo","Artículos","Artikel","Makala","artiklar","Mga Artikulo","Мақолаҳо","கட்டுரைகள்","వ్యాసాలు","บทความ","Makaleler","Статті","Maqolalar","Bài viết","Erthyglau","Amanqaku","Awọn akọsilẹ","Izihloko"]
["Oor my","Rreth meje","ስለ እኔ","Իմ մասին","Mənim haqqımda","Niri buruz","Пра мяне","আমার সম্পর্কে","O meni","За мен","Sobre mi","Mahitungod kanako","Guānyú wǒ","Guānyú wǒ","Per mè","O meni","O mně","Om mig","Over mij","About me","Pri mi","Minust","Minusta","À propos de moi","Oer my","Sobre min","ჩემს შესახებ","Über mich","Σχετικά με μένα","મારા વિશે","De mwen","Akai na","About me","मेरे बारे में","About me","Rólam","Um mig","Gbasara m","Tentang saya","Mar gheall orm","A proposito di me","私について","Babaging kula","ನನ್ನ ಬಗ್ಗೆ","Мен туралы","អំពី​ខ្ញុំ","나에 대해서","Мен жөнүндө","ກ່ຽວ​ກັບ​ຂ້ອຍ","de me","Par mani","Apie mane","Iwwer mech","За мене","Momba ahy","Tentang saya","എന്നെ പറ്റി","Dwari","Mōku","माझ्याबद्दल","Миний тухай","ကိုယ့်အကြောင်း","मेरो बारे","Om meg","Za ine","O mnie","Sobre mim","ਮੇਰੇ ਬਾਰੇ ਵਿੱਚ","Despre mine","Обо мне","Faatatau ia a'u","Mum dhèidhinn","О мени","Ka 'na","Nezvangu","මා ගැන","O mne","O meni","Aniga igu saabsan","Sobre mi","Tentang abdi","Kuhusu mimi","Om mig","Tungkol sa Akin","Дар бораи ман","என்னை பற்றி","నా గురించి","เกี่ยวกับฉัน","Benim hakkımda","Про мене","Men haqimda","Về tôi","Amdanaf i","Ngam","Nipa mi","Mayelana nami"]
["Soek","kërkim","ፍለጋ","Որոնում","Axtarış","Search","пошук","অনুসন্ধান","Pretraga","Търсене","Cerca","Pagpangita","Sōusuǒ","Sōusuǒ","Ricerca","traži","Vyhledávání","Søg","Zoeken","Search","Serĉi","Otsing","Hae","Chercher","Sykje","Busca","ძიება","Suche","Ψάξιμο","શોધો","Search","Binciken","Search","खोज","Search","Keresés","Leita","Chọọ","Pencarian","Cuardaigh","Ricerca","サーチ","Nggoleki","ಹುಡುಕಿ","Іздеу","ស្វែងរក","수색","издөө","ຄົ້ນຫາ","Quaerere","Meklēt","Paieška","Sich","Пребарување","Search","Carian","തിരയുക","Fittex","Rapua","शोध","Хайлт","ရှာဖှေ","खोजी गर्नुहोस्","Søke","Sakani","Szukaj","Pesquisa","ਖੋਜ","Căutare","Поиск","Saili","Rannsaich","Претрага","Batla","Tsvaga","සෙවීම","Vyhľadávanie","Iskanje","Raadi","Buscar","neangan","Tafuta","Sök","Paghahanap","Ҷустуҷӯ","தேடல்","శోధన","ค้นหา","Arama","Пошук","Qidirmoq","Tìm kiếm","Chwilio","Usesho","Ṣawari","Sesha"]
["Nuwe faktuur","Fatura e re","አዲስ ደረሰኝ","Նոր հաշիվ","Yeni faktura","Faktura berria","Новы рахунак-фактура","নতুন চালান","Nova faktura","Нова фактура","Factura nova","Bag-ong Invoice","Xīn fāpiào","Xīn fāpiào","Nova fattura","Nova faktura","Nová faktura","Ny faktura","Nieuwe factuur","New Invoice","Nova Fakturo","Uus arve","Uusi lasku","Nouvelle facture","Nije ynvoeding","Nova Factura","ახალი ფაქტურა","Neue Rechnung","Νέο Τιμολόγιο","નવું ભરતિયું","Nouvo bòdwo","Sabuwar Sayarwa","New Invoice","नया चालान","New Invoice","Új számla","Nýtt innheimtuseðill","Ndenye ọhụrụ","Faktur baru","Sonrasc Nua","Nuova fattura","新しい請求書","Invoice anyar","ಹೊಸ ಸರಕುಪಟ್ಟಿ","Жаңа шот","វិក្កយបត្រថ្មី","새로운 인보이스","Болумушту-дүмүрчөк","ໃບແຈ້ງຫນີ້ໃຫມ່","cautionem novum","Jauns rēķins","Nauja sąskaita","Nei Inkoice","Нова фактура","New Invoice","Invois Baru","പുതിയ ഇൻവോയ്സ്","Fattura Ġdida","New Account","नवीन चलन","Шинэ нэхэмжлэх","နယူးငွေတောင်းခံလွှာ","नयाँ इनभ्वाइस","Ny faktura","Ndalama Yatsopano","Nowa faktura","Nova Fatura","ਨਵਾਂ ਇਨਵੌਇਸ","Factura nouă","Новый счет-фактура","New Faletupe","Cuidhteas ùr","Нова фактура","Invoice e ncha","New Invoice","නව ඉන්වොයිසිය","Nová faktúra","Nov račun","Lacag Cusub","Nueva factura","invoice anyar","Invozi mpya","Ny faktura","Bagong Invoice","Навсози нав","புதிய விலைப்பட்டியல்","కొత్త వాయిస్","ใบแจ้งหนี้ใหม่","Yeni fatura","Новий рахунок-фактура","Yangi hisob-faktura","Hóa đơn mới","Anfoneb Newydd","Invoyisi entsha","Titun Titun","Invoyisi entsha"]
["Stuur met Outlook","Dërgo me Outlook","ከኤቲፕል ጋር ይላኩ","Ուղարկել Outlook- ով","Outlook ilə göndərin","Bidali Outlook-era","Адправіць з перспектыву","আউটলুক দিয়ে পাঠান","Pošaljite sa Outlook-om","Изпратете с Outlook","Envia amb Outlook","Ipadala uban sa Outlook","Yǔ Outlook yīqǐ fāsòng","Yǔ Outlook yīqǐ fāsòng","Mandà cù Outlook","Pošalji s programom Outlook","Odeslat s aplikací Outlook","Send med Outlook","Stuur met Outlook","Send with Outlook","Sendu kun Outlook","Saada Outlookiga","Lähetä Outlookin avulla","Envoyer avec Outlook","Stjoer mei Outlook","Enviar con Outlook","გამოგზავნეთ Outlook- ში","Senden Sie mit Outlook","Αποστολή με το Outlook","Outlook સાથે મોકલો","Voye ak Outlook","Aika tare da Outlook","Send with Outlook","आउटलुक के साथ भेजें","Send with Outlook","Küldés Outlook-kal","Senda með Outlook","Zipu Outlook","Kirim dengan Outlook","Seol le Outlook","Invia con Outlook","Outlookで送信","Kirim karo Outlook","ಔಟ್ಲುಕ್ನೊಂದಿಗೆ ಕಳುಹಿಸಿ","Outlook арқылы жіберу","ផ្ញើជាមួយ Outlook","Outlook으로 보내기","Outlook менен жөнөтүү","ສົ່ງກັບ Outlook","Mitte in Outlook","Nosūtīt ar Outlook","Siųsti \"Outlook\"","Suergt mat Outlook","Испрати со Outlook","Alefaso amin'ny Outlook","Hantar dengan Outlook","Outlook ഉപയോഗിച്ച് അയയ്ക്കുക","Ibgħat bil-Prospetti","Tukua me Outlook","आउटलुक सह पाठवा","Outlook ашиглан илгээх","Outlook နဲ့အတူ Send","आउटलुकसँग पठाउनुहोस्","Send med Outlook","Tumizani ndi Outlook","Wyślij w Outlooku","Enviar com o Outlook","ਆਉਟਲੁੱਕ ਦੇ ਨਾਲ ਭੇਜੋ","Trimiteți cu Outlook","Отправить в Outlook","Auina atu ma Outlook","Cuir le Outlook","Пошаљите са Оутлоок-ом","Romella le Outlook","Tumira neAxplook","Outlook සමඟ යවන්න","Odoslať pomocou programu Outlook","Pošlji z Outlookom","U dir Outlook","Enviar con Outlook","Kirim surélék kalawan Outlook","Tuma na Outlook","Skicka med Outlook","Ipadala sa Outlook","Ирсол намоед","அவுட்லுக் மூலம் அனுப்பவும்","Outlook తో పంపండి","ส่งด้วย Outlook","Outlook ile Gönder","Надіслати з Outlook","Outlook bilan jo'natish","Gửi bằng Outlook","Anfon gydag Outlook","Thumela nge Outlook","Firanṣẹ pẹlu Outlook","Thumela nge-Outlook"]
["Stoor PDF","Ruaj PDF","ፒዲኤፍ አስቀምጥ","Save PDF","PDF saxlaya bilərsiniz","Gorde PDFa","Захаваць у фармаце PDF","পিডিএফ সংরক্ষণ করুন","Spremi PDF","Запазване на PDF файла","Desa PDF","Save PDF","Bǎocún PDF","Bǎocún PDF","Salvate PDF","Spremi PDF","Uložit PDF","Gem PDF","Bewaar PDF","Save PDF","Konservi PDF","Salvesta PDF","Tallenna PDF","Enregistrer PDF","Besparje PDF","Gardar PDF","გადავარჩინოთ PDF","PDF speichern","Αποθήκευση PDF","PDF સાચવો","Save PDF","Ajiye PDF","Save PDF","पीडीएफ सहेजें","Save PDF","PDF mentése","Vista PDF","Zọpụta PDF","Simpan PDF","Sábháil PDF","Salva PDF","PDFを保存","Simpen PDF","ಪಿಡಿಎಫ್ ಉಳಿಸಿ","PDF сақтаңыз","រក្សាទុក PDF","PDF 저장","Save PDF","ບັນທຶກ PDF","nisi PDF","Saglabāt PDF","Išsaugoti PDF","PDF erstellen","Зачувај PDF","Save PDF","Simpan PDF","PDF സംരക്ഷിക്കുക","Ħlief PDF","Tiaki PDF","PDF जतन करा","PDF хадгална уу","PDF ကို Save","पीडीएफ बचत गर्नुहोस्","Lagre PDF","Sungani PDF","Zapisz PDF","Salvar PDF","PDF ਸੁਰੱਖਿਅਤ ਕਰੋ","Salvați PDF","Сохранить PDF","Faasao PDF","Sàbhail PDF","Сачувај ПДФ","Boloka PDF","Save PDF","PDF කරන්න","Uložiť PDF","Shrani PDF","Kaydso PDF","Guardar PDF","Simpen PDF","Hifadhi PDF","Spara PDF","I-save ang PDF","Пахши PDF","PDF ஐ சேமிக்கவும்","PDF ని సేవ్ చేయండి","บันทึก PDF","PDF'yi kaydet","Зберегти PDF","PDF-ni saqlang","Lưu PDF","Cadw PDF","Gcina iFayile","Fi PDF pamọ","Londoloza i-PDF"]
["Kredietnota","Shënim i kredisë","የተሸጠ ዕቃ ሲመለስ የሚሰጥ ወረቀት","Վարկային ավիզո","Kredit qeydi","Kreditu-oharra","крэдытавых авізо","ক্রেডিট নোট","Kreditna nota","Кредитна нота","Nota de crèdit","Pahinumdom","Xìnyòng piàojù","Xìnyòng piàojù","Nota di creditu","Obavijest o kreditu","Dobropis","Kreditnota","Creditnota","Credit note","Kredita noto","Krediitkaardid","Luottotieto","Note de crédit","Credit note","Nota de crédito","საკრედიტო შენიშვნა","Gutschrift","Πιστωτικό σημείωμα","ઉધાર નોધ","Kredi nòt","Bayanin bashi","Credit note","क्रेडिट नोट","Credit note","Jóváírás","Inneignarnótu","Ihe ndekọ ego","Nota kredit","NÓTA creidmheasa","Nota di credito","クレジットノート","Cathetan kredit","ಕ್ರೆಡಿಟ್ ಟಿಪ್ಪಣಿ","Несие ескертуі","ចំណាំឥណទាន","신용 노트","Кредиттик эскертме","ຫມາຍເຫດສິນເຊື່ອ","Credit note","Kredīta vēstule","Kreditinė kortelė","Guttschrëft","Кредитна белешка","Bola","Nota kredit","ക്രെഡിറ്റ് നോട്ട്","Nota ta 'kreditu","Tuhi nama","उधार पत्र","Зээлийн тэмдэглэл","credit note ကို","क्रेडिट नोट","Kreditnota","Mawu a ngongole","Nota kredytowa","Nota de crédito","ਕਰੈਡਿਟ ਸੂਚਨਾ","Notă de credit","Кредитная записка","Faʻaaliga aitalafu","Nòta creideis","Књижно","Tlaleho ea mokoloto","Chikwereti chinyorwa","ණය සටහන","Úverová poznámka","Dobropis","Qoraalka amaahda","Nota de crédito","catetan kiridit","Maelezo ya Mikopo","Kreditnotering","Tala ng credit","Ҳуҷҷати қарзӣ","கடன் குறிப்பு","క్రెడిట్ గమనిక","ใบลดหนี้","Kredi notu","Кредитове авізо","Kredit eslatma","Ghi chú tín dụng","Nodyn credyd","Isaziso setyala","Ike akọsilẹ","Incwadi yesikweletu"]
["Kliëntnr","Klienti nr","የደንበኛ ቁጥር","Հաճախորդի համարը","Müştəri yoxdur","Bezeroa ez","няма кліентаў","গ্রাহক নং","Klijent br","Клиентски номер","Client no","Customer no","Kèhù biānhào","Kèhù biānhào","Cliente micca","Klijent br","Zákazník č","Kunde nr","Klant Nr","Customer no","Kliento ne","Kliendi nr","Asiakasnumero","No de client","Klant no","Cliente non","დამკვეთი არ","Kunden-Nr","Αριθμός πελάτη","ગ્રાહક નંબર","Kliyan pa gen okenn","Abokin ciniki ba","Customer no","ग्राहक संख्या","Customer no","Ügyfélszám","Viðskiptavinur nr","Onye ahịa enweghị","Nomor pelanggan","Uimh","Cliente no","顧客番号","Ora ana pelanggan","ಗ್ರಾಹಕ ಸಂಖ್ಯೆ","Клиент жоқ","អតិថិជនគ្មាន","고객 없음","Кардар жок","ລູກຄ້າບໍ່ມີ","Customer nihil","Klienta Nr","Kliento Nr","Client no","Клиент бр","Customer no","Nombor pelanggan","ഉപഭോക്താവ് ഇല്ല","Klijent nru","Kiritaki kore","ग्राहक क्रमांक","Харилцагчийн дугаар","ဖောက်သည်မျှ","ग्राहक संख्या","Kunde nr","Wogulitsa ayi","Numer klienta","Cliente não","ਗਾਹਕ ਨੰਬਰ","Client nr","№ клиента","Leai le tagata leai","Àireamh neach-cleachdaidh","Клијент бр","Mokhanni ha a","Mutengi kwete","ගණුදෙනුකරු අංක","Zákaznícke číslo","Stranka št","Maya macaamiisha","Ningún cliente","euweuh nasabah","Wateja hakuna","Kund nej","Numero ng kustomer","Не мизоҷ","வாடிக்கையாளர் இல்லை","కస్టమర్ సంఖ్య","หมายเลขลูกค้า","Müşteri numarası","Клієнт №","Xaridor yo'q","Khách hàng không","Rhif Cwsmer","Umthengi akukho","Onibara ko si","Ikhomenti ayikho"]
["Adres 1","adresa 1","አድራሻ 1","Հասցե 1","Ünvan 1","Helbidea 1","адрас 1","ঠিকানা 1","Adresa 1","Адрес 1","Adreça 1","Address 1","Dìzhǐ 1","Dìzhǐ 1","Indirizzu 1","adresa 1","Adresa 1","adresse 1","adres 1","Address 1","Adreso 1","Aadress 1","osoite 1","Adresse 1","Adres 1","Enderezo 1","მისამართი 1","Adresse 1","Διεύθυνση 1","સરનામું 1","adrès 1","Adireshin 1","Address 1","पता 1","Address 1","Cím 1","heimilisfang 1","Adreesị 1","Alamat 1","Seoladh 1","Indirizzo 1","住所（1","Alamat 1","ವಿಳಾಸ 1","мекен-жай 1","អាសយដ្ឋាន 1","주소 1","дарек 1","ທີ່​ຢູ່ 1","oratio I","Adrese 1","1 Adresas","Adress 1","адреса 1","Adiresy 1","alamat 1","വിലാസം 1","Indirizz 1","Wāhitau 1","पत्ता 1","Хаяг 1","လိပ်စာ: 1","ठेगाना 1","Adresse 1","Adilesi 1","Adres 1","Endereço 1","ਪਤਾ 1","Adresa 1","адрес 1","Tuatusi 1","Seòladh 1","Адреса 1","Aterese ea 1","Tsamba 1","ලිපිනය 1","Adresa 1","Naslov 1","Cinwaanka 1aad","Dirección 1","Alamat 1","Anwani 1","Adress 1","Address 1","Суроға 1","முகவரி 1","చిరునామా 1","ที่อยู่ 1","Adres 1","адреса 1","1 Manzil","địa chỉ 1","Cyfeiriad 1","Idilesi 1","Adirẹsi 1","Ikheli 1"]
["adres 2","Adresa 2","አድራሻ 2","Հասցե 2","ünvan 2","Helbidea 2","адрас 2","ঠিকানা ২","adresa 2","Адрес 2","Adreça 2","Address 2","Dìzhǐ 2","Dìzhǐ 2","Indirizzu 2","Adresa 2","Adresa 2","Adresse 2","Adres 2","Address 2","Adreso 2","Aadress 2","Osoite 2","Adresse 2","Adres 2","Enderezo 2","მისამართი 2","Adresse 2","Διεύθυνση 2","સરનામું 2","Adrès 2","Adireshin 2","Address 2","पता द्वितीय","Address 2","cím 2","Heimilisfang 2","Adreesị 2","alamat 2","Seoladh 2","Indirizzo 2","アドレス2","Alamat 2","ವಿಳಾಸ 2","Мекен-жайы 2","អាសយដ្ឋាន 2","주소 2","Дарек 2","ທີ່ຢູ່ 2","oratio II","adrese 2","2-as Adresas","Adress 2","адреса 2","Adiresy 2","Alamat 2","വിലാസം 2","Indirizz 2","Wāhitau 2","पत्ता 2","Хаяг 2","လိပ်စာ 2","ठेगाना 2","adresse 2","Adilesi 2","adres 2","Endereço 2","ਪਤਾ 2","Adresa 2","Адрес 2","Tuatusi 2","Seòladh 2","Адреса 2","Aterese ea 2","Tsamba 2","ලිපිනය 2","adresa 2","naslov 2","Cinwaanka 2","Dirección 2","alamat 2","Anwani 2","Adress 2","Address 2","Суроға 2","முகவரி 2","చిరునామా 2","ที่อยู่ 2","Adres 2","Адреса 2","Manzil 2","Địa chỉ 2","Cyfeiriad 2","Idilesi 2","Adirẹsi 2","Ikheli 2"]
["Posnr","Postimi nr","ልጥፍ ይለጥፉ","Թեմա","Yoxdur","Ez argitaratu","паведамленне не","পোস্ট না","Br","Публикация №","Publicació núm","Post no","Post no","Post no","Post no","Post br","Číslo příspěvku","Postnr","Post nr","Post no","Afiŝu ne","Posti nr","Post no","Publier non","Post no","Publicar non","არა","Beitrag Nr","Δημοσίευση αρ","પોસ્ટ નં","Post non","Baza a asali","Post no","पोस्ट नं","Post no","Post nincs","Póstur nr","Bubata ọ dịghị","Posting no","Post Uimh","Post no","ポストノー","Kirim ora","ಪೋಸ್ಟ್ ಇಲ್ಲ","Жіберу жоқ","ភ្នំពេញប៉ុស្តិ៍លេខ","게시물 번호","Post жок","Post no","Post neque","Post Nr","Pašto Nr","Post no","Пост. Бр","Post no","Hantar no","പോസ്റ്റുകളൊന്നുമില്ല","Post nru","Tukua no","पोस्ट क्रमांक","Үгүй ээ","အဘယ်သူမျှမတင်ရန်","पोस्ट नगर्नुहोस्","Postnr","Sakani positi","Opublikuj nr","Postar não","ਪੋਸਟ ਨੰਬਰ","Mesajul nr","Сообщение no","Faʻailoga le leai","Àireamh puist","Пошта бр","Tlaleho ea poso","Post no","තැපැල් අංකය","Príspevok č","Št","No post","Publicar no","pos euweuh","Chapisha chapisho","Postnr","Mag-post ng no","Не пост","இடுகை இல்லை","పోస్ట్ లేదు","หมายเลขไปรษณีย์","Gönderi yok","Публікація №","Yo'q","Đăng không","Post rhif","Iposi engekho","Ifiranṣẹ ko si","Thumela akukho"]
["Posnr","Postimi nr","ልጥፍ ይለጥፉ","Թեմա","Yoxdur","Ez argitaratu","паведамленне не","পোস্ট না","Br","Публикация №","Publicació núm","Post no","Yóuzhèng biānhào","Yóuzhèng biānhào","Post no","Post br","Číslo příspěvku","Postnr","Post nr","Post no","Afiŝu ne","Posti nr","Post no","Publier non","Post no","Publicar non","არა","Beitrag Nr","Δημοσίευση αρ","પોસ્ટ નં","Post non","Baza a asali","Post no","पोस्ट नं","Post no","Post nincs","Póstur nr","Bubata ọ dịghị","Posting no","Post Uimh","Post no","ポストノー","Kirim ora","ಪೋಸ್ಟ್ ಇಲ್ಲ","Жіберу жоқ","ភ្នំពេញប៉ុស្តិ៍លេខ","게시물 번호","Post жок","Post no","Post neque","Post Nr","Pašto Nr","Post no","Пост. Бр","Post no","Hantar no","പോസ്റ്റുകളൊന്നുമില്ല","Post nru","Tukua no","पोस्ट क्रमांक","Үгүй ээ","အဘယ်သူမျှမတင်ရန်","पोस्ट नगर्नुहोस्","Postnr","Sakani positi","Opublikuj nr","Postar não","ਪੋਸਟ ਨੰਬਰ","Mesajul nr","Сообщение no","Faʻailoga le leai","Àireamh puist","Пошта бр","Tlaleho ea poso","Post no","තැපැල් අංකය","Príspevok č","Št","No post","Publicar no","pos euweuh","Chapisha chapisho","Postnr","Mag-post ng no","Не пост","இடுகை இல்லை","పోస్ట్ లేదు","หมายเลขไปรษณีย์","Hayır gönder","Публікація №","Yo'q","Đăng không","Post rhif","Iposi engekho","Ifiranṣẹ ko si","Thumela akukho"]
["plek","vend","ቦታ","Տեղ","Yeri","Lekua","месца","জায়গা","Mesto","място","Lloc","Dapit","Dìdiǎn","Dìdiǎn","Place","Mjesto","Místo","Placere","Plaats","Place","Loko","Koht","Paikka","Endroit","Plak","Lugar","ადგილი","Ort","Θέση","પ્લેસ","Mete","Wuri","Place","जगह","Place","Hely","Staður","Ebe","Tempat","Áit","Posto","場所","Panggonan","ಸ್ಥಳ","Орны","ទីកន្លែង","장소","орун","ສະຖານທີ່","locus","Vieta","Vieta","Place","Место","Place","Tempat","സ്ഥലം","Post","Waahi","ठिकाण","Байрлал","နေရာ","स्थान","Plass","Malo","Miejsce","Lugar, colocar","ਸਥਾਨ","Loc","Место","Nofoaga","Àite","Место","Sebaka","Nzvimbo","පෙදෙස","miesto","Kraj","Goobta","Lugar","tempat","Mahali","Plats","Lugar","Ҷой","பிளேஸ்","ప్లేస్","สถานที่","yer","Місце","Joy","Địa điểm","Lle","Indawo","Gbe","Indawo"]
["Kontak persoon","Personi kontaktues","Contact person","Կոնտակտային անձը","Əlaqələndirici şəxs","Harremanetarako pertsona","Кантактная асоба","যোগাযোগ করুন","Kontakt osoba","Лице за контакт","Persona de contacte","Tawohan ang tawo","Liánxì rén","Liánxì rén","Persuna di cuntattu","Osoba za kontakt","Kontaktní osoba","Kontaktperson","Contactpersoon","Contact person","Kontaktulo","Kontaktisik","Yhteyshenkilö","Contact","Kontaktpersoan","Persoa de contacto","საკონტაქტო პირი","Gesprächspartner","Πρόσωπο επικοινωνίας","સંપર્ક વ્યક્તિ","Moun pou kontakte","Mai lamba","Contact person","संपर्क सूत्र","Contact person","Kapcsolattartó","Tengiliður","Onye Mkpọtụrụ","Orang yang dapat dihubungi","Duine teagmhála","Referente","連絡窓口","Kontak wong","ಸಂಪರ್ಕ ವ್ಯಕ್ತಿ","Байланыс жасайтын тұлға","អ្នក​ដែល​អាច​ទាក់ទង​បាន","연락 인","Байланышуучу адам","ບຸກຄົນທີ່ຕິດຕໍ່","Contact persona","Kontaktpersona","Kontaktinis asmuo","Kontakt Persoun","Лице за контакт","Olona ifandraisana","Orang kenalan","സമ്പർക്ക വ്യക്തി","Persuna ta 'kuntatt","Te tangata whakapā","संपर्क व्यक्ती","Холбогдох хүн","ဆက်သွယ်ရန်ပုဂ္ဂိုလ်","सम्पर्क व्यक्ति","Kontaktperson","Wolumikizana naye","Osoba kontaktowa","Pessoa de contato","ਵਿਅਕਤੀ ਨੂੰ ਸੰਪਰਕ ਕਰੋ","Persoană de contact","Контактное лицо","Tagata faʻafesoʻotaʻi","Neach-aithne","Контакт особа","Moikarabelli","Munhu anobata","අදාළ පුද්ගලයා","Kontaktná osoba","Kontaktna oseba","Qofka xiriiriyaha","Persona de contacto","Perwakilan","Kuwasiliana na mtu","Kontaktperson","Makipag-ugnay sa tao","Масъули Тамос","தொடர்பு நபரை","వ్యక్తి సంప్రదించండి","บุคคลที่ติดต่อ","İlgili kişi","Контактна особа","Bog'lanish uchun shahs","Người liên lạc","Person Cyswllt","Umntu woqhagamshelo","Ẹniti a o kan si","Umuntu othintwayo"]
["e-pos","Email","ኢሜይል","Email","E-poçt","Emaila","E-mail","ইমেইল","Email","електронна поща","Correu electrònic","Email","Diànzǐ yóujiàn","Diànzǐ yóujiàn","Email","E-mail","E-mailem","E-mail","E-mail","Email","Retpoŝto","E-post","Sähköposti","Email","E-post","Correo electrónico","ელ.ფოსტა","Email","ΗΛΕΚΤΡΟΝΙΚΗ ΔΙΕΥΘΥΝΣΗ","ઇમેઇલ","Imèl","Imel","Email","ईमेल","Email","Email","Email","Email","E-mail","Ríomhphost","E-mail","Eメール","Email","ಇಮೇಲ್","Электрондық пошта","អ៊ីមែល","이메일","E-mail","ອີເມວ","Email","E-pasts","El. Paštas","Email","Е-пошта","Email","E-mel","ഇമെയിൽ","Email","Īmēra","ईमेल","И-мэйл хаяг","အီးမေးလ်ပို့ရန်","ईमेल","e-post","Imelo","E-mail","O email","ਈ - ਮੇਲ","E-mail","Эл. адрес","Imeli","Post-d","Емаил","Imeile","Email","විද්යුත් තැපෑල","e-mail","E-naslov","Email","Email","email","Barua pepe","E-post","Email","Email","மின்னஞ்சல்","ఇమెయిల్","อีเมล์","E-posta","Електронна пошта","E-pochta","E-mail","E-bost","Imeyili","Imeeli","I-imeyili"]
["Sperdatums","Ditë të shkuara","ቀናቶች","Շնորհիվ օրեր","Günlərdən bəri","Egun onak","З-за дні","দরুন দিন","Due days","Дни на изтичане","Dies previs","Tungod sa mga adlaw","Dào qí rì","Dào qí rì","Due ghjorni","Dane","Dny splatnosti","Forfaldne dage","Vervallen dagen","Due days","Due tagoj","Tähtajad","Päivät","Jours dus","Troch dagen","Días vencidos","დღეების განმავლობაში","Fällige Tage","Λήγει ημέρες","કારણે ટ્રેડીંગ","Akòz jou","Saboda kwanaki","Due days","नियत दिनों","Due days","Esedékes napok","Vegna daga","Kwa ụbọchị","Berhari-hari","Laethanta dlite","Giorni","締め切り日","Amarga dina","ಕಾರಣ ದಿನಗಳು","Мерзімді күндер","ថ្ងៃដល់កំណត់","마감일","улам күн","ວັນທີ່ຄົບກໍາຫນົດ","ob diebus","Pienācīgas dienas","Per daug dienų","Wéinst Deeg","Должни денови","Andro mahafinaritra","Hari terhutang","കുറവ് ദിവസങ്ങൾ","Jiem mistednin","He maha nga ra","देय दिवस","Хугацаатай өдөр","ရက်ပေါင်းကြောင့်","कारण दिन","Forfallsdato","Masiku oyenera","Due dni","Dias devidos","ਦੇਣ ਦੇ ਦਿਨ","Zile lungi","Срок действия","Faʻaaoga aso","Làithean dùinte","Дуе даис","Matsatsi a hlokahalang","Due mazuva","නියමිත දිනවල","Dni splatnosti","Zadosti dni","Maalmo maalmeed","Días vencidos","poé alatan","Kutokana na siku","Skyldiga dagar","Dahil araw","Рӯзҳои охир","காரணமாக நாட்கள்","గడువు రోజులు","วันที่ครบกำหนด","Vade günleri","Достатні дні","Keyingi kunlar","Ngày đáo hạn","Dyddiau dyladwy","Ngenxa yeentsuku","Fun ọjọ","Izinsuku ezifanelekile"]
["afslag","zbritje","ቅናሽ","Զեղչ","Endirim","Deskontua","зніжка","ডিসকাউন্ট","Popust","отстъпка","Descompte","Diskwento","Zhékòu","Zhékòu","Discount","Popust","Sleva","Rabat","Korting","Discount","Rabato","Allahindlus","Alennus","Remise","Koarting","Desconto","ფასდაკლება","Rabatt","Εκπτωση","ડિસ્કાઉન્ટ","Rabè","Dama","Discount","छूट","Discount","Kedvezmény","Afsláttur","Ego","Diskon","Lascaine","Sconto","ディスカウント","Diskon","ರಿಯಾಯಿತಿ","Жеңілдік","បញ្ចុះតម្លៃ","할인","арзандатуу","ສ່ວນລົດ","Buy","Atlaide","Nuolaida","Remise","Попуст","Discount","Diskaun","ഡിസ്കൌണ്ട്","Discount","Te utu","सवलत","Хөнгөлөлт","လျှော့စျေး","छुट","Rabatt","Zopereka","Zniżka","Desconto","ਛੂਟ","Reducere","скидка","Faʻasalaga","Lùghdachadh","Попуст","Tlhōlisano","Discount","වට්ටම්","zľava","Popust","Discount","Descuento","potongan harga","Punguzo","Rabatt","Discount","Тахфӣ","தள்ளுபடி","డిస్కౌంట్","ส่วนลด","İndirim","Знижка","Dasturi","Giảm giá","Disgownt","Isaphulelo","Iye","Isaphulelo"]
["Artikelnr","Neni nr","አንቀጽ ቁጥር","Հոդված no","Maddə no","Artikulua ez","Артыкул няма","অনুচ্ছেদ নাম্বার","Član br","Чл","Article núm","Artikulo no","Article no","Article no","Articulu nè","Članak br","Článek č","Artikel nr","Artikel nummer","Article no","Artikolo n","Artikkel nr","Tuotenro","Numéro d'article","Artikel no","Artigo no","მუხლი No","Artikel Nummer","Άρθρο αρ","લેખ નં","Atik pa gen okenn","Mataki na ashirin da","Article no","लेख कोई","Article no","Cikkszám","Gr","Nkeji edemede","Pasal no","Airteagal uimh","Articolo no","品番なし","Artikel no","ಲೇಖನ ಸಂಖ್ಯೆ","Артикул №","មាត្រា No.","기사 번호","берене жок","Article no","nullum articulum","Pants Nr","Straipsnis Nr","Artikel nee","Член бр","Article no","Perkara no","ലേഖനം നം","Artikolu nru","Tuhinga no","अनु. क्र","Дугаар зүйл","အပိုဒ်မပါ","लेख संख्या","Artikkelnr","Mutu ayi","Nr art","Artigo não","ਆਰਟੀਕਲ ਨੰ","Articolul nr","Статья no","Mataupu leai","Artaigil no","Члан бр","Article ea","Chisungo nha","වගන්තිය අංක","Článok č","Člen št","Qodobka No.","Artículo No","artikel euweuh","Kifungu cha","Artikel nummer","Artikulo no","Мақолаҳои нопурра","கட்டுரை எண்","ఆర్టికల్ సంఖ్య","หมายเลขบทความ","Makale numarası","Стаття №","Maqola no","Điều số","Erthygl rhif","Isiqendu akukho","Abala ko","Isigaba no"]
["beskrywing","Përshkrim","መግለጫ","Նկարագրություն","Təsvir","deskribapena","апісанне","বিবরণ","Opis","описание","Descripció","Deskripsiyon","Miáoshù","Miáoshù","Descrizzione","Opis","Popis","Beskrivelse","Beschrijving","Description","Priskribo","Kirjeldus","Kuvaus","La description","Beskriuwing","Descrición","აღწერა","Beschreibung","Περιγραφή","વર્ણન","Deskripsyon","Bayani","Description","विवरण","Description","Leírás","Lýsing","Nkọwa","Deskripsi","Cur síos","Descrizione","説明","Gambaran","ವಿವರಣೆ","Сипаттама","ការពិពណ៌នា","기술","баяндоо","ລາຍລະອຽດ","Description","Apraksts","apibūdinimas","Beschreiwung","Опис","Description","Penerangan","വിവരണം","Deskrizzjoni","Whakaahuatanga","वर्णन","Тодорхойлолт","ဖေါ်ပြချက်","विवरण","Beskrivelse","Kufotokozera","Opis","Descrição","ਵਰਣਨ","Descriere","Описание","Faʻamatalaga","Tuairisgeul","Опис","Tlhaloso","Tsanangudzo","විස්තර","popis","Opis","Sharaxaad","Descripción","gambaran","Maelezo","Beskrivning","Paglalarawan","Тавсифи","விளக்கம்","వివరణ","ลักษณะ","Açıklama","Опис","Ta'rif","Sự miêu tả","Disgrifiad","Inkcazo","Apejuwe","Incazelo"]
["eenheid","njësi","ክፍል","Բաժին","Vahid","unitatea","блок","একক","Jedinica","Мерна единица","Unitat","Yunit","Dānyuán","Dānyuán","Unità","Jedinica","Jednotka","Enhed","Eenheid","Unit","Unueco","Üksus","yksikkö","Unité","Ienheid","Unidade","ერთეული","Einheit","Μονάδα","એકમ","Inite","Ƙungiya","Unit","इकाई","Unit","Egység","Eining","Otu","Satuan","Aonad","Unità","単位","Unit","ಘಟಕ","Бөлім","ឯកតា","단위","Unit","Unit","Unit","Vienība","Vienetas","Eenheet","Единица","Unit","Unit","യൂണിറ്റ്","Unità","Unit","युनिट","Нэгж","ယူနစ်","यूनिट","Enhet","Chigawo","Jednostka","Unidade","ਇਕਾਈ","Unitate","Ед. изм","Vaega","Aonad","Јединица","Sehlopha","Unit","ඒකකය","jednotka","Enota","Unug","Unidad","kamanunggalan","Kitengo","Enhet","Unit","Қисми","அலகு","యూనిట్","หน่วย","birim","Підрозділ","Birlik","Đơn vị","Uned","Iyunithi","Aini","Unit"]
["prys","çmim","ዋጋ","Գինը","Qiymət","Prezioa","цана","মূল্য","Cijena","Цена","Preu","Presyo","Jiàqián","Jiàqián","U prezzu","Cijena","Cena","Pris","Prijs","Price","Prezo","Hind","Hinta","Prix","Priis","Prezo","ფასი","Preis","Τιμή","કિંમત","Pri","Farashin","Price","मूल्य","Price","Ár","Verð","Ahịa","Harga","Praghas","Prezzo","価格","Rega","ಬೆಲೆ","Бағасы","តំលៃ","가격","баа","ລາຄາ","pretium","Cena","Kaina","Präis","Цена","Price","Harga","വില","Prezz","Utu","किंमत","Үнэ","စျေးနှုန်း","मूल्य","Pris","Mtengo","Cena £","Preço","ਕੀਮਤ","Preț","Цена","Tau","Prìs","Цена","Theko","Mutengo","මිල","cena","Cena","Qiimo","Precio","harga","Bei","Pris","Presyo","Нарх","விலை","ధర","ราคา","Fiyat","Ціна","Narxlari","Giá bán","Pris","Ixabiso","Iye owo","Intengo"]
["BTW%","TVSH%","የተእታ%","ԱԱՀ%","VAT%","BEZ%","ПДВ%","ভ্যাট%","PDV%","ДДС %","IVA%","VAT%","Zēngzhí shuì%","Zēngzhí shuì%","VAT%","PDV %","KÁĎ %","Moms%","BTW%","VAT %","VAT%","Käibemaks%","ARVONLISÄVERO %","TVA","VAT%","IVE%","დღგ%","MwSt%","ΦΠΑ%","VAT%","VAT%","VAT%","VAT %","वैट%","VAT %","ÁFA %","VSK%","VAT%","PPN%","CBL%","% IVA","VAT％","PPP%","ವ್ಯಾಟ್%","ҚҚС%","% VAT","VAT %","КНС%","VAT%","LACUS%","PVN%","PVM%","TVA%","ДДВ%","VAT%","VAT%","വാറ്റ് %","VAT%","Tatau%","VAT%","НӨАТ%","VAT%","VAT%","MVA%","VAT%","FAKTURA VAT %","IVA%","VAT%","TVA %","НДС%","VAT%","VAT%","ПДВ%","VAT%","VAT%","වැට්%","DPH%","DDV%","VAT%","IVA%","PPN%","VAT%","MOMS %","VAT%","VAT%","VAT%","VAT%","VAT%","KDV%","ПДВ%","QQS%","VAT%","TAW%","VAT%","VAT%","I-VAT%"]
["Artikel korting","Zbritje Neni","የጽሑፍ ቅናሽ","Հոդվածի զեղչը","Maddə endirimi","Artikuluaren deskontua","Артыкул зніжка","আর্টিকেল ছাড়","Član popust","Член отстъпка","Descompte de l'article","Artikulo nga diskwento","Wénzhāng zhékòu","Wénzhāng zhékòu","Article discount","Popust članaka","Článek sleva","Artikel rabat","Artikel korting","Article discount","Artikolo rabato","Artikli allahindlus","Artikkelin alennus","Réduction d'article","Artikel koarting","Desconto do artigo","მუხლი ფასდაკლება","Artikel Rabatt","Άρθρο έκπτωση","લેખ ડિસ્કાઉન્ટ","Atik rabè","Mataki na asali","Article discount","अनुच्छेद छूट","Article discount","Cikk kedvezmény","Gr","Nkeji edemede","Diskon artikel","Lascaine Airteagal","Sconto articolo","記事割引","Artikel diskon","ಲೇಖನ ರಿಯಾಯಿತಿ","Мақала жеңілдік","ការបញ្ចុះតម្លៃអត្ថបទ","물품 할인","берене эсептик","Discount article","buy articuli","Artikula atlaide","Straipsnio nuolaida","Artikel Rabatt","Член попуст","Article discount","Diskaun artikel","ആർട്ടിക്കിൾ കിഴിവ്","Skont fl-Artikolu","Tuhinga whakaheke","लेख सवलत","Дугаар зүйл","အပိုဒ်လျှော့စျေး","लेख छूट","Artikkel rabatt","Nkhani kuchotsera","Zniżka na artykuły","Desconto de artigo","ਆਰਟੀਕਲ ਛੂਟ","Reducere de articole","Скидка по статье","Tala faʻatau","Lùghdachadh artaigil","Члан попуст","Article discount","Chirevo chekutsvaga","වට්ටම","Článok zľava","Članski popust","Qalabka iibka","Descuento del artículo","artikel diskon","Kifungu cha kushoto","Artikelrabatt","Diskwento ng artikulo","Тахфиф","கட்டுரை தள்ளுபடி","ఆర్టికల్ డిస్కౌంట్","ส่วนลดบทความ","Makale indirimi","Стаття знижки","Maqola chegirma","Giảm giá","Disgownt erthygl","Isaphulelo seCandelo","Ipolowo ọja","Isaphulelo sesihloko"]
["Maatskappynaam","Emri i Kompanise","የድርጅት ስም","Ընկերության Անվանումը","Şirkətin adı","Enpresaren izena","Назва кампаніі","কোমপানির নাম","Ime kompanije","Име на фирмата","Nom de la companyia","Ngalan sa kompaniya","Gōngsī míng","Gōngsī míng","Nombre d'una compagnia","Naziv tvrtke","Jméno společnosti","Firmanavn","Bedrijfsnaam","Company name","Nomo de Firmo","Firma nimi","Yrityksen nimi","Nom de la compagnie","Bedriuwsnamme","Nome da compañía","კომპანიის სახელი","Name der Firma","Ονομα εταιρείας","કંપની નું નામ","Konpayi non","Sunan kamfanin","Company name","कंपनी का नाम","Company name","Cégnév","Nafn fyrirtækis","Aha Ụlọ Ọrụ","Nama Perusahaan","Ainm na Cuideachta","Nome della ditta","会社名","Jeneng perusahaan","ಸಂಸ್ಥೆಯ ಹೆಸರು","Компанияның Аты","ឈ្មោះ​ក្រុម​ហ៊ុន","회사 이름","Компаниянын аталышы","ຊື່​ບໍ​ລິ​ສັດ","Nomen corporationis","Kompānijas nosaukums","Įmonės pavadinimas","Firmen Numm","Име на компанија","Anaran'ny orinasa","Nama syarikat","കമ്പനി പേര്","Isem tal-Kumpanija","Ingoa Kamupene","कंपनी नाव","Компаний нэр","ကုမ္ပဏီအမည်","कम्पनी नाम","Selskapsnavn","Dzina Lakampani","Nazwa firmy","Nome da empresa","ਕੰਪਨੀ ਦਾ ਨਾਂ","Numele Companiei","Название компании","Igoa o le kamupani","Ainm a 'Chompanaidh","Име компаније","Lebitso la K'hamphani","Zita rekambani","සමාගම් නාමය","Meno spoločnosti","Ime podjetja","Magaca shirkada","Nombre de empresa","Nami Perusahaan","Jina la kampuni","Företagsnamn","Pangalan ng Kumpanya","Номи ширкат","நிறுவனத்தின் பெயர்","కంపెనీ పేరు","ชื่อ บริษัท","Şirket Adı","Назва компанії","Kopmaniya nomi","Tên công ty","Enw'r cwmni","Igama leKhampani","Orukọ Ile-iṣẹ","Igama Lenkampani"]
["BTW nr","TVSH nr","ተ.እ.ታ. ቁጥር","ԱԱՀ no","KDV no","BEZa ez","ПДВ не","কর নাম্বার","PDV br","ДДС номер","IVA no","VAT no","Zēngzhí shuì biānhào","Zēngzhí shuì biānhào","VAT no","PDV br","DPH č","hvad Nej","Btw nr","VAT no","VAT ne","mida ei","Alv","numéro de TVA","VAT no","IVE non","დღგ არა","Umsatzsteuernummer","Φ.Π.Α.","વેટ નં","VAT pa gen okenn","VAT ba","VAT no","वैट नहीं","VAT no","ÁFA nélkül","VSK nr","VAT mba","PPN no","CBL uimh","IVA n","付加価値税登録番号","PPN no","ವ್ಯಾಟ್ ಇಲ್ಲ","ҚҚС жоқ","លេខពន្ធលើតម្លៃបន្ថែម","부가가치세 없음","КНС жок","VAT no","non LACUS","PVN Nr","PVM Nr","TVA Nee","ДДВ бр","VAT no","VAT tidak","വാറ്റ് നം","VAT nru","Tuhinga o mua","व्हॅट नंबर","НӨАТ-ын тоо","VAT ကိုအဘယ်သူမျှမ","VAT no","Moms nr","VAT ayi","VAT nie","VAT não","ਵੈਟ ਨੰ","TVA nr","НДС нет","VAT leai","Àireamh VAT","пиб","Che. Ea VAT","VAT kwete","අගය මත බදු අංකය","DPH č","DDV št","VAT no","IVA no","PPN euweuh","Hapana ya VAT","momsregistreringsnummer","VAT no","VAT no","VAT எண்","VAT సంఖ్య","หมายเลข VAT","KDV no","ПДВ немає","QQS no","VAT không","Rhif TAW","IVAT akukho","VAT rara","I-VAT cha"]
["Bykomende maatskappy inligting","Informacione shtesë të kompanisë","ተጨማሪ የኩባንያ መረጃ","Լրացուցիչ ընկերությունների տեղեկություններ","Əlavə şirkət məlumatı","Enpresa informazio gehigarria","Дадатковая інфармацыя кампаніі","অতিরিক্ত কোম্পানির তথ্য","Dodatne informacije o kompaniji","Допълнителна информация за фирмата","Informació addicional de l'empresa","Dugang nga info sa kompanya","Qítā gōngsī xìnxī","Qítā gōngsī xìnxī","Cumpagnìa di l'impresa","Dodatne informacije o tvrtki","Další informace o společnosti","Yderligere firmaoplysninger","Aanvullende bedrijfsinformatie","Additional company info","Pliaj kompanio info","Lisateave ettevõtte kohta","Lisää yritystietoja","Informations supplémentaires sur l'entreprise","Oanfoljende bedriuwen info","Información adicional da empresa","დამატებითი კომპანიის ინფორმაცია","Zusätzliche Firmeninformationen","Πρόσθετες πληροφορίες για την εταιρεία","વધારાની કંપની માહિતી","Lòt konpayi info","Ƙarin bayani na kamfanin","Additional company info","अतिरिक्त कंपनी की जानकारी","Additional company info","További céginformáció","Viðbótarupplýsingar um fyrirtæki","Ama ozi ụlọ ọrụ ọzọ","Info perusahaan tambahan","Eolas cuideachta breise","Ulteriori informazioni sull'azienda","会社の追加情報","Info perusahaan tambahan","ಹೆಚ್ಚುವರಿ ಕಂಪನಿ ಮಾಹಿತಿ","Қосымша компания туралы ақпарат","ព័ត៌មានក្រុមហ៊ុនបន្ថែម","회사 정보 추가","Кошумча компания маалымат","ຂໍ້ມູນຂອງບໍລິສັດເພີ່ມເຕີມ","Additional Info comitatu","Papildinformācija par uzņēmumu","Papildoma informacija apie įmonę","Zousätzlech Firma info","Дополнителни информации за компанијата","Additional info company","Maklumat syarikat tambahan","അധിക കമ്പനി വിവരം","Informazzjoni addizzjonali tal-kumpanija","Ētahi atu mōhiohio kamupene","अतिरिक्त कंपनी माहिती","Компаний нэмэлт мэдээлэл","အပိုဆောင်းကုမ္ပဏီအချက်အလက်","अतिरिक्त कम्पनी जानकारी","Ytterligere bedriftsinformasjon","Zowonjezera info kampani","Dodatkowe informacje o firmie","Informação adicional da empresa","ਵਾਧੂ ਕੰਪਨੀ ਜਾਣਕਾਰੀ","Informații suplimentare despre companie","Дополнительная информация о компании","Faamatalaga faaopoopo a kamupani","Fiosrachadh a bharrachd air a 'chompanaidh","Додатне информације о компанији","Lintlha tse ling tsa khampani","Zvimwe zvekambani info","අතිරේක සමාගම් තොරතුරු","Ďalšie informácie o spoločnosti","Dodatne informacije o podjetju","Faahfaahin dheeraad ah shirkadda","Información adicional de la compañía","Tambihan info parusahaan","Maelezo ya kampuni ya ziada","Ytterligare företagsinformation","Karagdagang impormasyon ng kumpanya","Маълумоти иловагии ширкат","கூடுதல் நிறுவனம் தகவல்","అదనపు కంపెనీ సమాచారం","ข้อมูล บริษัท เพิ่มเติม","Ek şirket bilgisi","Додаткова інформація про компанію","Qo'shimcha kompaniya haqida ma'lumot","Thông tin công ty bổ sung","Gwybodaeth cwmni ychwanegol","Ulwazi lweenkampani ezongezelelweyo","Alaye afikun ile-iṣẹ","Imininingwane yenkampani eyengeziwe"]
["Kontak naam","Emri i kontaktit","የዕውቂያ ስም","Կոնտակտ անունը","Əlaqə adı","Harremanetarako Izena","кантактная асоба","যোগাযোগের নাম","Ime kontakta","Име за контакт","Nom de contacte","Pangalan sa kontak","Liánxì rén xìngmíng","Liánxì rén xìngmíng","U nome di cuntattu","Ime kontakta","Kontaktní jméno","Kontakt navn","Contactnaam","Contact name","Kontakto nomo","Kontaktisiku nimi","Yhteyshenkilön nimi","Nom du contact","Kontaktnamme","Nome de contacto","საკონტაქტო სახელი","Kontaktname","Ονομα επαφής","સંપર્ક નામ","Non kontak","Sunan tuntuɓa","Contact name","संपर्क नाम","Contact name","Kapcsolatfelvétel neve","Nafn tengiliðar","Aha aha","Nama Kontak","Ainm an Teagmhálaí","Nome del contatto","連絡先","Jeneng kontak","ಸಂಪರ್ಕಿಸುವ ಹೆಸರು","Байланысу аты","ឈ្មោះ​ទំនាក់ទំនង","담당자 이름","Байланыш аты-жөнү","ຊື່​ຕິດ​ຕໍ່","Nomen Contangionis","Kontakta vārds","Kontaktinis vardas","Kontaktnumm","Име за контакт","Contact name","Nama kenalan","കോൺടാക്റ്റ് പേര്","Isem tal-Kuntatt","Ingoa Whakapā","संपर्क नाव","Холбоо барих нэр","ဆက်သွယ်ရန်အမည်","संपर्क नाम","Kontakt navn","Dzina lalumikizidwe","Nazwa Kontaktu","Nome de contato","ਸੰਪਰਕ ਨਾਮ","Nume de contact","Контактное лицо","Igoa faʻafesoʻotaʻi","Cuir fios gu ainm","Контакт Име","Lebitso la lebitso","Zita rekubatana","ඇමතුම් නාමය","Kontaktné meno","Kontaktno ime","Magaca xiriirka","Nombre de contacto","ngaran kontak","Jina la mawasiliano","Kontaktnamn","Pangalan ng contact","Номи мухотиб","தொடர்பு பெயர்","సంప్రదింపు పేరు","ชื่อผู้ติดต่อ","İrtibat adı","Контактна Особа","Kontakt nomi","Tên Liên lạc","Enw cyswllt","Igama lokuqhagamshelwa","Orukọ olubasọrọ","Igama longaxhumana naye"]
["adres","Adresë","አድራሻ","Հասցե","Ünvanı","Helbidea","адрас","ঠিকানা","Adresa","адрес","adreça","Address","Dìzhǐ","Dìzhǐ","Indirizzu","Adresa","Adresa","Adresse","Adres","Address","Adreso","Aadress","Osoite","Adresse","Adres","Enderezo","მისამართი","Adresse","Διεύθυνση","સરનામું","Adrès","Adireshin","Address","पता","Address","Cím","Heimilisfang","Adreesị","Alamat","Seoladh","Indirizzo","住所","Alamat","ವಿಳಾಸ","Мекенжай","អាសយដ្ឋាន","주소","дарек","ທີ່ຢູ່","oratio","Adrese","Adresas","Adress","Адреса","Address","Alamat","വിലാസം","Indirizz","Wāhitau","पत्ता","Хаяг","လိပ်စာ","ठेगाना","Adresse","Adilesi","Adres","Endereço","ਪਤਾ","Adresa","Адрес","Tuatusi","Seòladh","Адреса","Aterese","Address","ලිපිනය","adresa","Naslov","Cinwaanka","Dirección","alamat","Anwani","Adress","Address","Суроға","முகவரி","చిరునామా","ที่อยู่","Adres","Адреса","Manzil","Địa chỉ nhà","Cyfeiriad","Idilesi","Adirẹsi","Ikheli"]
["Posnr","Postimi nr","ልጥፍ ይለጥፉ","Թեմա","Yoxdur","Ez argitaratu","паведамленне не","পোস্ট না","Br","Публикация №","Publicació núm","Post no","Yóuzhèng biānhào","Yóuzhèng biānhào","Post no","Post br","Číslo příspěvku","Postnr","Post nr","Post no","Afiŝu ne","Posti nr","Post no","Publier non","Post no","Publicar non","არა","Beitrag Nr","Δημοσίευση αρ","પોસ્ટ નં","Post non","Baza a asali","Post no","पोस्ट नं","Post no","Post nincs","Póstur nr","Bubata ọ dịghị","Posting no","Post Uimh","Post no","ポストノー","Kirim ora","ಪೋಸ್ಟ್ ಇಲ್ಲ","Жіберу жоқ","ភ្នំពេញប៉ុស្តិ៍លេខ","게시물 번호","Post жок","Post no","Post neque","Post Nr","Pašto Nr","Post no","Пост. Бр","Post no","Hantar no","പോസ്റ്റുകളൊന്നുമില്ല","Post nru","Tukua no","पोस्ट क्रमांक","Үгүй ээ","အဘယ်သူမျှမတင်ရန်","पोस्ट नगर्नुहोस्","Postnr","Sakani positi","Opublikuj nr","Postar não","ਪੋਸਟ ਨੰਬਰ","Mesajul nr","Сообщение no","Faʻailoga le leai","Àireamh puist","Пошта бр","Tlaleho ea poso","Post no","තැපැල් අංකය","Príspevok č","Št","No post","Publicar no","pos euweuh","Chapisha chapisho","Postnr","Mag-post ng no","Не пост","இடுகை இல்லை","పోస్ట్ లేదు","หมายเลขไปรษณีย์","Hayır gönder","Публікація №","Yo'q","Đăng không","Post rhif","Iposi engekho","Ifiranṣẹ ko si","Thumela akukho"]
["plek","vend","ቦታ","Տեղ","Yeri","Lekua","месца","জায়গা","Mesto","място","Lloc","Dapit","Dìdiǎn","Dìdiǎn","Place","Mjesto","Místo","Placere","Plaats","Place","Loko","Koht","Paikka","Endroit","Plak","Lugar","ადგილი","Ort","Θέση","પ્લેસ","Mete","Wuri","Place","जगह","Place","Hely","Staður","Ebe","Tempat","Áit","Posto","場所","Panggonan","ಸ್ಥಳ","Орны","ទីកន្លែង","장소","орун","ສະຖານທີ່","locus","Vieta","Vieta","Place","Место","Place","Tempat","സ്ഥലം","Post","Waahi","ठिकाण","Байрлал","နေရာ","स्थान","Plass","Malo","Miejsce","Lugar, colocar","ਸਥਾਨ","Loc","Место","Nofoaga","Àite","Место","Sebaka","Nzvimbo","පෙදෙස","miesto","Kraj","Goobta","Lugar","tempat","Mahali","Plats","Lugar","Ҷой","பிளேஸ்","ప్లేస్","สถานที่","yer","Місце","Joy","Địa điểm","Lle","Indawo","Gbe","Indawo"]
["Loopfoon","Telefon celular","ተንቀሳቃሽ ስልክ","Բջջային հեռախոս","Cib telefonu","Mugikorra","Мабільны тэлефон","মুঠোফোন","Mobitel","Мобилен телефон","Mòbil","Cell phone","Shǒujī","Shǒujī","Telefuninu","Mobitel","Mobilní telefon","Mobiltelefon","Mobiele telefoon","Cell phone","Poŝtelefono","Mobiiltelefon","Kännykkä","Téléphone portable","Mobile tillefoan","Teléfono móbil","მობილური ტელეფონი","Handy","Κινητό τηλέφωνο","સેલ ફોન","Telefòn selilè","Wayar salula","Cell phone","सेल फोन","Cell phone","Mobiltelefon","Farsími","Ekwentị","Telepon selular","Fón póca","Cellulare","携帯電話","Ponsel","ಸೆಲ್ ಫೋನ್","Ұялы телефон","ទូរស័ព្ទ​ចល័ត","휴대 전화","Уюлдук телефон","ໂທລະ​ສັບ​ມື​ຖື","cell phone","Mobilais telefons","Mobilusis telefonas","Handy","Мобилен телефон","Finday","Telefon bimbit","സെൽ ഫോൺ","Mowbajl","Waea Cell","सेल फोन","Гар утас","ဆဲလ်ဖုန်း","मोबाइल फोन","Mobiltelefon","Foni yam'manja","Komórka","Celular","ਮੋਬਾਇਲ ਫੋਨ","Telefon mobil","Сотовый телефон","Sela foni","Fòn-làimhe","Мобилни телефон","Lekolulo","Nharembozha","ජංගම දුරකථනය","Mobilný telefón","Mobitel","Taleefan gacanta","Teléfono móvil","Hapé","Simu ya mkononi","Mobiltelefon","Cell phone","Телефони мобилӣ","கைப்பேசி","సెల్ ఫోన్","โทรศัพท์มือถือ","Cep telefonu","Мобільний телефон","Uyali telefon","Điện thoại di động","Ffon symudol","Unomyayi","Foonu alagbeka","Umakhalekhukhwini"]
["e-pos","Email","ኢሜይል","Email","E-poçt","Emaila","E-mail","ইমেইল","Email","електронна поща","Correu electrònic","Email","Diànzǐ yóujiàn","Diànzǐ yóujiàn","Email","E-mail","E-mailem","E-mail","E-mail","Email","Retpoŝto","E-post","Sähköposti","Email","E-post","Correo electrónico","ელ.ფოსტა","Email","ΗΛΕΚΤΡΟΝΙΚΗ ΔΙΕΥΘΥΝΣΗ","ઇમેઇલ","Imèl","Imel","Email","ईमेल","Email","Email","Email","Email","E-mail","Ríomhphost","E-mail","Eメール","Email","ಇಮೇಲ್","Электрондық пошта","អ៊ីមែល","이메일","E-mail","ອີເມວ","Email","E-pasts","El. Paštas","Email","Е-пошта","Email","E-mel","ഇമെയിൽ","Email","Īmēra","ईमेल","И-мэйл хаяг","အီးမေးလ်ပို့ရန်","ईमेल","e-post","Imelo","E-mail","O email","ਈ - ਮੇਲ","E-mail","Эл. адрес","Imeli","Post-d","Емаил","Imeile","Email","විද්යුත් තැපෑල","e-mail","E-naslov","Email","Email","email","Barua pepe","E-post","Email","Email","மின்னஞ்சல்","ఇమెయిల్","อีเมล์","E-posta","Електронна пошта","E-pochta","E-mail","E-bost","Imeyili","Imeeli","I-imeyili"]
["Rekening nommer","Llogari jo","መለያ ቁጥር","Հաշվի ոչ","Hesab no","Kontua ez","Нумар рахунку","হিসাব নাম্বার","Račun br","Профил №","Núm de compte","Account no","Hùkǒu hàomǎ","Hùkǒu hàomǎ","Ùn avete nimu","Broj računa","Číslo účtu","Kontonr","Account nummer","Account no","Kalkulu ne","Arveldusarve nr","Tilinro","N ° de compte","Akkount nûmer","Conta n","ანგარიში არ","Konto Nr","Αριθμός λογαριασμού","ખાતા નં","Kont pa gen okenn","Babu asusun","Account no","खाता क्रमांक","Account no","Számlaszám","Reikningur nr","Akaụntụ ọghi","No rekening","Uimh","Conto n","アカウントなし","Akun ora","ಖಾತೆ ಸಂಖ್ಯೆ","№","គ្មាន​គណនី","계정 없음","Каттоо эсеби жок","Account no","Ideo non","Konta numurs","Sąskaitos numeris","Kont no","Сметка бр","Account no","Nombor akaun","അക്കൗണ്ട് നമ്പർ","Numru tal-kont","Kaore he nama","खाते क्रमांक","Дансны дугаар","အကောင့်နံပါတ်","खाता नम्बर","Kontonr","Ayi","Nr konta","Conta não","ਖਾਤਾ ਨੰਬਰ","Contul nr","Нет учетной записи","Tala leai","Àireamh cunntais","Рачун бр","Che. Ea akhaonto","Aika nhamba","ගිණුම් අංකය","Číslo účtu","Številka računa","Maya xisaabta","Cuenta no","akun euweuh","Akaunti ya Akaunti","Konto Nej","Account no","Не ҳисоб","கணக்கு எண்","ఖాతా సంఖ్య","เลขที่บัญชี","Hesap numarası","Номер рахунку","Hisob no","Số tài khoản","Rhif cyfrif","Akhawunti yeAkhawunti","Ko si iroyin rara","I-Akhawunti ayikho"]
["geldeenheid","monedhë","ምንዛሬ","Արժույթ","Valyuta","Moneta","валюта","মুদ্রা","Valuta","Валута","Moneda","Salapi","Huòbì","Huòbì","Monete","Valuta","Měna","betalingsmiddel","Valuta","Currency","Monero","Valuuta","valuutta","Devise","Muntsoarte","Moeda","ვალუტა","Währung","Νόμισμα","ચલણ","Lajan","Kudin","Currency","मुद्रा","Currency","Valuta","Gjaldmiðill","Ego","Mata uang","Airgeadra","Moneta","通貨","Currency","ಕರೆನ್ಸಿ","Валюта","រូបិយប័ណ្ណ","통화","акчалар","ເງິນຕາ","monetæ","Valūta","Valiuta","Währung","Валута","Sandam-bola","Mata wang","കറൻസി","Munita","Moni","चलन","Валют","ငွေကြေးစနစ်","मुद्रा","Valuta","Ndalama","Waluta","Moeda","ਮੁਦਰਾ","Valută","валюта","Tupe","Airgead","Валута","Chelete","Mari","මුදල්","mena","Valuta","Lacagta","Moneda","duit nu dipake di sahiji nagara","Fedha","Valuta","Pera","Асъор","நாணய","కరెన్సీ","เงินตรา","Para birimi","Валюта","Valyuta","Tiền tệ","Arian cyfred","Imali","Owo","Imali"]
["Herinnering teks","Tekst përkujtues","የማስታወሻ ጽሑፍ","Հիշեցում տեքստը","Xatırlatma mətni","Gogorarazitako testua","напамін тэкст","অনুস্মারক পাঠ্য","Tekst podsetnika","Текст на напомнянето","Recordatori de text","Pahinumdom nga teksto","Tíxǐng wénzì","Tíxǐng wénzì","Reminder text","Tekst podsjetnika","Text připomenutí","Påmindelsestekst","Herinneringstekst","Reminder text","Memoriga teksto","Meeldetuletuse tekst","Muistutusteksti","Texte de rappel","Ferwiderje tekst","Texto de recordatorio","შეხსენების ტექსტი","Erinnerungstext","Υπενθύμιση κειμένου","રીમાઇન્ડર ટેક્સ્ટ","Rapèl tèks","Rubutun mai tuni","Reminder text","अनुस्मारक पाठ","Reminder text","Emlékeztető szöveg","Áminningartexta","Cheta ederede","Teks pengingat","Téacs meabhrúcháin","Testo di promemoria","リマインダーテキスト","Pangeling teks","ಜ್ಞಾಪನೆ ಪಠ್ಯ","Ескерту мәтіні","អត្ថបទរំលឹក","알림 텍스트","Reminder текст","ຂໍ້ຄວາມເຕືອນ","Lorem text","Atgādinājuma teksts","Priminimo tekstas","Erënnerung Text","Потсетник текст","Famerenana an-tsoratra","Teks peringatan","ഓർമ്മപ്പെടുത്തൽ വാചകം","Test ta 'tfakkira","Whakamanatuhia te kuputuhi","स्मरणपत्र मजकूर","Сануулагч текст","သတိပေးချက်စာသားကို","रिमाइन्डर पाठ","Påminnelsestekst","Chikumbutso chakumbukira","Tekst przypomnienia","Texto de lembrete","ਰੀਮਾਈਂਡਰ ਟੈਕਸਟ","Text de memento","Текст напоминания","Faamanatu mea","Teacsa cuimhneachaidh","Текст подсетника","Mongolo o hopotsoang","Chiyeuchidzo chinyorwa","සිහි කැඳවුම් පෙළ","Text pripomenutia","Opomnik besedilo","Qoraalka xasuusinta","Recordatorio de texto","panginget téks","Nakala ya kukumbusha","Påminnelsestekst","Paalala ng teksto","Матни хотиррасон","நினைவூட்டல் உரை","రిమైండర్ టెక్స్ట్","ข้อความเตือน","Hatırlatma metni","Текст нагадування","Eslatma matni","Văn bản nhắc nhở","Testun atgoffa","Isikhumbuzi sesikhumbuzo","Ọrọ iranti olurannileti","Isikhumbuzi sesikhumbuzi"]
["maatskappy","kompani","ኩባንያ","Ընկերությունը","Şirkəti","Enpresa","кампаніі","কোম্পানির","Kompanija","Компания","Empresa","Company","Gōngsī","Gōngsī","Cumpagnia","Društvo","Společnost","Selskab","Bedrijf","Company","Kompanio","Ettevõte","Yhtiö","Compagnie","Bedriuw","Compañía","კომპანია","Unternehmen","Εταιρία","કંપની","Konpayi","Kamfanin","Company","कंपनी","Company","Vállalat","Fyrirtæki","Ụlọ ọrụ","Perusahaan","Cuideachta","Azienda","会社","Perusahaan","ಕಂಪನಿ","Компания","ក្រុមហ៊ុន","회사","компания","ບໍລິສັດ","turba","Uzņēmums","Bendrovė","Firma","Компанија","Company","Syarikat","കമ്പനി","Kumpanija","Kamupene","कंपनी","Компани","ကုမ္ပဏီ","कम्पनी","Selskap","Kampani","Firma","Empresa","ਕੰਪਨੀ","Companie","Компания","Kamupani","Companaidh","Компанија","Khampani","Company","සමාගම","spoločnosť","Podjetje","Shirkadda","Empresa","pausahaan","Kampuni","Företag","Kumpanya","Ширкат","நிறுவனம்","కంపెనీ","บริษัท","şirket","Компанія","Kompaniya","Công ty","Cwmni","Nkampani","Ile-iṣẹ","Inkampani"]
["As jy nie betyds betaal nie, sal ons jou kielie. Ernstig!","Nëse nuk paguani me kohë, ne do të gudulisim. Seriozisht!","በጊዜው ካልከፈልዎት, እንሰራዎታለን. በጥንቃቄ!","Եթե ​​դուք չեք վճարում ժամանակի ընթացքում, ապա ձեզ կտանի: Լուրջ:","Vaxtında ödəmədiyiniz təqdirdə, biz sizi qıra biləcəyik. Ciddi!","Denbora ordaindu ez baduzu, eskuz eginen dugu. Serio!","Калі вы не плаціце своечасова, мы будзем казытаць вас. Сур'ёзна!","আপনি যদি সময়ের মধ্যে অর্থোপার্জন না করেন তবে আমরা আপনাকে টিকলে পাঠাবো। সিরিয়াসলি!","Ako ne platite na vreme, grickaćemo vas. Ozbiljno!","Ако не плащате навреме, ще ви гадим. Сериозно!","Si no pagueu amb el temps, us farem clicar. De debò!","Kung wala ka magbayad sa panahon, kami mogitik kanimo. Seryoso!","Rúguǒ nǐ méiyǒu jíshí fùkuǎn, wǒmen huì gěi nǐ fā yǎng de. Rènzhēn!","Rúguǒ nǐ méiyǒu jíshí fùkuǎn, wǒmen huì gěi nǐ fā yǎng de. Rènzhēn!","Sì dont pay in time, avemu cosi. Seriously!","Ako ne plaćate na vrijeme, mi ćemo vam golicati. Ozbiljno!","Pokud nebudete platit včas, budeme vás pošťuchovat. Vážně!","Hvis du ikke betaler i tide, vil vi kile dig. Helt seriøst!","Als u niet op tijd betaalt, zullen wij u kietelen. Ernstig!","If you dont pay in time, we will tickle you. Seriously!","Se vi ne pagos en tempo, ni tikos vin. Grave!","Kui te ei maksa õigeaegselt, siis me kummardame sind. Tõsiselt!","Jos et maksa ajoissa, me härkäämme sinua. Vakavasti!","Si vous ne payez pas à temps, nous vous chatouillerons. Sérieusement!","As jo ​​net yn 'e tiid betelje, sille wy jo koart. Seriously!","Se non pagas no tempo, che faremos cociñar. En serio!","თუ თქვენ არ გადაიხდით დროულად, ჩვენ გეტყვით. სერიოზულად!","Wenn Sie nicht rechtzeitig bezahlen, werden wir Sie kitzeln. Ernst!","Εάν δεν πληρώνετε έγκαιρα, θα σας γοητεύσουμε. Σοβαρά!","જો તમે સમય ચૂકવતા નથી, તો અમે તમને ગુંચવાશે. ગંભીરતાપૂર્વક!","Si ou pa peye nan tan, nou pral satisfer ou. Seryezman!","Idan ba ku biyan kuɗi a lokaci ba, za mu yi muku lakabi. Mai mahimmanci!","If you dont pay in time, we will tickle you. Seriously!","यदि आप समय पर भुगतान न करते हैं, तो हम आपको गुदगुदी करेंगे। गंभीरता से!","If you dont pay in time, we will tickle you. Seriously!","Ha nem fizetsz időben, akkor csiklandozunk. Komolyan!","Ef þú borgar ekki í tíma, munum við kæla þig. Alvarlega!","Ọ bụrụ na ị naghị akwụ ụgwọ n'oge, anyị ga-eche gị ọnụ. Iche!","Jika Anda tidak membayar tepat waktu, kami akan menggelitik Anda. Serius!","Mura íocann tú in am, cuirfimid ticle ort. Dáiríre!","Se non paghi in tempo, ti faremo il solletico. Sul serio!","時間内に支払いをしないと、私たちはあなたをくすぐります。真剣に！","Yen sampeyan ora mbayar wektu, sampeyan bakal nggatheli sampeyan. Akeh!","ನೀವು ಸಮಯಕ್ಕೆ ಪಾವತಿಸದಿದ್ದರೆ, ನಾವು ನಿಮಗೆ ಟಿಕ್ಲ್ ಮಾಡುತ್ತೇವೆ. ಗಂಭೀರವಾಗಿ!","Егер сіз уақытында төлем жасамасаңыз, біз сізге қайран боламыз. Айтарлықтай!","ប្រសិនបើអ្នកមិនបង់ប្រាក់ទាន់ពេលនោះយើងនឹងធ្វើឱ្យអ្នកខាត។ យ៉ាងខ្លាំង!","제 시간에 돈을 내지 않으면 우리는 당신을 간지럽 힙니다. 진심으로!","убагында төлөөгө тандады болсо, анда биз сага кошомат кылат. Олуттуу!","ຖ້າທ່ານບໍ່ຈ່າຍເງິນໃນເວລານັ້ນ, ພວກເຮົາຈະ tickle ທ່ານ. ຢ່າງຫນັກ!","Si ne reddere tempore, vellicare patiar vos faciemus. Gravissime?","Ja jūs dont maksāt laikā, mēs jūs kutināt. Nopietni!","Jei nesumokėsite laiku, mes suklaidinsime jus. Rimtai!","Wann Dir Zäit net bezuele musst, wäerte mir Iech kenneléieren. Ernéid!","Ако не плаќате во времето, ние ќе ве удираме. Сериозно!","Raha tsy mandoa fotoana ianao, dia hampifaly anao. Tena matotra!","Sekiranya anda tidak membayar dalam masa, kami akan menggelitik anda. Serius!","നിങ്ങൾക്ക് കാലപരിധിയില്ലെങ്കിൽ, ഞങ്ങൾ നിങ്ങളെ ടിക്കും. ഗുരുതരമായി!","Jekk inti ma tħallasx fil-ħin, aħna se tickle inti. Serjament!","Mena kaore koe e utu i te wa, ka tohu koe ia koe. He kaha!","जर आपण वेळेत पैसे चुकवू नका, तर आम्ही तुम्हाला गुदगुमणे करू गंभीरपणे!","Хэрэв та цагт төлбөр төлөхгүй бол бид таныг гижигдэнэ. Ноцтой!","သငျသညျအခြိနျမှာလစာ dont လျှင်, ငါတို့သည်သင်တို့ကိုယားပါလိမ့်မယ်။ အလေးအနက်ထား!","यदि तपाईं समय मा तिर्नु हुन्न भने, हामी तपाईंलाई टिक्न सक्नेछौं। गंभीरतापूर्वक!","Hvis De ikke betaler i tide, kommer vi og klasker til Dem","Ngati mulibe malipiro mu nthawi, tidzakuthandizani. Zovuta!","Jeśli nie zapłacisz w odpowiednim czasie, będziemy Cię łaskotać. Poważnie!","Se você não paga a tempo, nós o agradaremos. A sério!","ਜੇ ਤੁਸੀਂ ਸਮੇਂ ਸਿਰ ਅਦਾਇਗੀ ਨਾ ਕਰੋਗੇ, ਤਾਂ ਅਸੀਂ ਤੁਹਾਨੂੰ ਗੁਰੇਜ਼ ਕਰਾਂਗੇ. ਗੰਭੀਰਤਾ ਨਾਲ!","Dacă nu plătiți la timp, vă vom ghici. Serios!","Если вы не заплатите вовремя, мы пощекотаем вас. Шутки в сторону!","Afai e te le totogiina se taimi, o le a matou faʻailoa oe. Maʻeu!","Mura pàigh thu ann an ùine, cuiridh sinn diog ort. Gu dona!","Ако не плаћате на време, грицкићемо вас. Озбиљно!","Haeba u sa lahle ka nako, re tla u khelosa. Ka ho teba!","Kana iwe usina kubhadhara munguva, tinokukwazisa. Zvakanyanya!","ඔබ නියමිත වේලාවට නොගෙවන්නේ නම්, අපි ඔබ ලිස්සා යනු ඇත. ඇත්ත වශයෙන්ම!","Ak nebudete platiť včas, budeme Vás poľuchať. Vážne!","Če ne plačate pravočasno, vas bomo goljufali. Resno!","Haddii aanad bixin waqtiga, waxaan kuu saxeexi doonaa. Halis ah!","Si no paga a tiempo, le haremos cosquillas. ¡Seriamente!","Lamun dont mayar dina jangka waktu, urang bakal ararateul anjeun. Serius!","Ikiwa huna kulipa kwa wakati, tutakuvutia. Kubwa!","Om du inte betalar i tid kommer vi att kittla dig. Allvarligt!","Kung wala kang magbayad sa oras, kami ay magigipit sa iyo. Seryoso!","Агар шумо дар вақташ пардохт накунед, мо шуморо ба танг меорем. Бештар!","நீங்கள் நேரத்தை செலவழிக்கவில்லையென்றால், நாங்கள் உங்களை ஏமாற்றுவோம். தீவிரமாக!","మీరు సమయం చెల్లించాల్సిన అవసరం లేదు ఉంటే, మేము మీరు చక్కిలిగింత ఉంటుంది. నిజంగానే!","หากคุณไม่ได้จ่ายเงินในเวลาที่เราจะจี้คุณ อย่างจริงจัง!","Zamanında ödemiyorsanız, sizi gıdıklayacağız. Ciddi anlamda!","Якщо ви не платите вчасно, ми вас пощуплять. Серйозно!","Vaqti-vaqti bilan to'lov qilmasangiz, biz sizga qaytib boramiz. Jiddiy!","Nếu bạn không thanh toán kịp thời, chúng tôi sẽ đánh bạn. Nghiêm túc!","Os na fyddwch chi'n talu mewn pryd, byddwn yn eich ticio chi. Yn ddifrifol!","Ukuba awuyi kuhlawula ngexesha, siya kukukhwaza. Ngokukodwa!","Ti o ba maṣe sanwo ni akoko, a yoo fi ami si ọ. Isẹ!","Uma ungafuni ukukhokha ngokuhamba kwesikhathi, sizokuklolodela. Ngokujulile!"]
["Taal","Gjuhe","ቋንቋ","Լեզու","Dil","Hizkuntza","мова","ভাষা","Jezik","език","Llenguatge","Pinulongan","Yǔyán","Yǔyán","Lingua","Jezik","Jazyk","Sprog","Taal","Language","Lingvo","Keel","Kieli","La langue","Taal","Lingua","ენა","Sprache","Γλώσσα","ભાષા","Lang","Harshe","Language","भाषा","Language","Nyelv","Tungumál","Asụsụ","Bahasa","Teanga","linguaggio","言語","Basa","ಭಾಷೆ","Тіл","ភាសា","언어","тил","ພາສາ","Lingua","Valoda","Kalba","Sprooch","Јазик","fiteny","Bahasa","ഭാഷ","Lingwa","Reo","भाषा","Хэл","ဘာသာစကား","भाषा","Språk","Chilankhulo","Język","Língua","ਭਾਸ਼ਾ","Limba","язык","Gagana","Cànan","Језик","Puo","Mutauro","භාෂාව","Jazyk","Jezik","Luuqadda","Idioma","basa","Lugha","Språk","Wika","Забон","மொழி","భాషా","ภาษา","Dil","Мова","Til","Ngôn ngữ","Iaith","ULwimi","Ede","Ulimi"]
["land","vend","አገር","Երկիրը","Ölkə","Herria","краіна","দেশ","Zemlja","Държава","País","Nasud","Guójiā","Guójiā","Paese","Zemlja","Země","Land","land","Country","Lando","Riik","Maa","Pays","Lân","País","ქვეყანა","Land","Χώρα","દેશ","Peyi","Ƙasar","Country","देश","Country","Ország","Land","Mba","Negara","Tír","Nazione","国","Negara","ದೇಶ","Ел","ប្រទេស","국가","мамлекет","ປະເທດ","Patriam","Valsts","Šalis","Land","Земја","Firenena","Negara","രാജ്യം","Pajjiż","Whenua","देश","Улс","ပြည်","देश","Land","Dziko","Kraj","País","ਦੇਸ਼","Țară","Страна","Atunuʻu","Dùthaich","Земља","Naha","Nyika","රට","Krajina","Država","Dalka","País","nagara","Nchi","Land","Bansa","Кишвар","நாடு","దేశం","ประเทศ","ülke","Країна","Davlat","Quốc gia","Gwlad","Izwe","Orilẹ-ede","Izwe"]
["Hierdie faktuur is geargiveer en gesluit. Klik Nuwe faktuur","Kjo faturë arkivohet dhe mbyllet. Klikoni Faturën e Re","ይህ ደረሰኝ በማኅደር ተቀምጧል እናም ተቆልፏል. አዲስ ደረሰኝን ጠቅ ያድርጉ","Այս հաշիվը արխիվացված է եւ կողպված է: Սեղմեք Նոր հաշիվ","Bu faktura arşivlenir və kilidlənir. Yeni fakturanı basın","Faktura hau artxibatuta dago eta blokeatuta dago. Egin klik faktura berria","Гэты конт знаходзіцца ў архіве і заблякаваны. Націсніце кнопку Стварыць рахунак-фактуру","এই চালান সংরক্ষণাগার এবং লক করা হয়। নতুন চালান ক্লিক করুন","Ova faktura je arhivirana i zaključana. Kliknite na New Invoice","Тази фактура е архивирана и заключена. Кликнете върху Нова фактура","Aquesta factura està arxivada i bloquejada. Feu clic a Factura nova","Kini nga invoice gi-archive ug gi-lock. I-klik ang Bag-ong Invoice","Cǐ fāpiào yǐ guīdǎng bìng suǒdìng. Diǎnjī xīn fāpiào","Cǐ fāpiào yǐ guīdǎng bìng suǒdìng. Diǎnjī xīn fāpiào","Sta fattura hè archiviu è chjude. Cliccate nova fattura","Ova se faktura arhivira i zaključava. Kliknite Nova faktura","Tato faktura je archivována a uzamčena. Klikněte na položku Nová faktura","Denne faktura er arkiveret og låst. Klik på Ny faktura","Deze factuur is gearchiveerd en vergrendeld. Klik op Nieuwe factuur","This invoice is archived and locked. Click New Invoice","Ĉi fakturo estas arkivita kaj ŝlosita. Alklaku Novan Fakturon","See arve arhiveeritakse ja lukustatakse. Klõpsake valikul Uus arve","Tämä lasku arkistoituu ja lukitaan. Napsauta Uusi lasku","Cette facture est archivée et verrouillée. Cliquez sur Nouvelle facture","Dizze invoasje is argyfearre en beskoattele. Klikje New Revenue","Esta factura está arquivada e bloqueada. Faga clic en Nova factura","ეს ინვოისი არის არქივი და ჩაკეტილი. დაწკაპეთ ახალი ფაქტურა","Diese Rechnung ist archiviert und gesperrt. Klicken Sie auf Neue Rechnung","Αυτό το τιμολόγιο είναι αρχειοθετημένο και κλειδωμένο. Κάντε κλικ στο Νέο τιμολόγιο","આ ભરતિયું આર્કાઇવ અને લૉક કરેલું છે. નવું ભરતિયું ક્લિક કરો","Sa a se fakti achiv ak fèmen. Klike sou nouvo bòdwo","Wannan takarda an ajiye shi kuma an kulle. Danna Sabuwar Sayarwa","This invoice is archived and locked. Click New Invoice","यह चालान संग्रहित और लॉक किया गया है नया चालान पर क्लिक करें","This invoice is archived and locked. Click New Invoice","Ez a számla archiválva és lezárva. Kattintson az Új számla gombra","Þessi reikningur er geymd og læst. Smelltu á nýja reikning","A na-edebe akwụkwọ ego a ma kpochie ya. Pịa New Devoice","Faktur ini diarsipkan dan dikunci. Klik Faktur Baru","Tá an sonrasc seo i gcartlann agus faoi ghlas. Cliceáil Nua Sonrasc","Questa fattura è archiviata e bloccata. Fai clic su Nuova fattura","この請求書はアーカイブされ、ロックされています。新規請求書をクリックします。","Invoice iki diarsipkan lan dikunci. Klik Invoice anyar","ಈ ಇನ್ವಾಯ್ಸ್ ಅನ್ನು ಆರ್ಕೈವ್ ಮಾಡಲಾಗಿದೆ ಮತ್ತು ಲಾಕ್ ಮಾಡಲಾಗಿದೆ. ಹೊಸ ಸರಕುಪಟ್ಟಿ ಕ್ಲಿಕ್ ಮಾಡಿ","Бұл шот-фактура мұрағатталған және бұғатталған. Жаңа шот-фактураны нұқыңыз","វិក័យប័ត្រនេះត្រូវបានទុកក្នុងប័ណ្ណសារនិងជាប់សោ។ ចុចវិក្កយបត្រថ្មី","이 송장은 보관 처리되고 잠겨 있습니다. 새 송장을 클릭하십시오.","Бул эсеп-дүмүрчөк архиделди жана бекитилген. Click Болумушту эсеп-дүмүрчөк","ໃບເກັບເງິນນີ້ຖືກເກັບໄວ້ແລະຖືກລັອກ. ກົດໃຫມ່ໃບເກັບເງິນ","Hoc cautionem et clausa est scrinium. Novum Click cautionem","Šis rēķins tiek arhivēts un bloķēts. Noklikšķiniet uz Jauns rēķins","Ši sąskaita faktūra yra archyvuota ir užrakinta. Spustelėkite Naujas sąskaita","Dës Rechnung ass archivéiert a gespaart. Klickt Nex Invoice","Оваа фактура е архивирана и заклучена. Кликнете Нова фактура","Ity faktiora ity dia voarakitra sy mihidy. Kitiho ny Invoice vaovao","Invois ini diarkibkan dan dikunci. Klik Invois Baru","ഈ ഇൻവോയ്സ് ആർക്കൈവുചെയ്ത് ലോക്കുചെയ്തിരിക്കുന്നു. പുതിയ ഇൻവോയ്സ് ക്ലിക്കുചെയ്യുക","Din il-fattura hija arkivjata u msakkra. Ikklikkja Fattura Ġdida","Ko tenei nama ka tuhia me te kati. Pāwhiritia te Whakatau Hou","हे चलन संग्रहित आणि लॉक केलेले आहे नवीन चलन क्लिक करा","Энэ нэхэмжлэх архивлаж түгжигдэнэ. Шинэ Нэхэмжлэх дээр дарна уу","ဤသည်မှာငွေတောင်းခံလွှာကိုမှတ်တမ်းတင်သိမ်းဆည်းခြင်းနှင့်သော့ခတ်ထားသည်။ နယူးငွေတောင်းခံလွှာကိုကလစ်နှိပ်ပါ","यो चलानी संग्रहित र लक गरिएको छ। नयाँ चलानी क्लिक गर्नुहोस्","Denne fakturaen er arkivert og låst. Klikk Ny faktura","Invoice iyi imakhala yosungidwa ndi kutsekedwa. Dinani Ndalama Yatsopano","Ta faktura jest zarchiwizowana i zablokowana. Kliknij Nowa faktura","Esta fatura é arquivada e bloqueada. Clique em Nova Fatura","ਇਹ ਇਨਵੌਇਸ ਅਕਾਇਵ ਅਤੇ ਲਾਕ ਕੀਤਾ ਗਿਆ ਹੈ. ਨਵੇਂ ਇਨਵੌਇਸ ਤੇ ਕਲਿਕ ਕਰੋ","Această factură este arhivată și blocată. Faceți clic pe Factura nouă","Этот счет заархивирован и заблокирован. Нажмите «Новый счет»","O lenei faletupe o loʻo teuina ma lokaina. Kiliki New Faʻamatalaga","Tha an cunntas seo air a tasglann agus air a glasadh. Briog air Cunntas Ùr","Ова фактура је архивирана и закључана. Кликните на Нев Инвоице","Invoice ena e bolokiloe 'me e koetsoe. Tobetsa New Invoice","Iyi invoice yakachengetwa uye yakachengetwa. Dzvanya New Invoice","මෙම ඉන්වොයිසිය සංරක්ෂණය කර අගුළු දමා ඇත. නව ඉන්වොයිසිය ක්ලික් කරන්න","Táto faktúra je archivovaná a uzamknutá. Kliknite na položku Nová faktúra","Ta račun je arhiviran in zaklenjen. Kliknite Nov račun","Qaan-sheegashadani waa la kaydiyaa oo la xiraa. Click Click Invoice","Esta factura está archivada y bloqueada. Haga clic en Nueva factura","invoice ieu diarsipkeun tur dikonci. Klik Anyar invoice","Invozi hii ni kumbukumbu na imefungwa. Bonyeza New Invoice","Denna faktura är arkiverad och låst. Klicka på Ny faktura","Ang invoice na ito ay naka-archive at naka-lock. I-click ang Bagong Invoice","Ин вексель сабт карда мешавад ва баста мешавад. Иловаи Навро нав кунед","இந்த விலைப்பட்டியல் காப்பகப்படுத்தப்பட்டு பூட்டப்பட்டுள்ளது. புதிய விலைப்பட்டியல் கிளிக் செய்யவும்","ఈ ఇన్వాయిస్ ఆర్కైవ్ చేసి లాక్ చేయబడింది. క్రొత్త ఇన్వాయిస్ను క్లిక్ చేయండి","ใบแจ้งหนี้นี้เก็บถาวรและถูกล็อค คลิกใบแจ้งหนี้ใหม่","Bu fatura arşivlenir ve kilitlenir. Yeni Fatura'yı tıklayın","Цей рахунок-фактура архівується та заблоковано. Натисніть \"Новий рахунок-фактура\"","Ushbu hisob-faktura arxivlanadi va qulflanadi. Yangi hisob-fakturani bosing","Hoá đơn này được lưu trữ và khóa. Nhấp vào Hóa đơn mới","Mae'r anfoneb hon wedi'i archifo a'i gloi. Cliciwch Anfoneb Newydd","Le nvoyisi igcinwe kwaye igcinwe. Chofoza iNewvoyisi entsha","Yi idowe ni a fi pamọ ati titii pa. Tẹ Titun Titun","Le nvoyisi igcinwe futhi igodliwe. Chofoza i-Invoyisi entsha"]
["U moet as PDF stuur of stoor voordat u 'n nuwe faktuur skep","Duhet të dërgoni ose ruani si PDF përpara se të krijoni faturë të re","አዲስ ክፍያ መጠየቂያን ከመፍጠርዎ በፊት እንደ ፒዲኤፍ መላክ ወይም ማስቀመጥ አለብዎት","Նոր հաշիվ ստեղծելուց առաջ դուք պետք է ուղարկեք կամ պահեք որպես PDF","Yeni fakturanı yaratmadan əvvəl PDF olaraq göndərin və ya saxlamalısınız","Faktura berria sortu aurretik PDFa bidali edo gorde behar duzu","Вы павінны адправіць або захаваць у фармаце PDF, перш чым ствараць новы рахунак-фактуру","নতুন চালান তৈরি করার আগে আপনাকে পিডিএফ হিসাবে পাঠানো বা সংরক্ষণ করতে হবে","Morate poslati ili sačuvati u PDF formatu pre nego što napravite novu fakturu","Трябва да изпратите или запазите като PDF, преди да създадете нова фактура","Heu d'enviar o guardar com a PDF abans de crear una factura nova","Kinahanglan nga imong ipadala o i-save isip PDF sa dili pa maghimo og bag-ong invoice","Zài chuàngjiàn xīn fāpiào zhīqián, nín bìxū fà sòng huò bǎocún wèi PDF géshì","Zài chuàngjiàn xīn fāpiào zhīqián, nín bì xūfà sòng huò bǎocún wèi PDF géshì","Avete da mandà o salvà cum'è PDF prima di creà a fattura nova","Morate poslati ili spremiti kao PDF prije stvaranja nove fakture","Před vytvořením nové faktury musíte odeslat nebo uložit jako PDF","Du skal sende eller gemme som PDF, før du opretter ny faktura","U moet verzenden of opslaan als PDF voordat u een nieuwe factuur maakt","You must send or save as PDF before creating new invoice","Vi devas sendi aŭ konservi kiel PDF antaŭ kreado de nova fakturo","Peate enne uue arve koostamist saatma või salvestama PDF-vormingus","Sinun on lähetettävä tai tallennettava PDF-tiedostona ennen uuden laskun luomista","Vous devez envoyer ou enregistrer au format PDF avant de créer une nouvelle facture","Jo moatte as PDF foardwaan of bewarje foardat jo in nije invoice meitsje","Debes enviar ou gardar como PDF antes de crear unha nova factura","ახალი ინვოისის შექმნამდე უნდა გააგზავნოთ ან შეინახოთ PDF","Sie müssen als PDF senden oder speichern, bevor Sie eine neue Rechnung erstellen","Πρέπει να στείλετε ή να αποθηκεύσετε ως PDF πριν να δημιουργήσετε νέο τιμολόγιο","નવું ભરતિયું બનાવવા પહેલાં તમારે મોકલવું અથવા પીડીએફ તરીકે સાચવવું આવશ્યક છે","Ou dwe voye oswa sove kòm PDF anvan ou kreye nouvo fakti","Dole ne ku aika ko ajiye matsayin PDF kafin ƙirƙirar sabon takarda","You must send or save as PDF before creating new invoice","नया चालान बनाने से पहले आपको पीडीएफ के रूप में भेजना होगा या सहेजना होगा","You must send or save as PDF before creating new invoice","Új számla létrehozása előtt PDF formátumban kell elküldeni vagy menteni","Þú verður að senda eða vista sem PDF áður en þú stofnar nýjan reikning","Ị ga-eziga ma ọ bụ chekwaa PDF tupu ịmepụta akwụkwọ ọhụrụ","Anda harus mengirim atau menyimpan sebagai PDF sebelum membuat faktur baru","Caithfidh tú a sheoladh nó a shábháil mar PDF sula ndéantar sonrasc nua a chruthú","È necessario inviare o salvare come PDF prima di creare una nuova fattura","新しい請求書を作成する前にPDFとして送信または保存する必要があります","Sampeyan kudu ngirim utawa simpen minangka PDF sadurunge nggawe invoice anyar","ಹೊಸ ಸರಕುಪಟ್ಟಿ ರಚಿಸುವ ಮೊದಲು ನೀವು ಕಳುಹಿಸಬೇಕು ಅಥವಾ PDF ಆಗಿ ಉಳಿಸಬೇಕು","Жаңа шотты жасамас бұрын PDF түрінде жіберуіңіз немесе сақтауыңыз керек","អ្នកត្រូវតែផ្ញើឬរក្សាទុកជា PDF មុនពេលបង្កើតវិក័យប័ត្រថ្មី","새 인보이스를 작성하기 전에 PDF로 보내거나 저장해야합니다.","Сиз жаңы эсеп-дүмүрчөк түзүү алдында PDF катары жиберип же сактоо керек","ທ່ານຕ້ອງສົ່ງຫຼືບັນທຶກເປັນ PDF ກ່ອນທີ່ຈະສ້າງໃບເກັບເງິນໃຫມ່","Mittam vobis neque eruent text creo ante cautionem","Pirms rēķina izveides jums ir jānosūta vai jāuzglabā kā PDF","Prieš sukurdami naują sąskaitą faktūrą turite atsiųsti arba išsaugoti kaip PDF","Dir musst als PDF schécken oder späicheren ier Dir eng nei Rechnung schafft","Мора да испратите или зачувате како PDF пред да креирате нова фактура","Tsy maintsy mandefa na mamonjy amin'ny maha-pdf ianao alohan'ny hamoahana faktiora vaovao","Anda mesti menghantar atau menyimpan sebagai PDF sebelum membuat invois baru","പുതിയ ഇൻവോയ്സ് സൃഷ്ടിക്കുന്നതിനു മുമ്പ് നിങ്ങൾ PDF ആയി അയയ്ക്കുകയോ സംരക്ഷിക്കുകയോ വേണം","Int trid tibgħat jew issalva bħala PDF qabel ma toħloq fattura ġdida","Me tuku me te tiaki hei PDF i mua i te hanga nama hou","नवीन बीजक तयार करण्यापूर्वी आपल्याला पाठवायचे किंवा PDF म्हणून जतन करणे आवश्यक आहे","Та шинэ падаан үүсгэхээсээ өмнө PDF хэлбэрээр илгээх буюу хадгалах ёстой","သငျသညျသစ်ကိုငွေတောင်းခံလွှာကိုမဖန်တီးခင် PDF ဖိုင်ရယူရန်အဖြစ်ပေးပို့သို့မဟုတ်ကယ်တင်ရမယ်","तपाईंले नयाँ इनभ्वाइस सिर्जना गर्नु अघि पीडीएफको रूपमा पठाउनु वा सुरक्षित गर्नु पर्दछ","Du må sende eller lagre som PDF før du oppretter ny faktura","Muyenera kutumiza kapena kusunga papepala musanayambe kanjira yatsopano","Musisz wysłać lub zapisać jako plik PDF przed utworzeniem nowej faktury","Você deve enviar ou salvar como PDF antes de criar uma nova fatura","ਨਵਾਂ ਇਨਵੌਇਸ ਬਣਾਉਣ ਤੋਂ ਪਹਿਲਾਂ ਤੁਹਾਨੂੰ PDF ਭੇਜਣਾ ਜਾਂ ਸੁਰੱਖਿਅਤ ਕਰਨਾ ਚਾਹੀਦਾ ਹੈ","Trebuie să trimiteți sau să salvați ca PDF înainte de a crea o nouă factură","Вы должны отправить или сохранить в формате PDF перед созданием нового счета-фактуры","E tatau ona e auina atu pe faʻasaoina e avea ma PDF ao le i faia se faletusi fou","Feumaidh tu a chuir no a shàbhaladh mar PDF mus dèan thu cunntas ùr","Морате послати или сачувати као ПДФ пре него што направите нову фактуру","O tlameha ho romela kapa ho boloka e le PDF pele o etsa invoice e ncha","Unofanira kutumira kana kuchengetedza sePodhisheni usati watanga invoice itsva","නව ඉන්වොයිසියක් සෑදීමට පෙර ඔබට PDF යැවිය යුතුය හෝ සුරැකිය යුතුය","Pred vytvorením novej faktúry musíte odoslať alebo uložiť ako PDF","Preden ustvarite nov račun, morate poslati ali shraniti kot PDF","Waa inaad soo dirtaa ama u kaydisaa PDF ahaan ka hor inta aan la samaynin qaan-sheegasho cusub","Debe enviar o guardar como PDF antes de crear una nueva factura","Anjeun kudu ngirim atawa simpen salaku PDF méméh nyieun invoice anyar","Lazima tuma au uhifadhi kama PDF kabla ya kujenga ankara mpya","Du måste skicka eller spara som PDF innan du skapar en ny faktura","Dapat kang magpadala o mag-save bilang PDF bago lumikha ng bagong invoice","Шумо бояд пеш аз офаридани хисоботи нав бояд PDF-ро фиристед ё захира кунед","நீங்கள் புதிய விலைப்பட்டியல் உருவாக்கும் முன் PDF ஆக அனுப்ப வேண்டும் அல்லது சேமிக்க வேண்டும்","మీరు కొత్త ఇన్వాయిస్ను సృష్టించే ముందు PDF గా పంపాలి లేదా సేవ్ చేయాలి","คุณต้องส่งหรือบันทึกเป็น PDF ก่อนสร้างใบแจ้งหนี้ใหม่","Yeni fatura oluşturmadan önce PDF olarak göndermeli veya kaydetmelisiniz","Ви повинні надсилати або зберегти як PDF, перш ніж створювати новий рахунок-фактуру","Yangi fakturani yaratmasdan oldin PDF sifatida jo'natishingiz yoki saqlashingiz kerak","Bạn phải gửi hoặc lưu dưới dạng PDF trước khi tạo hóa đơn mới","Rhaid i chi anfon neu arbed fel PDF cyn creu anfoneb newydd","Kumele uthumele okanye ulondoloze njenge-PDF ngaphambi kokudala invoyisi entsha","O gbọdọ firanṣẹ tabi fipamọ bi PDF ṣaaju ki o to ṣẹda titun risiti","Kumelwe uthumele noma ulondoloze njenge-PDF ngaphambi kokudala i-invoyisi entsha"]
["Duidelike artikel lyne?","Qartë linjat e artikullit?","የጽሑፍ መስመሮችን ጥረግ?","Մաքրել հոդվածի տողերը:","Məqalələri sil?","Clear article lines?","Выразныя лініі артыкулы?","নিবন্ধ লাইন সাফ করুন?","Jasne linije članaka?","Ясни линии за статии?","Esborrar línies d'articles?","Tin-aw ang mga linya sa artikulo?","Qīngchú wénzhāng xíng?","Qīngchú wénzhāng xíng?","E ligere di articuli riflitti","Očistite članke?","Jasné čáry článku?","Klare artikellinjer?","Duidelijke artikelregels?","Clear article lines?","Klaraj artikollinioj?","Kustuta artikli read?","Tyhjennä artikkelin rivejä?","Effacer les lignes d'articles?","Wisse artikelen linen?","Borrar as liñas do artigo?","წმინდა მუხლის ხაზები?","Artikelzeilen löschen?","Καθαρίστε γραμμές άρθρου;","લેખ પંક્તિઓ સાફ કરો?","Liy atik ki klè?","Cire bayanan layi?","Clear article lines?","लेख पंक्ति साफ़ करें?","Clear article lines?","Tiszta cikkvonalak?","Hreinsa greinarlínur?","Ihe ederede doro anya?","Hapus baris artikel?","Línte soiléire airteagal?","Linee chiare dell'articolo?","記事ラインをクリアしますか？","Mbusak garis artikel?","ಲೇಖನ ಸಾಲುಗಳನ್ನು ತೆರವುಗೊಳಿಸುವುದೇ?","Мақала желілерін тазалау","ជម្រះបន្ទាត់អត្ថបទ?","기사 줄을 지우시겠습니까?","Тазалоо макала сызыктар?","ລ້າງເສັ້ນບົດຄວາມ?","Supra manifestum est?","Notīrīt rakstu līnijas?","Išvalyti straipsnio linijas?","Linnartikelen läschen?","Исчисти статии?","Clear article lines?","Garisan artikel yang jelas?","ലേഖന വരികൾ നീക്കംചെയ്യണോ?","Linji ta 'artikoli ċari?","Aukatihia nga rarangi tuhinga?","लेख रेषा साफ करा?","Гарчиг мөрийг тодорхой болгох уу?","Clear ကိုဆောင်းပါးလိုင်းများ?","लेख लाइनहरू खाली गर्ने हो?","Tøm artikkelen linjer?","Chotsani mzere walemba?","Czyść linie artykułów?","Linhas de artigos claras?","ਲੇਖ ਲਾਈਨ ਸਾਫ ਕਰੋ?","Ștergeți linii de articole?","Очистить строки статьи?","Faʻamaʻa laina laina?","Loidhnichean artaigil soilleir?","Обриши линије чланака?","Hlakola lintlha tsa sehlooho?","Bvisa nyaya dzemitsetse?","පැහැදිලි ලිපි පෙළ පැහැදිලි කරන්න","Vymažte riadky článku?","Počisti vrstice člankov?","Khadadka maqaalada oo cad","¿Líneas de artículos claras?","garis artikel jelas?","Futa mistari ya makala?","Rensa artikelrader?","I-clear ang mga linya ng artikulo?","Сутунҳои мақоларо тоза кунед?","கட்டுரை வரிகளை அழிக்க வேண்டுமா?","వ్యాసాన్ని క్లియర్ చేయాలా?","ล้างบรรทัดบทความหรือไม่?","Makale satırlarını temizle","Очистити рядки статей?","Maqola satrini tozalash kerakmi?","Xóa dòng bài viết?","Llinellau erthyglau clir?","Cima imigca yegama?","Awọn ila ila ko o han?","Sula imigqa yesigatshana?"]
["Die faktuur sal gesluit wees vir redigering. Ok vir jou?","Fatura do të bllokohet për përpunim. Ok për ty?","ደረሰኙ ለዕረፍት ይቆለፋል. እሺ ለእርስዎ?","Առեւտրային հաշիվը կուղարկվի խմբագրման համար: Լավ է ձեզ համար:","Faktura düzəliş üçün kilidlənəcəkdir. Sizin üçün tamam mı?","Faktura blokeatuta egongo da editatzeko. Ok zuretzat?","Фактура будзе заблякаваны для рэдагавання. Добра для вас?","চালান সম্পাদনার জন্য লক করা হবে। তোমার জন্য ঠিক আছে?","Račun će biti zaključan za uređivanje. Dobro za tebe?","Фактурата ще бъде заключена за редактиране. Добре ли сте?","La factura es bloquejarà per editar-la. Està bé per a tu?","Ang invoice ma-lock para sa pag-edit. Ok alang nimo?","Fāpiào jiāng bèi suǒdìng yǐ jìnxíng biānjí. Kěyǐ gěi nǐ?","Fāpiào jiāng bèi suǒdìng yǐ jìnxíng biānjí. Kěyǐ gěi nǐ?","A fattura serà chjamata per edità. Vale per voi?","Račun će biti zaključan za uređivanje. Ok za tebe?","Faktura bude uzamčena pro úpravu. OK pro vás?","Fakturaen vil blive låst til redigering. Okay for dig?","De factuur wordt vergrendeld voor bewerking. OK voor jou?","The invoice will be locked for editing. Ok for you?","La fakturo estos ŝlosita por redaktado. Ok por vi?","Arve lukustatakse muutmiseks. Kas sulle meeldib?","Lasku lukitaan muokkausta varten. Okei sinulle?","La facture sera verrouillée pour l'édition. OK pour toi?","De invoasje sil bewarre wurde foar it bewurkjen. Ok foar jo?","A factura estará bloqueada para a edición. Ok para ti?","ინვოისი დაბლოკვისთვის დაიბლოკება. კარგი თქვენთვის?","Die Rechnung wird zur Bearbeitung gesperrt. Ok für Sie?","Το τιμολόγιο θα κλειδωθεί για επεξεργασία. Εντάξει για εσένα?","આ ભરતિયું સંપાદન માટે લૉક કરવામાં આવશે. તમારા માટે સારું છે?","Fakti a pral fèmen pou koreksyon. Ok pou ou?","Daftarin za a kulle don gyarawa. Ok a gare ku?","The invoice will be locked for editing. Ok for you?","इनवॉइस को संपादन के लिए लॉक कर दिया जाएगा तुम्हारे लिये ठीक है?","The invoice will be locked for editing. Ok for you?","A számla zárolásra kerül szerkesztésre. Oké neked?","Reikningurinn verður læstur til að breyta. Allt í lagi fyrir þig?","A ga-ekpochi akwụkwọ ọnụahịa maka edezi. Ọ dị mma maka gị?","Faktur akan dikunci untuk diedit. Baik untukmu","Beidh an sonrasc faoi ghlas le haghaidh eagarthóireachta. OK ar do shon?","La fattura sarà bloccata per la modifica. Va bene per te?","請求書は編集のためにロックされます。あなたのために[OK？","Invoice bakal dikunci kanggo nyunting. Apik kanggo sampeyan?","ಸಂಪಾದನೆಗಾಗಿ ಸರಕುಪಟ್ಟಿ ಲಾಕ್ ಆಗುತ್ತದೆ. ನಿಮಗಾಗಿ ಸರಿ?","Шот-фактура редакциялауға бұғатталады. Сіз үшін жақсы?","វិក័យប័ត្រនឹងត្រូវបានចាក់សោដើម្បីកែសម្រួល។ យល់ព្រមសម្រាប់អ្នក?","송장은 편집을 위해 잠겨 있습니다. 좋아, 너?","эсеп-дүмүрчөк түзөтүүсү үчүн камалып калат. силер үчүн Ok?","ໃບແຈ້ງຫນີ້ຈະຖືກລັອກສໍາລັບການດັດແກ້. Ok ສໍາລັບທ່ານ?","In cautionem et clausa est Errare humanum est. Ok ad te?","Rēķins tiks bloķēts rediģēšanai. Labi tev","Sąskaita bus užrakinta redaguoti. Gerai tau?","D'Rechnung wäert fir Ännere gespaart ginn. Ok fir Iech?","Фактурата ќе биде заклучена за уредување. Добро за вас?","Hakatona ny faktiora amin'ny fanovana. Ok for you?","Invois akan dikunci untuk diedit. Ok untuk awak?","എഡിറ്റിംഗിനായി ഇൻവോയ്സ് ലോക്ക് ചെയ്യപ്പെടും. നിങ്ങൾക്കായി ശരിയാണോ?","Il-fattura tinqata 'għall-editjar. Ok għalik?","Ka herea te nama mo te whakatika. Ok mo koe?","चलन संपादनासाठी लॉक केले जाईल. आपल्यासाठी ठीक आहे?","Нэхэмжлэхийг засахаар түгжигдэнэ. За за уу?","အဆိုပါငွေတောင်းခံလွှာကိုတည်းဖြတ်များအတွက်သော့ခတ်ပါလိမ့်မည်။ သင်တို့အဘို့အ ok?","इनभ्वाइस सम्पादनका लागि लक गरिनेछ। ठीक छ तिम्रो लागि?","Fakturaen vil bli låst for redigering. Ok for deg?","Invoice idzatsekedwa kukonzekera. Chabwino kwa inu?","Faktura zostanie zablokowana do edycji. Ok dla ciebie?","A fatura será bloqueada para edição. Tudo bem por você?","ਇਨਵੌਇਸ ਸੰਪਾਦਨ ਲਈ ਲੌਕ ਕੀਤਾ ਜਾਏਗਾ. ਤੁਹਾਡੇ ਲਈ ਠੀਕ ਹੈ?","Factura va fi blocată pentru editare. Bine pentru tine?","Счет будет заблокирован для редактирования. Нормально для тебя?","O le a teu le inisiua mo le faʻataʻitaʻia. Lelei mo oe?","Thèid an fhàirdeal a ghlasadh airson deasachadh. Ok airson dhut?","Рачун ће бити закључан за уређивање. Ок за вас?","Invoice e tla koaleloa bakeng sa ho hlophisa. Na u ho joalo?","Invoice ichavharwa pakugadzirisa. Ok iwe?","ඉන්වොයිසිය සංස්කරණය කිරීම සඳහා අගුලු දමා ඇත. හරිද?","Faktúra bude uzamknutá na úpravu. Ok pre vás?","Račun bo zaklenjen za urejanje. V redu zate?","Qaansheegta ayaa loo xirayaa si loogu saxo. Hagaagaysaa?","La factura se bloqueará para su edición. ¿Bien por ti?","invoice bakal dikonci pikeun ngedit. Ok pikeun anjeun?","Invoice itafungwa kwa uhariri. Ok kwa wewe?","Fakturan kommer att vara låst för redigering. Okej för dig?","Ang invoice ay mai-lock para sa pag-edit. Ok para sa iyo?","Ҳисобнома барои таҳрир баста мешавад. Хуб, барои шумо?","எடிட்டிங் திருத்துவதற்கு பூட்டப்படும். நீங்கள் சரியா?","సవరణ కోసం వాయిస్ లాక్ చేయబడుతుంది. మీ కోసం సరే?","ใบแจ้งหนี้จะถูกล็อคเพื่อแก้ไข ตกลงสำหรับคุณหรือไม่?","Fatura düzenleme için kilitlenecek. Senin için tamam?","Рахунок-фактура буде заблоковано для редагування. Добре для вас?","Hisob-faktura tahrirlash uchun qulflanadi. Siz uchun yaxshimi?","Hóa đơn sẽ bị khóa để chỉnh sửa. Tôi đồng ý cho bạn?","Bydd yr anfoneb yn cael ei gloi ar gyfer golygu. Iawn i chi?","I-invoyisi iya kuvaliwe ukuhlela. Ngaba wena?","Awọn iwe-ẹri yoo wa ni titiipa fun ṣiṣatunkọ. O dara fun ọ?","I-invoyisi izovalelwa ukuhlelwa. Kulungile kuwe?"]
["Kon nie PDF stoor nie. Jammer ...","Nuk mund ta ruaj PDF. Na vjen keq ...","ፒዲኤፍን ማስቀመጥ አልተቻለም. አዝናለሁ...","Հնարավոր չէ պահպանել PDF: Ներողություն...","PDF saxlaya bilmədi. Üzr istəyirik ...","Ezin da PDFa gorde. Barkatu ...","Could'nt захаваць PDF. На жаль ...","PDF সংরক্ষণ করা যায়নি দুঃখিত ...","Nije moguće sačuvati PDF. Izvini...","Не може да записва PDF. За съжаление ...","No es pot desar PDF. Ho sento...","Dili makaluwas sa PDF. Sorry ...","Bùnéng bǎocún PDF. Bàoqiàn...","Bùnéng bǎocún PDF. Bàoqiàn...","Ùn puderà salvà PDF. Scusa...","Nije moguće spremiti PDF. Oprosti...","Nemohl uložit PDF. Promiňte...","Kunne ikke gemme PDF. Undskyld...","Kan geen PDF opslaan. Sorry...","Could'nt save PDF.  Sorry...","Ne povis konservi PDF. Pardonu ...","Ei võiks PDF-faili salvestada. Vabandust ...","PDF-tiedostoa ei voi tallentaa. Sorry ...","Impossible de sauvegarder le PDF. Pardon...","Koe PDF bewarje. Sorry...","Non se puido gardar PDF. Sentímolo ...","ვერ შეინახავ PDF- ს. ბოდიში...","Konnte PDF nicht speichern. Es tut uns leid...","Δεν ήταν δυνατή η αποθήκευση του PDF. Συγνώμη...","PDF સાચવી શક્યું નથી માફ કરશો ...","Te kapab sove PDF. Padon ...","Can'nt ajiye PDF. Yi haƙuri ...","Could'nt save PDF.  Sorry...","पीडीएफ को बचा सकता है माफ़ कीजिये...","Could'nt save PDF.  Sorry...","Nem sikerült menteni a PDF formátumot. Sajnálom...","Gat ekki vistað PDF. Því miður ...","Can'nt zọpụta PDF. Ndo ...","Tidak bisa menyimpan PDF Maaf...","Níorbh fhéidir PDF a shábháil. Tá brón orm ...","Impossibile salvare PDF. Scusate...","PDFを保存できませんでした。ごめんなさい...","Bisa nyimpen PDF. Ngapunten ...","PDF ಅನ್ನು ಉಳಿಸಲು ಸಾಧ್ಯವಾಗಲಿಲ್ಲ. ಕ್ಷಮಿಸಿ ...","PDF файлын сақтау мүмкін емес. Кешіріңіз ...","មិនអាចរក្សាទុក PDF ។ សុំទោស...","PDF를 저장할 수 없습니다. 죄송합니다...","Could'nt PDF сактоо. Кечиресиз...","Can not save PDF ຂໍ​ໂທດ...","PDF Could'nt salvum facere. Paenitemus ... conservatus","Nevarēja saglabāt PDF. Atvainojiet ...","Nepavyko išsaugoti PDF. Atsiprašau ...","Konnt d'PDF net retten. Entschëllegt...","Не можам да зачувам PDF. За жал ...","Mety tsy hitahiry PDF. Miala tsiny ...","Tidak boleh menyimpan PDF. Maaf ...","PDF സംരക്ഷിക്കാൻ കഴിഞ്ഞില്ല. ക്ഷമിക്കണം ...","Ma nistax niffrankaw il-PDF. Jiddispjacini ...","Ka taea e PDF te whakaputa. Aroha ...","PDF जतन करणे शक्य झाले नाही क्षमस्व ...","PDF хадгалж чадахгүй байна. Уучлаарай ...","PDF ကိုကယ်တင် Could'nt ။ ဝမ်းနည်းပါတယ် ...","PDF बचत गर्न सकिएन। क्षमा गर्नुहोस् ...","Kunne ikke lagre PDF. Beklager...","Sakanakhoza kupulumutsa PDF. Pepani ...","Nie można zapisać pliku PDF. Przepraszam...","Não poderia guardar PDF. Desculpa...","PDF ਨੂੰ ਸੁਰੱਖਿਅਤ ਨਹੀਂ ਕਰ ਸਕਿਆ ਮਾਫ ਕਰਨਾ ...","Nu s-ar putea salva PDF-ul. Îmi pare rău ...","Не удалось сохранить PDF. Сожалею...","Le mafai ona lavea le PDF. Faamalie...","Cha b 'urrainn dhuinn PDF a shàbhaladh. Duilich...","Није могуће сачувати ПДФ. Извињавам се...","E ke ke ea boloka PDF. Tšoarelo ...","Haizochengetedza PDF. Ndine hurombo...","PDF ගොනුව සුරැකිය හැකිද? සමාවන්න...","Nemohol uložiť PDF. Prepáč...","Ne morem shraniti PDF-ja. Žal mi je ...","Waad kari kartaa PDF. Waan ka xumahay ...","No pudo guardar PDF. Lo siento...","Could'nt ngahemat PDF. Hampura ...","Inaweza kuhifadhi PDF. Samahani ...","Det gick inte att spara PDF. Förlåt...","Hindi mai-save ang PDF. Paumanhin ...","Метавонед захира кунед PDF. Мутаассифона ...","PDF ஐ சேமிக்க முடியவில்லை. மன்னிக்கவும் ...","PDF ను సేవ్ చేయలేకపోయాము. క్షమించండి ...","ไม่สามารถบันทึกไฟล์ PDF ได้ ขออภัย ...","PDF kaydedemedi. Afedersiniz...","Не вдалося зберегти PDF. Вибачте ...","PDFni saqlab qolish mumkin. Kechirasiz ...","Không thể lưu PDF. Lấy làm tiếc...","Methu arbed PDF. Mae'n ddrwg gennym ...","Ayikwazi ukulondoloza i-PDF. Uxolo...","Ṣe a le fi PDF pamọ. Binu ...","Ayikwazi ukulondoloza i-PDF. Uxolo ..."]
["bestaan.","ekziston.","አለ.","գոյություն ունի:","mövcuddur.","existitzen da.","існуе.","বিদ্যমান।","postoji.","съществува.","existeix.","anaa.","Cúnzài.","Cúnzài.","esisti.","postoji.","existuje.","eksisterer.","bestaat.","exists.","ekzistas.","eksisteerib.","olemassa.","existe.","bestiet.","existe.","არსებობს.","existiert.","υπάρχει.","અસ્તિત્વમાં છે","egziste.","akwai.","exists.","मौजूद।","exists.","létezik.","er til staðar.","dị.","ada","ann.","esiste.","存在する。","ana.","ಅಸ್ತಿತ್ವದಲ್ಲಿದೆ.","бар.","មាន។","존재합니다.","бар.","ມີຢູ່.","est.","pastāv.","egzistuoja.","existéiert.","постои.","misy.","wujud.","നിലനിൽക്കുന്നു.","teżisti.","kei te noho.","अस्तित्वात.","байгаа.","တည်ရှိ။","अवस्थित छ।","eksisterer.","alipo.","istnieje.","existe.","ਮੌਜੂਦ ਹੈ.","există.","существует.","o loʻo i ai.","ann.","постоји.","e teng.","iripo.","පවතී.","existuje.","obstaja.","jira.","existe","aya.","ipo.","existerar.","umiiral.","вуҷуд дорад.","உள்ளது.","ఉంది.","ที่มีอยู่","bulunmaktadır.","існує","mavjud.","tồn tại.","yn bodoli.","ukhona.","wa.","ikhona."]
["Kliënt het geen e-pos adres geregistreer nie. staak","Klienti nuk është i regjistruar me email. aborting","ደንበኛ ምንም የተመዘገቡ የኢሜይል ተቀባዮች የሉትም. በማውረድ ላይ","Հաճախորդը չունի էլփոստի հասցեներ: Անջատում","Müştəri qeydə e-poçt ünvanları yoxdur. Aborting","Bezeroak ez du helbide elektronikorik erregistratu. abortatzen","Кліент не мае адрасы электроннай пошты зарэгістраваны. Aborting","গ্রাহকের নিবন্ধিত কোন ইমেল ঠিকানা আছে। গর্ভপাত","Korisnik nema registraciju e-pošte. Prekidanje","Клиентът няма регистриран имейл адрес. Прекъсване","El client no té cap registre de correu electrònic registrat. S'està avortant","Ang customer walay email addres nga narehistro. Pag-abort","Kèhù méiyǒu zhùcè diànzǐ yóujiàn dìzhǐ. Zhōngzhǐ","Kèhù méiyǒu zhùcè diànzǐ yóujiàn dìzhǐ. Zhōngzhǐ","U cliente ùn hà micca mail adresu registratu. Aborting","Korisnik nema registrirane adrese e-pošte. Prekid","Zákazník nemá žádné e-mailové adresy registrované. Přerušení","Kunden har ikke registreret email-adresser. Afbryder","Klant heeft geen e-mailadres geregistreerd. Afbreken","Customer has no email addres registered. Aborting","Kliento havas neniujn retpoŝtadresojn registritajn. Forpasante","Kliendil ei ole e-posti aadressi registreeritud. Katkestamine","Asiakkaalla ei ole rekisteröityjä sähköpostiosoitteita. keskeytetään","Le client n'a aucune adresse email enregistrée. Abandonner","Kunde hat gjin e-postadres registrearre. Aborting","O cliente non ten ningún enderezo de correo electrónico rexistrado. Abortando","მომხმარებელს არ აქვს რეგისტრირებული ელ-ფოსტის მისამართი. შეჩერება","Der Kunde hat keine E-Mail-Adresse registriert. Abbrechen","Ο πελάτης δεν έχει καταχωρήσει ηλεκτρονικό ταχυδρομείο. Ακύρωση","ગ્રાહક પાસે કોઈ ઇમેઇલ સરનામાં રજિસ્ટર્ડ નથી રદબાતલ","Kliyan pa gen okenn kontak imel anrejistre. Abòf","Abokin ciniki ba shi da adireshin email addres. Aborting","Customer has no email addres registered. Aborting","ग्राहक के पास पंजीकृत कोई ईमेल पता नहीं है निरस्त","Customer has no email addres registered. Aborting","Az Ügyfélnek nincsenek regisztrált e-mail címek. megszakítása","Viðskiptavinur hefur ekki skráð tölvupóstföng. Afsal","Onye ahịa enweghi edebanye aha email. Aborting","Pelanggan tidak memiliki adder email yang terdaftar. Aborting","Níl aon bhreiseán cláraithe ag an gcustaiméir. Ag maireachtáil","Il cliente non ha un indirizzo email registrato. Interruzione","顧客には電子メールアドレスが登録されていません。中止する","Pelanggan ora duwe alamat email sing didaftar. Ngirim","ಗ್ರಾಹಕರು ಯಾವುದೇ ಇಮೇಲ್ ಆಡ್ರೆಸ್ ಅನ್ನು ನೋಂದಾಯಿಸಲಿಲ್ಲ. ಸ್ಥಗಿತಗೊಳಿಸುವುದು","Клиенттің тіркелген мекен-жайы жоқ. Жалғастыру","អតិថិជនមិនមានអ៊ីម៉ែល addres បានចុះឈ្មោះ។ បោះបង់","고객은 등록 된 이메일 주소가 없습니다. 중단","Кардар катталган жок почта адресиниз жазыла элек. сүтсүз","ລູກຄ້າບໍ່ມີອີເມວເພີ່ມເຕີມທີ່ລົງທະບຽນ. ການຍົກເລີກ","Customer habet inscriptio addres descripserunt. abortum","Klientam nav reģistrēta e-pasta adrese. Pārtraukt","Kliento el. Pašto adresas nėra registruotas. Nutraukti","De Kafen huet keen Emailaddress ugemellt. Aborting","Клиентот нема регистрирано е-пошта. Прекин","Tsy manana adiresy mailaka ny mpividy. Aborting","Pelanggan tidak mempunyai alamat e-mel yang didaftarkan. Menolak","ഉപഭോക്താവിന് ഇമെയിൽ റെസ്റസ് രജിസ്റ്റർ ചെയ്തിട്ടില്ല. ഉപേക്ഷിക്കുന്നു","Il-klijent m'għandux emails irreġistrati. Aborting","Kaore he kaipupuri īmēra kua rēhitahia. Te whakaheke","ग्राहकाने नोंदणीकृत केलेल्या कोणत्याही ईमेल पत्त्या नाहीत. निरस्त करीत आहे","Захиалагч ямар ч имэйлийн бүртгүүлэлгүй байна. Цуцлах","ဖောက်သည်မှတ်ပုံတင်မျှမကအီးမေးလ် addres ရှိပါတယ်။ Aborting","ग्राहकसँग कुनै ईमेल एड्रेस दर्ता गरिएको छैन। रद्द गर्दै","Kunden har ikke registrert noen e-postadresser. Avbryter","Wogulitsa alibe ma email addres omwe amalembedwa. Kutaya","Klient nie ma zarejestrowanych adresów e-mail. Przerwanie","O cliente não possui nenhum endereço de e-mail registrado. Abortar","ਗਾਹਕ ਕੋਲ ਰਜਿਸਟਰਡ ਕੋਈ ਈਮੇਲ ਐਡਰੈੱਸ ਨਹੀਂ ਹੈ ਅਧੂਰਾ ਛੱਡਿਆ","Clientul nu are înregistrări de e-mail. Abandonarea","У клиента нет зарегистрированного адреса электронной почты. Aborting","E leai ni aupepa imeli na resitalaina. Toto","Chan eil post-dealain clàraichte aig neach-cleachdaidh. A 'cur às dha","Корисник нема регистрацију е-поште. Прекидање","Customer ha a na imeile addres e ngolisitsoeng. Ho senya","Mutengi haana email ye addres yakanyorwa. Aborting","පාරිභෝගිකයා විද්යුත් තැපැල් ලිපිනයක් ලියාපදිංචි කර නොමැත. ගබ්සා කිරීම","Zákazník nemá žiadne e-mailové adresy registrované. prerušenie","Stranka nima registriranih e-poštnih naslovov. Prekinitev","Macaamiishu ma laha liistada emailka ee diiwaangashan. Ka-noqoshada","El cliente no tiene direcciones de correo electrónico registradas. Aborto","Palanggan teu boga addres email didaptarkeun. Aborting","Wateja hana anwani za barua pepe zilizosajiliwa. Kuondoa","Kunden har inga registrerade e-postadresser. avbryter","Ang customer ay walang rehistradong email na nakarehistro. Pag-abort","Муштарӣ дорои почтаи электронӣ ба қайд гирифта нашудааст. Бекор кардан","வாடிக்கையாளருக்கு மின்னஞ்சல் முகவரி சேர்க்கப்படவில்லை. இடைநிறுத்தப்டுகிறது","కస్టమర్కు ఎటువంటి ఇమెయిల్ చిరునామాలు లేవు. ఆపివేస్తున్నా","ลูกค้าไม่มีการลงทะเบียนอีเมล ยกเลิก","Müşterinin kayıtlı hiçbir e-posta adresi yok. durduruluyor","Клієнт не має адрес електронної пошти зареєстрований. Скасування","Xaridor ro'yxatdan o'tgan elektron pochta manziliga ega emas. Bekor qilish","Khách hàng không có địa chỉ email đăng ký. Huỷ bỏ","Nid oes gan gwsmer unrhyw negeseuon e-bost cofrestredig. Erthylu","Umthengi akanakho i-email addres ebhaliswe. Ukukhupha","Onibara ko ni awọn adirẹsi addres imeeli. Aborting","Ikhasimende alinawo ama-imeyili angeziwe abhalisiwe. Ukuphulukisa"]
["Faktuurnommer","Numri i faturës","የክፍያ መጠየቂያ ቁጥር","Ավանդի համարը","Faktura nömrəsi","Faktura zenbakia","нумар накладной","চালান নম্বর","Broj fakture","Номер на фактура","Nombre de factura","Numero sa pag-invoice","Fāpiào hàomǎ","Fāpiào hàomǎ","Invoice number","Broj fakture","Číslo faktury","Faktura nummer","Factuurnummer","Invoice number","Fakturo nombro","Arve number","Laskun numero","Numéro de facture","Faktuer nûmer","Número de factura","ინვოისის ნომერი","Rechnungsnummer","Αριθμός τιμολογίου","બીલ નંબર","Nimewo envizib","Lambar kuɗi","Invoice number","बीजक संख्या","Invoice number","Számlaszám","Reikningsnúmer","Nọmba ọnụahịa","Nomor faktur","Uimhir sonrasc","Numero di fattura","請求書番号","Nomer invoice","ಸರಕುಪಟ್ಟಿ ಸಂಖ್ಯೆ","Шот-фактура нөмірі","លេខ​វិ​ក័​យ​ប័ត្រ","송장 번호","Эсеп-дүмүрчөк номери","ເລກບັນຊີໃບແຈ້ງຫນີ້","cautionem numerus","Rēķina numurs","Sąskaitos numeris","Invoice Nummer","Број на фактура","Laharana an-tariby","Nombor invois","ഇൻവോയ്സ് നമ്പർ","In-numru tal-fattura","Tau nama","बील क्रमांक","Нэхэмжлэлийн дугаар","ငွေတောင်းခံလွှာအရေအတွက်က","इनभ्वाइस नम्बर","Fakturanummer","Nambala yoloza","Numer faktury","Número da factura","ਚਲਾਨ ਨੰਬਰ","Număr de factură","Номер счета","Numera faʻasalalau","Àireamh an fhàirdeil","Број фактуре","Nomoro ea invoice","Invoice nhamba","ඉන්වොයිස් අංකය","Číslo faktúry","Številka računa","Lambarka biilka","Número de factura","jumlah invoice","Nambari ya ankara","Fakturanummer","Numero ng invoice","Рақами суратҳисоб","விலைப்பட்டியல் எண்","ఇన్వాయిస్ సంఖ్యా","เลขใบสั่งของ","Fatura numarası","Номер накладної","Billing raqami","Số hóa đơn","Rhif anfoneb","Inombolo ye-invoyisi","Nọmba iṣiro","Inombolo ye-invoyisi"]
["van","nga","ከ","ից","dan","batetik","ад","থেকে","od","от","des de","gikan sa","Cóng","Cóng","da","iz","z","fra","van","from","de","alates","alkaen","de","fan","de","დან","von","από","થી","soti nan","daga","from","से","from","tól től","frá","site","dari","ó","a partire dal","から","saka","ನಿಂದ","бастап","ពី","...에서","чейин","ຈາກ","ex","no","iš","aus","од","avy amin'ny","dari","മുതൽ","minn","Tuhinga ka whai mai","पासून","from","မှ","बाट","fra","kuchokera","od","a partir de","ਤੋਂ","din","из","mai","bho","од","ho tloha","kubva","සිට","z","od","ka","de","ti","kutoka","från","mula sa","аз","இருந்து","నుండి","จาก","itibaren","від","dan","từ","o","kusuka","lati","kusuka"]
["Faktuur aangeheg.","Fatura e bashkangjitur.","ደረሰኝ ተያይዟል.","Հաշիվը կցված է:","Faktura əlavə edildi.","Faktura erantsita.","Рахунак-фактура прыкладаецца.","ইনভয়েস সংযুক্ত।","Priložena faktura.","Приложена фактура.","Factura adjunta.","Gikonektar ang invoice.","Fù shàng fāpiào.","Fù shàng fāpiào.","Fattura ligata.","Priložena dostavnica.","Přiložená faktura.","Faktura vedlagt.","Factuur bijgevoegd.","Invoice attached.","Fakturo alfiksita.","Arve lisatud.","Liitteenä lasku.","Facture jointe.","Invoice oanbean.","Factura adxuntada.","ინვოისი.","Rechnung anbei.","Επισυνάπτεται τιμολόγιο.","ઇન્વૉઇસ જોડાયેલ.","Fakti tache.","Ƙididdiga a haɗe.","Invoice attached.","चालान संलग्न।","Invoice attached.","Számla csatolva.","Reikningur fylgir.","Ejiri ọnụahịa.","Faktur terlampir","Sonraisc ceangailte.","Fattura allegata","請求書が添付されています。","Invoice ditempelake.","ಸರಕುಪಟ್ಟಿ ಲಗತ್ತಿಸಲಾಗಿದೆ.","Шот-фактура тіркелген.","វិក្កយបត្រត្រូវបានភ្ជាប់។","첨부 된 송장.","Эсеп-дүмүрчөк тиркелген.","ໃບເກັບເງິນຕິດຕົວ.","Cautionem coniuncta.","Rēķins pievienots.","Pridėta sąskaita.","Invoice.","Приложена фактура.","Fitaovana mifandraika.","Invois dilampirkan.","ഇൻവോയ്സ് അറ്റാച്ചുചെയ്തു.","Fattura mehmuża.","Ko te nama kei te hono.","बीजक संलग्न.","Нэхэмжлэх хавсаргасан.","ငွေတောင်းခံလွှာပူးတွဲ။","इनभ्वाइस संलग्न।","Faktura vedlagt.","Invoice yaikidwapo.","Faktura w załączniku.","Fatura em anexo.","ਇਨਵੌਇਸ ਨਾਲ ਜੁੜਿਆ.","Factura atașată.","Счет-фактура прилагается.","Faʻasalaga faʻasoa.","Cunntas ceangailte.","Приложена фактура.","Invoice e kenyelelitsoe.","Invoice yakaiswa.","ඉන්වොයිසිය අමුණා ඇත.","Priložená faktúra.","Račun priložen.","Lacag ku soo lifaaqan.","Factura adjunta.","Invoice napel.","Dawa imetumwa.","Faktura bifogad.","Nakalakip ang invoice.","Арзиши замима.","விலைப்பட்டியல் இணைக்கப்பட்டுள்ளது.","వాయిస్ జోడించబడింది.","แนบใบแจ้งหนี้แล้ว","Fatura ektedir.","Рахунок додано.","Faktura biriktirilgan.","Hóa đơn kèm theo.","Anfoneb ynghlwm.","Invoyisi ifakwe.","Ifiweranṣẹ ti a so.","I-invoyisi ifakiwe."]
["Vriendelike groete","Përshëndetje të përzemërta","ከሰላምታ ጋር","Հարգանքներով","Hörmətlə","Agur bero bat","З найлепшымі пажаданнямі","আন্তরিক শুভেচ্ছা","Srdačni pozdravi","Поздрави","Salutacions cordials","Maayo nga pagbati","Qīnqiè de wènhòu","Qīnqiè de wènhòu","Saluti","Lijepi pozdrav","S přátelským pozdravem","Med venlig hilsen","Vriendelijke groeten","Kind regards","Bonkoraj","Parimate soovidega","Ystävällisin terveisin","Sincères amitiés","Freonlike groetnis","Saúdos","კეთილი სურვილებით","Mit freundlichen Grüßen","Θερμούς χαιρετισμούς","કાઇન્ડ સન્માન","Konsyantizasyon kalite","Gaisuwan alheri","Kind regards","सधन्यवाद","Kind regards","Üdvözlettel","Kærar kveðjur","Ezi echiche","Salam","Mise le meas","Cordiali saluti","敬具","Kind regards","ಶುಭಾಕಾಂಕ್ಷೆಗಳೊಂದಿಗೆ","Ізгі тілектер","ប្រភេទទាក់ទង","종류는 안부","Урматтоо менен","ດ້ວຍ​ຄວາມ​ເຄົາ​ລົບ","genus ipsum","Ar cieņu","Su pagarba","Léif Gréiss","Добро почит","Veloma finaritra","Salam sejahtera","വിശ്വസ്തതയോടെ","Tislijiet","He pai nga whakaaro","आपला आभारी","Нөхцөл байдал","မေတ္တာဖြင့်","दयालु सम्बन्ध","Vennlig hilsen","Mafuno onse abwino","Z poważaniem","Atenciosamente","ਕਿਸਮ ਦਾ ਸਨਮਾਨ","Salutări calde","С уважением","Manuia tele","Gach dùrachd","Срдачан поздрав","Litumeliso tse mofuthu","Shuwiro yakanaka","කාරුණික සුභ පැතීම","S priateľským pozdravom","Prijazni pozdravi","Mahadsanidin","Saludos cordiales","Salam hormat","Kind regards","Vänliga Hälsningar","Kind regards","Бо эҳтиром","அன்பானவை","కైండ్ సంబంధించి","ขอแสดงความนับถือ","Saygılarımla","З повагою","Ezgu tilaklar ila","Trân trọng","Cofion cynnes","Ozithobile","Pelu anu ni mo ki yin","Ozithobayo"]
["U kan nie kredietnota uit 'n kredietnota maak nie. Jammer.","Nuk mund të krijosh notë krediti nga një notë krediti. Më vjen keq.","የብድር ማስታወሻን ከብድር ማስታወሻን መፍጠር አይችሉም. አዝናለሁ.","Վարկային գրառությունից չեք կարող ստեղծել վարկային նշում: Ներողություն.","Kredit notundan kredit notu yarada bilməzsiniz. Üzr istəyirik.","Ezin duzu kreditu-oharra kreditu-ohar batetik sortu. Sentitzen dut.","Вы не можаце стварыць крэдыт-ноту з крэдытнай ноты. Прабачце.","আপনি একটি ক্রেডিট নোট থেকে ক্রেডিট নোট তৈরি করতে পারবেন না। দুঃখিত।","Ne možete da kreirate kreditnu poruku iz kreditne note. Izvini.","Не можете да създавате кредитна бележка от кредитна бележка. Извинете.","No podeu crear una nota de crèdit a partir d'una nota de crèdit. Ho sento.","Dili ka makahimo og nota sa credit gikan sa usa ka note note. Sorry na.","Nín wúfǎ cóng dài xiàng tōngzhī dān chuàngjiàn dài xiàng tōngzhī dān. Bàoqiàn.","Nín wúfǎ cóng dài xiàng tōngzhī dān chuàngjiàn dài xiàng tōngzhī dān. Bàoqiàn.","Ùn pudete micca creà una nota di creditu da una nota di creditu. Scusa.","Ne možete izraditi kreditnu bilješku iz kreditne bilješke. Oprosti.","Nelze vytvořit dobropis z dobropisu. Promiňte.","Du kan ikke oprette kreditnota fra en kreditnota. Undskyld.","U kunt geen creditnota van een creditnota maken. Sorry.","You cannot create credit note from a credit note. Sorry.","Vi ne povas krei kreditan noton de kredita noto. Pardonu.","Krediitmälust ei saa luua krediitkaardiga. Vabandust","Luottoilmoitusta ei voi luoda. Anteeksi.","Vous ne pouvez pas créer de note de crédit à partir d'une note de crédit. Pardon.","Jo kinne gjin kadernota meitsje fan in kredytnota. Sorry.","Non podes crear nota de crédito desde unha nota de crédito. Sentímolo.","საკრედიტო შენიშვნიდან კრედიტის შენიშვნა არ შეგიძლია. ბოდიში.","Sie können keine Gutschrift aus einer Gutschrift erstellen. Es tut uns leid.","Δεν μπορείτε να δημιουργήσετε πιστωτικό σημείωμα από πιστωτικό σημείωμα. Συγνώμη.","ક્રેડિટ નોંધમાંથી તમે ક્રેડિટ નોટ બનાવી શકતા નથી. માફ કરશો","Ou pa ka kreye nòt kredi ki soti nan yon nòt kredi. Padon.","Ba za ku iya ƙirƙirar bayanin bashi daga bayanin kula bashi ba. Yi haƙuri.","You cannot create credit note from a credit note. Sorry.","आप एक क्रेडिट नोट से क्रेडिट नोट नहीं बना सकते माफ़ कीजिये।","You cannot create credit note from a credit note. Sorry.","Nem hozhat létre hiteljegyet a hiteljegyzékből. Sajnálom.","Þú getur ekki búið til lánshóp frá kreditkorti. Því miður.","I nweghi ike ịmepụta akwukwo n'aka n'aka akwukwo ego. Ndo.","Anda tidak dapat membuat catatan kredit dari catatan kredit. Maaf.","Ní féidir leat nóta creidmheasa a chruthú ó nóta creidmheasa. Tá brón orm.","Non è possibile creare note di credito da una nota di credito. Scusate.","クレジットノートからクレジットノートを登録することはできません。ごめんなさい。","Sampeyan ora bisa nggawe cathetan kredit saka cathetan kredit. Ngapunten.","ಕ್ರೆಡಿಟ್ ಟಿಪ್ಪಣಿಯಿಂದ ನೀವು ಕ್ರೆಡಿಟ್ ಟಿಪ್ಪಣಿಯನ್ನು ರಚಿಸಲಾಗುವುದಿಲ್ಲ. ಕ್ಷಮಿಸಿ.","Несие ескертуінен несие ескертуін жасай алмайсыз. Кешіріңіз.","អ្នកមិនអាចបង្កើតកំណត់ត្រាឥណទានពីកំណត់ត្រាឥណទានបានទេ។ សុំទោស។","신용 기록에서 신용 메모를 생성 할 수 없습니다. 죄송합니다.","Сиз кредиттик кыска кредиттик эскертүү түзүү мүмкүн эмес. Кечиресиз.","ທ່ານບໍ່ສາມາດສ້າງບັນທຶກການປ່ອຍສິນເຊື່ອຈາກບັນຊີເຄດິດ. ຂໍ​ໂທດ.","Non credit nota Vos can partum a credit nota. Nos paenitet.","Jūs nevarat izveidot kredītzīmi no kredītzīmes. Atvainojiet","Negalite sukurti kreditinės kortelės iš kredito įrašo. Atsiprašome","Dir kënnt keng Kreditnumm aus engem Kreditkonto erstellen. Entschëllegt.","Не можете да креирате кредитна белешка од кредитната белешка. За жал.","Tsy afaka mamorona taratasim-bola avy amin'ny taratasy fisaorana ianao. Miala tsiny.","Anda tidak boleh membuat nota kredit dari nota kredit. Maaf.","ക്രെഡിറ്റ് നോട്ടിൽ നിന്ന് ക്രെഡിറ്റ് നോട്ട് സൃഷ്ടിക്കാൻ നിങ്ങൾക്ക് കഴിയില്ല. ക്ഷമിക്കണം.","Ma tistax toħloq nota ta 'kreditu minn nota ta' kreditu. Jiddispjacini.","Kaore e taea e koe te hanga nama nama mai i te tuhi nama. Aroha mai.","आपण क्रेडिट नोट एका क्रेडिट नोटवरून तयार करू शकत नाही. क्षमस्व.","Кредит тэмдэглэлээс зээлийн тэмдэг үүсгэх боломжгүй. Уучлаарай.","သငျသညျခရက်ဒစ်မှတ်စုမှအကြွေးမှတ်ချက်ဖန်တီးလို့မရပါဘူး။ ဝမ်းနည်းပါတယ်။","तपाईंले क्रेडिट नोटबाट क्रेडिट नोट सिर्जना गर्न सक्नुहुन्न। माफ गर्नुहोस्।","Du kan ikke opprette kredittnota fra en kredittnota. Beklager.","Simungathe kulemba ngongole kuchokera ku ngongole ya ngongole. Pepani.","Nie możesz utworzyć noty kredytowej z noty kredytowej. Przepraszam.","Você não pode criar nota de crédito de uma nota de crédito. Desculpa.","ਤੁਸੀਂ ਕ੍ਰੈਡਿਟ ਨੋਟ ਇੱਕ ਕਰੈਡਿਟ ਨੋਟ ਤੋਂ ਨਹੀਂ ਬਣਾ ਸਕਦੇ. ਅਫਸੋਸ ਹੈ.","Nu puteți crea nota de credit dintr-o notă de credit. Scuze.","Вы не можете создать кредитную ноту из кредитной записки. Сожалею.","E le mafai ona e faia se pepa aitalafu mai se faʻamatalaga aitalafu. Faamalie.","Chan urrainn dhut nota creideis a chruthachadh bho nota creideis. Duilich.","Не можете да креирате кредитну поруку из кредитне ноте. Извињавам се.","Ha o khone ho etsa tlaleho ea mokitlane ho tsoa mokoloto oa mokitlane. Tšoarelo.","Iwe haugoni kuumba chikwereti chinyorwa kubva kune chikwereti chekwereti. Ndine hurombo.","නෝට්ටුවකින් ණය නෝට්ටුවක් සාදාගත නොහැක. සමාවන්න.","Nemôžete vytvoriť dobropis z dobropisu. Prepáč.","Kreditne note ne morete ustvariti iz kreditne note. Oprostite.","Kuma qori kartid xusuus-qorka deynka. Waan ka xunahay.","No puede crear una nota de crédito a partir de una nota de crédito. Lo siento.","Anjeun teu bisa nyieun catetan kiridit ti catetan kiridit. Hampura.","Huwezi kuandika maelezo ya mkopo kutoka kwa ripoti ya mikopo. Samahani.","Du kan inte skapa kreditnota från en kreditnot. Förlåt.","Hindi ka maaaring gumawa ng tala ng credit mula sa isang tala ng credit. Paumanhin.","Шумо метавонед аз ёдрасии қарзӣ қарз гиред. Бубахшед.","கிரெடிட் குறிப்பில் இருந்து கடன் குறிப்பு உருவாக்க முடியாது. மன்னிக்கவும்.","మీరు క్రెడిట్ నోట్ నుండి క్రెడిట్ గమనికను సృష్టించలేరు. క్షమించాలి.","คุณไม่สามารถสร้างบันทึกเครดิตจากใบลดหนี้ได้ ขอโทษ","Bir kredi notundan kredi notu oluşturamazsınız. Afedersiniz.","Ви не можете створити кредитну заяву з кредитної замітки. Вибачте","Kredit eslatmasidan kredit eslatmasini yaratishingiz mumkin emas. Kechirasiz.","Bạn không thể tạo ghi chú tín dụng từ một ghi chú về tín dụng. Lấy làm tiếc.","Ni allwch greu nodyn credyd o nodyn credyd. Mae'n ddrwg gennym.","Awukwazi ukudala inqaku lekhredithi kwi-note yekhredithi. Uxolo.","O ko le ṣẹda akọsilẹ kirẹditi lati akọsilẹ akọsilẹ. Binu.","Awukwazi ukudala inothi lesikweletu kusukela kumanothi esikweletu. Uxolo."]
["AFSKRIF","COPY","COPY","COPY","COPY","COPY","COPY","অনুলিপি","COPY","КОПИЕ","COPIA","COPY","Fùzhì","Fùzhì","COPIA","KOPIRATI","KOPÍROVAT","KOPI","KOPIËREN","COPY","COPIO","KOOPIA","KOPIO","COPIE","KOPY","COPIA","COPY","KOPIEREN","ΑΝΤΙΓΡΑΦΟ","કૉપિ કરો","KOPI","COPY","COPY","कॉपी","COPY","MÁSOLAT","COPY","MGBE","SALINAN","COPI","COPIA","COPY","COPY","COPY","COPY","COPY","부","КӨЧҮРМӨСҮ","COPY","PERSEQUOR","COPY","COPY","KOPIER","КОПИЈА","Copy","SALINAN","COPY","KOPJA","Tuhinga","कॉपी करा","COPY","မိတ္တူ","कापी","KOPIERE","COPY","KOPIUJ","CÓPIA DE","ਕਾਪੀ","COPIE","COPY","COPY","COPAIDH","ЦОПИ","COPY","COPY","කෝප්","COPY","KOPIRATI","COPY","DUPDO","NYALIN","COPY","KOPIERA","KOPYA","COPY","நகல்","కాపీ","สำเนา","KOPYA","КОПІЯ","Nusxa olish","COPY","COPI","COPY","COPY","I-COPY"]
["Verander faktuur taal","Ndryshoni gjuhën e faturës","የክፍያ መጠየቂያ ቋንቋን ይቀይሩ","Փոխեք հաշիվը","Faktura dilini dəyişdirin","Aldatu faktura hizkuntza","Змена мовы рахункі","চালান ভাষা পরিবর্তন করুন","Promijenite jezik fakture","Променете езика на фактурите","Canvia l'idioma de la factura","Usba ang pinulongang pinulongan","Gēnggǎi fāpiào yǔyán","Gēnggǎi fāpiào yǔyán","Change language in fattura","Izmijenite jezik fakture","Změňte jazyk faktur","Skift faktura sprog","Verander de factuurtaal","Change invoice language","Ŝanĝi fakturon de lingvo","Muutke arve keelt","Vaihda laskutuskieli","Modifier la langue de la facture","Ferkiezing taal feroarje","Cambia o idioma da factura","ინვოისის ენის შეცვლა","Rechnungssprache ändern","Αλλαγή γλώσσας τιμολογίου","ભરતિયું ભાષા બદલો","Chanje fakti lang","Canza harshe daftarin","Change invoice language","चालान भाषा बदलें","Change invoice language","Számlázási nyelv megváltoztatása","Breyta reiknings tungumáli","Gbanwee akwụkwọ ọnụahịa","Ubah bahasa faktur","Athraigh an teanga sonraisc","Cambia lingua della fattura","請求書言語を変更する","Ngganti tembung invoice","ಸರಕುಪಟ್ಟಿ ಭಾಷೆಯನ್ನು ಬದಲಿಸಿ","Шот-фактураның тілін өзгерту","ផ្លាស់ប្តូរភាសាវិក្កយបត្រ","송장 언어 변경","Эсеп-дүмүрчөктү өзгөртүү тили","ປ່ຽນພາສາໃບແຈ້ງຫນີ້","Mutare cautionem lingua","Mainīt rēķina valodu","Keisti sąskaitos faktūros kalbą","Rechnungssprooch änneren","Промени го јазикот на фактурата","Hanova fiteny fichier","Tukar bahasa invois","ഇൻവോയ്സ് ഭാഷ മാറ്റുക","Ibdel il-lingwa tal-fattura","Hurihia te reo nama","चलन भाषा बदला","Нэхэмжлэх хэлийг өөрчлөх","ပြောင်းလဲမှုကိုငွေတောင်းခံလွှာဘာသာစကား","इनभ्वाइस भाषा परिवर्तन गर्नुहोस्","Endre faktura språk","Sinthani chinenero cha invoice","Zmień język faktury","Alterar a linguagem da factura","ਇਨਵੌਇਸ ਭਾਸ਼ਾ ਨੂੰ ਬਦਲੋ","Modificați limba facturii","Изменить язык счета-фактуры","Suʻe le tusitusi","Atharraich cànan nam fàirdealan","Промените језик фактуре","Fetolela puo ea invoice","Shanduro invoice mutauro","ඉන්වොයිසි භාෂාව වෙනස් කරන්න","Zmena fakturačného jazyka","Spremeni jezik računa","Beddel luqadda qaansheegta","Cambiar el idioma de la factura","basa invoice robah","Badilisha lugha ya ankara","Ändra faktura språket","Baguhin ang wika ng invoice","Тағйир додани забон","விலைப்பட்டியல் மொழியை மாற்றவும்","ఇన్వాయిస్ భాషని మార్చండి","เปลี่ยนภาษาของใบแจ้งหนี้","Fatura dilini değiştir","Зміна мови рахунків-фактур","Billing tilini o'zgartiring","Thay đổi ngôn ngữ hóa đơn","Newid iaith anfoneb","Shintsha ulwimi lwe-invoyisi","Yi ede oniduro pada","Shintsha ulimi lwe-invoyisi"]
["Bank","Banka","ባንክ","Բանկը","Bank","Bank","банк","ব্যাংক","Bank","банка","Banc","Bank","Bank","Bank","Banca","Banka","banka","Bank","Bank","Bank","Banko","Pank","Pankki","Banque","Bank","Banco","ბანკი","Bank","Τράπεζα","બેન્ક","Bank","Bank","Bank","बैंक","Bank","Bank","Bank","Bank","Bank","Banc","Banca","バンク","Bank","ಬ್ಯಾಂಕ್","Банк","ធនាគារ","은행","банк","ທະນາຄານ","Bank","Banka","bankas","Bank","Банка","Bank","Bank","ബാങ്ക്","Bank","Bank","बँक","Банк","ကမ်း","बैंक","Bank","Bank","Bank","Banco","ਬੈਂਕ","bancă","Банка","Faletupe","Banca","банка","Bank","Bank","බැංකුව","breh","Bank","Bangiga","Banco","bank","Benki","Bank","bangko","Бонк","வங்கி","బ్యాంక్","ธนาคาร","Banka","Банк","Bank","ngân hàng","Banc","IBhanki","Bank","Ibhange"]
["IBAN nommer","Numri IBAN","IBAN ቁጥር","IBAN համարը","IBAN nömrəsi","IBAN zenbakia","нумар IBAN","ইবান সংখ্যা","IBAN broj","IBAN номер","Número IBAN","IBAN number","IBAN number","IBAN number","Numaru IBAN","IBAN broj","IBAN číslo","IBAN nummer","IBAN nummer","IBAN number","IBAN-nombro","IBAN-i number","IBAN-tilinumero","Numéro IBAN","IBAN nûmer","Número IBAN","IBAN ნომერი","IBAN-Nummer","Αριθμός IBAN","IBAN નંબર","Nimewo IBAN","Lambar IBAN","IBAN number","आईबैन संख्या","IBAN number","IBAN szám","IBAN númer","IBAN nọmba","Nomor IBAN","Uimhir IBAN","Numero IBAN","IBAN番号","Nomer IBAN","ಐಬಿಎಎನ್ ಸಂಖ್ಯೆ","IBAN нөмірі","លេខ IBAN","IBAN 번호","IBAN номери","ເລກ IBAN","IBAN numerus","IBAN numurs","IBAN numeris","IBAN Nummer","IBAN број","IBAN isa","Nombor IBAN","IBAN നമ്പർ","Numru IBAN","IBAN tau","IBAN क्रमांक","IBAN дугаар","IBAN နံပါတ်","आईबीएन नम्बर","IBAN-nummer","Nambala ya IBAN","Numer IBAN","Número do iban","IBAN ਨੰਬਰ","Numar IBAN","Номер IBAN","Numera IBAN","Àireamh IBAN","Ибан","Nomoro ea IBAN","Nhamba yeBAN","IBAN අංකය","Číslo IBAN","Številka IBAN","Lambarka IBAN","Número IBAN","jumlah IBAN","Nambari ya IBAN","IBAN-nummer","Numero ng IBAN","Рақами IBAN","IBAN எண்","IBAN నంబర్","Iban จำนวน","IBAN numarası","Номер IBAN","IBAN raqami","Số Iban","Rhif IBAN","Inombolo ye-IBAN","Nọmba IBAN","Inombolo ye-IBAN"]
["Snelkode","Kodi SWIFT","የባንክ ስዊፍት መለያ ቁጥር","SWIFT կոդը","SWIFT kodu","SWIFT kodea","SWIFT код","SWIFT কোড","SWIFT kod","SWIFT код","Codi Swift","SWIFT code","SWIFT code","SWIFT code","Codice SWIFT","SWIFT kôd","SWIFT kód","Swift kode","Swift code","SWIFT code","SWIFT-kodo","Kiirkood","Swift-koodi","Code rapide","SWIFT-koade","Código SWIFT","სვიფტ კოდი","SWIFT-Code","Κωδικός SWIFT","સ્વિફ્ટ કોડ","Kòd SWIFT","SWIFT code","SWIFT code","स्विफ्ट कोड","SWIFT code","Swift kód","SWIFT kóða","Swift koodu","Tukar Kode","Cód sciobtha","Codice SWIFT","スウィフトコード","Kode SWIFT","ಸ್ವಿಫ್ಟ್ ಕೋಡ್","Swift коды","លេខ​កូដ​រហ័ស","SWIFT 코드","SWIFT коду","SWIFT code","Kods","SWIFT kods","SWIFT kodas","SWIFT Code","SWIFT код","Kaody Swift","Kod pantas","സ്വിഫ്റ്റ് കോഡ്","Kodiċi SWIFT","Waehere SWIFT","स्विफ्ट कोड","SWIFT код","ဆွစ်ကုဒ်အမှတ်","SWIFT कोड","SWIFT-kode","Siwifiti khodi","Kod SWIFT","Código Swift","ਸ੍ਵਿਫ਼ਤ ਕਉਡ","Codul SWIFT","SWIFT-код","SWIFT code","Còd SWIFT","Свифт код","Swift code","SWIFT code","ස්විෆ්ට් කේතය","SWIFT kód","Koda SWIFT","SWIFT code","Código SWIFT","Kodeu Swift","Msimbo wa SWIFT","SWIFT-kod","SWIFT code","Рамзи СВИФТ","SWIFT குறியீடு","SWIFT కోడ్","รหัส SWIFT","Swift kodu","Швидкий код","SWIFT kodi","Mã SWIFT","Cod Cyflym","Ikhowudi yajikelele yebhanki","Kodu siwfiti","Ikhodi ye-swift"]
["onaktiewe","joaktiv","ገባሪ አይደለም","Անգործուն","Aktiv deyil","Aktibo ez","неактыўны","নিষ্ক্রিয়","Neaktivan","неактивен","Inactiu","Inactive","Inactive","Inactive","Inattivu","neaktivan","Neaktivní","inaktive","Inactief","Inactive","Senaktiva","Mitteaktiivne","Epäaktiivinen","Inactif","Ynaktyf","Inactivo","არააქტიური","Inaktiv","Αδρανής","નિષ્ક્રિય","Inaktif","Mai aiki","Inactive","निष्क्रिय","Inactive","tétlen","Óvirkt","Na-adịghị arụ ọrụ","Tidak aktif","Neamhghníomhach","Inattivo","非アクティブ","Ora aktif","ನಿಷ್ಕ್ರಿಯವಾಗಿದೆ","Белсенді емес","អសកម្ម","비활성","Иштеген","Inactive","Ut ultrices vestibulum","Neaktīvs","Neaktyvus","Inaktiv sinn","Неактивен","tsy mavitrika","Tidak aktif","നിഷ്ക്രിയം","Inattivi","Korekore","निष्क्रिय","Идэвхигүй","မလှုပ်ရှားတတ်သော","निष्क्रिय","inaktiv","Simukugwira ntchito","Nieaktywny","Inativo","ਨਿਸ਼ਕਿਰਿਆ","Inactiv","Неактивный","Le toaga","Neo-ghnìomhach","Неактиван","Ha e sebetse","Inactive","අක්රියයි","neaktívne","Neaktivno","Waxqaban la'aan","Inactivo","teu aktip","Haikufanya kazi","Inaktiv","Di-aktibo","Ғайрифаъол","செயல்படா","క్రియారహిత","เฉื่อยชา","etkisiz","Неактивний","Faol emas","Không hoạt động","Anweithgar","Ayisebenzi","Inactive","Ayisebenzi"]
["Kliëntaal is nie in vertaallys nie. Korrigeer asseblief in Taalopstelling of verander klante land.","Gjuha e klientit nuk është në listën e përkthimeve. Ju lutem korrigjoni në konfigurimin e Language ose ndryshoni vendin e klientit.","የደንበኛ ቋንቋ በትርጉም ዝርዝር ውስጥ የለም. እባክዎ በቋንቋ ቅንብር ያስተካክሉ ወይም የደንበኛን አገር ይቀይሩ.","Հաճախորդի լեզուն չի թարգմանության ցանկում: Խնդրում ենք ուղղել Լեզվի կարգավորումը կամ փոխել հաճախորդի երկիրը:","Müştəri dili tərcümə siyahısında deyil. Dil qurulmasında düzəliş edin və ya müştəri ölkəsini dəyişdirin.","Bezeroaren hizkuntza ez dago itzulpen zerrendan. Zuzendu hizkuntza konfiguratu edo aldatu bezeroaren herrialdea.","Мова кліента няма ў спісе перакладаў. Калі ласка, выпраўце у наладах мовы ці змяніць краіну кліента.","গ্রাহক ভাষা অনুবাদ তালিকায় নেই। ভাষা সেট আপ করুন বা গ্রাহক দেশ পরিবর্তন করুন।","Jezik klijenta nije na listi prevoda. Molimo ispravite postavku jezika ili promenite zemlju kupca.","Езикът на клиента не е в списъка с преводи. Моля, коригирайте езиковата настройка или променете потребителската страна.","L'idioma del client no es troba a la llista de traducció. Corregiu la configuració de l'idioma o canvieu el país del client.","Customer language is not in translation list. Please correct in Language setup or change customer country.","Customer language is not in translation list. Please correct in Language setup or change customer country.","Customer language is not in translation list. Please correct in Language setup or change customer country.","A lingua di u cliente ùn hè micca in traduzzione. Correghjate in Lingua setup o cambià u cliente di paese.","Jezik korisnika nije na popisu prijevoda. Ispravite postavku jezika ili promijenite zemlju korisnika.","Jazyk zákazníka není v seznamu překladů. Opravte prosím nastavení jazyka nebo změňte zemi zákazníka.","Kundesprog er ikke på oversættelsesliste. Ret venligst i sprogopsætning eller skift kundeland.","De taal van de klant staat niet in de vertaallijst. Corrigeer in Taalinstellingen of wijzig het land van de klant.","Customer language is not in translation list. Please correct in Language setup or change customer country.","Klienta lingvo ne estas en traduklingva listo. Bonvolu korekti lingvan instalon aŭ ŝanĝi klienton.","Kliendi keel ei ole tõlketekstis. Palun paranda keele seadistuses või muutke kliendriiki.","Asiakkaan kieli ei ole käännösluettelossa. Korjaa kieliasetukset tai vaihda asiakasmaa.","La langue du client n'est pas dans la liste de traduction. Veuillez corriger dans la configuration de la langue ou changer le pays du client.","Kunde-taal is net yn oersetting-list. Meitsje asjebleaft yn taal setup of wiksellientje.","A lingua do cliente non está na lista de tradución. Corrixir a configuración de idioma ou cambiar o país do cliente.","მომხმარებელთა ენა არ არის თარგმანის სიაში. გთხოვთ, შეასწოროთ ენაზე კონფიგურაცია ან შეცვალოთ მომხმარებლის ქვეყანა.","Kundensprache ist nicht in der Übersetzungsliste. Bitte korrigieren Sie die Spracheinstellung oder ändern Sie das Kundenland.","Η γλώσσα του πελάτη δεν βρίσκεται στη λίστα μεταφράσεων. Παρακαλούμε διορθώστε τη ρύθμιση γλώσσας ή αλλάξτε τη χώρα πελάτη.","ગ્રાહક ભાષા અનુવાદ સૂચિમાં નથી. કૃપા કરીને ભાષા સેટઅપમાં સુધારો અથવા ગ્રાહક દેશને બદલો.","Lang Kliyan se pa nan lis tradiksyon. Tanpri korije nan konfigirasyon Lang oswa chanje peyi kliyan.","Abokin ciniki harshe ne ba a translation jerin. Don Allah gyara a Harshe saitin ko canza abokin ciniki kasar.","Customer language is not in translation list. Please correct in Language setup or change customer country.","ग्राहक भाषा अनुवाद सूची में नहीं है। कृपया भाषा सेटअप में सुधार करें या ग्राहक देश बदलें।","Customer language is not in translation list. Please correct in Language setup or change customer country.","Az ügyfélnyelv nem fordítási lista. Kérjük, javítsa ki a nyelvi beállításokat vagy az ügyfél országát.","Tungumál viðskiptavinar er ekki á þýðingar listanum. Vinsamlegast lagfærðu þig í Language skipulagi eða breyttu landi viðskiptavina.","Asụsụ ndị ahịa adịghị na ndepụta nsụgharị. Biko gbanwee n'usoro asụsụ ma ọ bụ gbanwee mba ndị ahịa.","Bahasa pelanggan tidak ada dalam daftar terjemahan. Harap perbaiki pengaturan Bahasa atau ubah negara pelanggan.","Níl an liosta aistrithe i dteanga an chustaiméara. Corraigh i mbun Teanga nó athrú tíortha an chustaiméara.","La lingua del cliente non è nella lista di traduzione. Si prega di correggere nella configurazione della lingua o cambiare il paese del cliente.","お客様の言語は翻訳リストにありません。言語の設定やお客様の国の変更で修正してください。","Pangguna basa ora ana ing daftar terjemahan. Mangga mbenerake ing persiyapan Basa utawa ngganti negara pelanggan.","ಗ್ರಾಹಕ ಭಾಷೆ ಅನುವಾದ ಪಟ್ಟಿಯಲ್ಲಿ ಇಲ್ಲ. ಭಾಷಾ ಸೆಟಪ್ನಲ್ಲಿ ಬದಲಾವಣೆ ಮಾಡಿ ಅಥವಾ ಗ್ರಾಹಕ ರಾಷ್ಟ್ರವನ್ನು ಬದಲಾಯಿಸಿ.","Тұтынушының тілі аударма тізімінде жоқ. Тіл параметрлерін түзетіңіз немесе тұтынушы елін өзгертіңіз.","ភាសាអតិថិជនមិនស្ថិតនៅក្នុងបញ្ជីបកប្រែទេ។ សូមកែតម្រូវនៅក្នុងការរៀបចំភាសាឬផ្លាស់ប្តូរប្រទេសរបស់អតិថិជន។","고객 언어가 번역 목록에 없습니다. 언어 설정에서 수정하거나 고객 국가를 변경하십시오.","Кардар тилиндеги котормо тизмеде жок. Сураныч, тили орнотуп жазала, же кардардын өлкөнү өзгөртүү.","ພາສາຂອງລູກຄ້າບໍ່ຢູ່ໃນລາຍການແປພາສາ. ກະລຸນາແກ້ໄຂໃນການຕິດຕັ້ງພາສາຫຼືປ່ຽນປະເທດລູກຄ້າ.","Customer lingua album, non est in translatione. Placere corrigere vel mutare setup in Lingua patria elit.","Klientu valoda nav tulkošanas sarakstā. Lūdzu, labojiet valodas iestatījumu vai mainiet klienta valsti.","Kliento kalba nėra vertimo sąraše. Prašome ištaisyti kalbos nustatymą arba pakeisti kliento šalį.","Kengsprooch ass net an Iwwersetzungslëscht. Kuckt weg op d'Sproochenopéierung oder de Kandidatelänner änneren.","Јазикот на клиентот не е во превод листата. Ве молиме поправете го јазикот за поставување или промена на земјата на купувачи.","Tsy ny lisitry ny mpandika teny amin'ny lisitry ny fandikan-teny. Azafady azafady amin'ny fametrahana ny fiteny na fanovana ny firenena mpanjifa.","Bahasa pelanggan tidak dalam senarai terjemahan. Sila betulkan persediaan Bahasa atau tukar negara pelanggan.","ഉപയോക്തൃ ഭാഷ വിവർത്തന ലിസ്റ്റിൽ ഇല്ല. ഭാഷാ സെറ്റപ്പിൽ ശരിയാക്കുക അല്ലെങ്കിൽ ഉപഭോക്തൃ രാജ്യത്തെ മാറ്റുക.","Il-lingwa tal-klijent mhix fil-lista tat-traduzzjoni. Jekk jogħġbok ikkoreġi s-setup tal-Lingwa jew ibiddel il-pajjiż tal-klijent.","Kaore te reo kiritaki i roto i te rarangi whakawhiti. Whakatikahia te tautuhinga reo me te huri i te whenua kiritaki.","ग्राहक भाषा भाषांतर सूचीमध्ये नाही. कृपया भाषा सेटअपमध्ये सुधारणा करा किंवा ग्राहक देश बदला.","Хэрэглэгчийн хэл нь орчуулгын жагсаалтад байхгүй байна. Хэлний тохиргоо эсвэл харилцагч орныг солих уу.","ဖောက်သည်ဘာသာစကားဘာသာပြန်ချက်စာရင်းထဲတွင်မဟုတ်ပါဘူး။ ဘာသာစကားများ setup ကိုသို့မဟုတ်ပြောင်းလဲမှုဖောက်သည်နိုင်ငံအတွင်းရှိပြင်ပေးပါ။","ग्राहक भाषा अनुवाद सूचीमा छैन। कृपया भाषा सेटअपमा सच्याउनुहोस् वा ग्राहक देश परिवर्तन गर्नुहोस्।","Landet som er registrert på kunden ligger ikke i listen din over språkoversettelser. Kjør Language Setup eller endre land på kunden.","Chilankhulo cha makasitomala sichimasuliridwa m'zinenero. Chonde lolani kukonzekera kwa Chilankhulo kapena kusintha kasitomala.","Język klienta nie znajduje się na liście tłumaczeń. Popraw ustawienia językowe lub zmień kraj klienta.","O idioma do cliente não está na lista de tradução. Corrija na configuração de idioma ou altere o país do cliente.","ਗਾਹਕ ਭਾਸ਼ਾ ਅਨੁਵਾਦ ਸੂਚੀ ਵਿੱਚ ਨਹੀਂ ਹੈ ਕਿਰਪਾ ਕਰਕੇ ਭਾਸ਼ਾ ਸੈੱਟਅੱਪ ਵਿੱਚ ਸਹੀ ਕਰੋ ਜਾਂ ਗਾਹਕ ਦੇਸ਼ ਨੂੰ ਬਦਲੋ.","Limba clientului nu se află în lista de traduceri. Corectați setarea limbii sau modificați țara clientului.","Язык клиента не указан в списке переводов. Исправьте язык или измените страну клиента.","E leʻo le gagana tagata faʻatau i le lisi o faaliliuga. Faamolemole faasaʻo i le Seti gagana poʻo le suia o le atunuu.","Chan eil cànan luchd-cleachdaidh ann an liosta eadar-theangachaidh. Dèan ceart ann an suidheachadh Cànain no atharraich thu dùthaich luchd-ceannach.","Језик корисника није на листи превођења. Молимо исправите језик у подешавањима језика или промените државу купца.","Puo ea bareki ha e na lethathamo la liphetolelo. Ka kopo lokisa ho setupong sa puo kapa fetola naha ea bareki.","Mutauro weKateresi hausi mushanduro. Ndapota ruramisa muIndaneti setup kana kuti shandura mutengi wenyika.","පාරිභෝගික භාෂා පරිවර්තන ලැයිස්තුවේ නැත. කරුණාකර භාෂා සැකසීමෙන් හෝ පාරිභෝගික රට වෙනස් කරන්න.","Jazyk zákazníka nie je v zozname prekladov. Upravte nastavenie jazyka alebo zmenu krajiny zákazníka.","Jezik stranke ni na seznamu prevajanja. Prosimo, popravite jezikovno nastavitev ali spremenite državo odjemalca.","Luqada macaamiisha kuma jirta liiska turjubaanka. Fadlan sax ku dhig qaabka Luqad ama beddel waddanka macaamiisha.","El idioma del cliente no está en la lista de traducción. Corríjalo en Configuración de idioma o cambie el país del cliente.","basa customer henteu dina daptar tarjamah. Mangga ngabenerkeun dina setelan Basa atanapi robah nagara customer.","Lugha ya Wateja haipo katika orodha ya kutafsiri. Tafadhali soma katika kuanzisha lugha au kubadilisha nchi ya wateja.","Kundspråk är inte i översättarlistan. Vänligen korrigera i språkinställningar eller ändra kundland.","Ang wika ng mamimili ay wala sa listahan ng pagsasalin. Mangyaring iwasto sa pag-setup ng Wika o palitan ang bansa ng kostumer.","Забони мизоҷ дар рӯйхати тарҷума нест. Лутфан, дар забони дилхоҳ санҷед ё кишвари муштариро тағир диҳед.","வாடிக்கையாளர் மொழி மொழிபெயர்ப்பு பட்டியலில் இல்லை. மொழி அமைப்பில் திருத்தவும் அல்லது வாடிக்கையாளர் நாட்டை மாற்றவும்.","కస్టమర్ భాష అనువాదం జాబితాలో లేదు. దయచేసి భాషా సెటప్లో సరిచేయండి లేదా కస్టమర్ దేశాన్ని మార్చండి.","ภาษาของลูกค้าไม่อยู่ในรายการแปล โปรดแก้ไขในการตั้งค่าภาษาหรือเปลี่ยนประเทศของลูกค้า","Müşteri dili çeviri listesinde yok. Lütfen Dil kurulumunu düzeltin veya müşteri ülkesini değiştirin.","Мова замовника не в перекладі. Будь ласка, виправте налаштування мови або змініть країну замовника.","Xaridor tili tarjima ro'yxatida yo'q. Iltimos, tilni sozlashda to'g'rilang yoki mijoz davlatini o'zgartiring.","Ngôn ngữ của khách hàng không nằm trong danh sách dịch. Vui lòng sửa trong Cài đặt ngôn ngữ hoặc thay đổi quốc gia của khách hàng.","Nid yw iaith y cwsmer yn y rhestr gyfieithu. Cywirwch mewn gosodiad Iaith neu newid gwlad gwsmer.","Ulwimi lomthengi alukho uluhlu lokuguqulela. Nceda ulungise ukulungiswa kweelwimi okanye utshintshe ilizwe lomthengi.","Onibara ti kii ṣe ni akojọ iyipada. Jọwọ ṣe atunṣe ni Ṣeto ede tabi yi orilẹ-ede alabara pada.","Ulimi lwamakhasimende alukho ohlwini lokuhumusha. Sicela ulungise ukusetha kolimi noma ushintshe izwe lamakhasimende."]
["Gebruik artikelvertaling","Përdorni përkthimin e artikullit","የጽሑፍ ትርጉምን ይጠቀሙ","Օգտագործեք հոդվածի թարգմանությունը","Məqalənin tərcüməsini istifadə edin","Artikuluaren itzulpena erabili","Выкарыстанне артыкула пераклад","নিবন্ধ অনুবাদ ব্যবহার করুন","Koristite prevod članka","Използвайте превод на статии","Utilitzeu la traducció de l'article","Use article translation","Use article translation","Use article translation","Aduprà a traduzzione","Koristite prijevod članka","Použijte překlad článku","Brug artiklen oversættelse","Gebruik artikelvertaling","Use article translation","Uzu artikola tradukado","Kasutage artikli tõlget","Käytä artikkelin käännöstä","Utiliser la traduction d'un article","Brûk artikel oersetting","Use a tradución do artigo","გამოიყენეთ სტატიის თარგმანი","Verwenden Sie die Artikelübersetzung","Χρησιμοποιήστε μετάφραση άρθρου","લેખ અનુવાદનો ઉપયોગ કરો","Itilize atik tradiksyon","Yi amfani da fassarar labarin","Use article translation","लेख अनुवाद का प्रयोग करें","Use article translation","Használjon cikkfordítást","Notaðu greinar þýðingar","Jiri nsụgharị isiokwu","Gunakan terjemahan artikel","Úsáid aistriúchán alt","Usa la traduzione dell'articolo","記事翻訳を使用する","Gunakake terjemahan artikel","ಲೇಖನ ಅನುವಾದವನ್ನು ಬಳಸಿ","Мақала аудармасын пайдаланыңыз","ប្រើការបកប្រែអត្ថបទ","기사 번역 사용","макала котормосун колдонуу","ໃຊ້ການແປບົດຄວາມ","Articulus uti translatione","Izmantojiet raksta tulkošanu","Naudokite straipsnio vertimą","Benotzt Artikel Iwwersetzung","Користете го статијата превод","Ampiasao lahatsoratra lahatsoratra","Gunakan terjemahan artikel","ലേഖന വിവർത്തനം ഉപയോഗിക്കുക","Uża traduzzjoni ta 'l-artikolu","Whakamahia te whakamaori tuhinga","लेख भाषांतर वापरा","Өгүүлбэр орчуулга ашиглах","ဆောင်းပါးဘာသာပြန်ချက်ကိုသုံးပါ","लेख अनुवाद प्रयोग गर्नुहोस्","Bruk artikkeloversettelse","Gwiritsani ntchito kumasulira kwina","Użyj tłumaczenia artykułów","Use a tradução do artigo","ਲੇਖ ਅਨੁਵਾਦ ਵਰਤੋ","Utilizați traducerea articolelor","Используйте перевод статьи","Faaaoga le faaliliuga o tusitusiga","Cleachdaiche eadar-theangachadh","Користите превод чланка","Sebelisa phetolelo ea sehlooho","Shandisa nyaya yekushandura","ලිපියේ පරිවර්තනය භාවිතා කරන්න","Použite preklad článku","Uporabite prevod članka","Isticmaal tarjumaad qoraal","Use la traducción del artículo","Paké panarjamahan Vérsi artikel","Tumia tafsiri ya makala","Använd artikelöversättning","Gamitin ang pagsasalin ng artikulo","Тарҷумаи мақола истифода кунед","கட்டுரை மொழிபெயர்ப்பு பயன்படுத்தவும்","వ్యాసం అనువాదం ఉపయోగించండి","ใช้การแปลบทความ","Makale çevirisini kullan","Використовуйте переклад статті","Maqola tarjimasini foydalaning","Sử dụng bản dịch bài viết","Defnyddiwch gyfieithiad erthygl","Sebenzisa ukuguqulelwa kwinqaku","Lo itumọ ọrọ","Sebenzisa ukuhumusha kwesihloko"]
["Naby","afër","ገጠመ","փակել","Yaxın","Itxi","блізка","ঘনিষ্ঠ","Zatvori","Близо","Tanca","Close","Close","Close","Chiudere","Zatvoriti","Zavřít","Tæt","Dichtbij","Close","Fermi","Sulge","kiinni","Fermer","Slute","Pechar","დახურვა","Schließen","Κοντά","બંધ","Fèmen","Kusa","Close","बंद करे","Close","Bezárás","Loka","Mechie","Dekat","Dún","Vicino","閉じる","Nutup","ಮುಚ್ಚಿ","Жабық","បិទ","닫기","жакын","ປິດ","prope","Aizvērt","Uždaryti","Zoumaachen","Затвори","Close","Tutup","അടയ്ക്കുക","Agħlaq","Katia","बंद","Хаах","ပိတ်","बन्द गर्नुहोस्","Lukk","Yandikirani","Blisko","Fechar","ਬੰਦ ਕਰੋ","Închide","Закрыть","Katia","Dùin","Близу","E haufi","Swedera","වසන්න","Zavrieť","Zapri","Xir","Cerca","nutup","Funga","Stänga","Isara","Пӯшед","நெருக்கமான","Close","ปิด","Kapat","Закрити","Yoping","Gần","Yn agos","Vala","Pa","Vala"]
["Van toepassing op faktuur nommer","Zbatohet në numrin e faturës","የዋጋ መጠየቂያ ቁጥርን ይተገበር","Կիրառվում է հաշվի համարը","Faktura nömrəsinə tətbiq edilir","Faktura-zenbakia aplikatzen da","Ставіцца да Нумар рахункі-фактуры","চালান সংখ্যা প্রয়োগ করা হয়","Primenjuje se na broj računa","Отнася се за номера на фактурата","S'aplica al número de la factura","Applies to invoice number","Applies to invoice number","Applies to invoice number","Appiche à u numaru di fattura","Primjenjuje se na broj fakture","Platí pro číslo faktury","Gælder for fakturanummer","Geldt voor factuurnummer","Applies to invoice number","Aplikas fakturon nombro","Kohaldatakse arve numbrile","Koskee laskun numeroa","S'applique au numéro de facture","Jildt op invoice nûmer","Aplícase ao número de factura","ინვოისის ნომერს მიმართავს","Gilt für die Rechnungsnummer","Ισχύει για τον αριθμό τιμολογίου","ભરતિયું નંબર પર લાગુ થાય છે","Aplike nan nimewo fakti","Aiwatar zuwa lambar daftarin","Applies to invoice number","इनवॉइस नंबर पर लागू होता है","Applies to invoice number","A számlaszámra vonatkozik","Gildir reikningsnúmeri","Na-eziga nọmba ọnụahịa","Berlaku untuk nomor faktur","Baineann sé leis an uimhir sonraisc","Si applica al numero di fattura","請求書番号に適用されます。","Ditrapake kanggo nomer invoice","ಸರಕುಪಟ್ಟಿ ಸಂಖ್ಯೆಗೆ ಅನ್ವಯಿಸುತ್ತದೆ","Шот-фактура нөміріне қолданылады","អនុវត្តចំពោះលេខវិក័យប័ត្រ","송장 번호에 적용됩니다.","санын -энергетика колдонулат","ປະຕິບັດກັບຈໍານວນໃບເກັບເງິນ","Invoice se habet cum numero","Attiecas uz rēķina numuru","Taikoma sąskaitos faktūros numeriui","Gitt op Rechnungszuel","Се однесува на бројот на фактурата","Ampiharina amin'ny laharan'ny kaonty","Berkenaan dengan nombor invois","ഇൻവോയ്സ് നമ്പറിലേക്ക് പ്രയോഗിക്കുന്നു","Japplika għan-numru tal-fattura","Ka tuku ki te tau nama","चलन क्रमांकावर लागू आहे","Нэхэмжлэхийн дугаарыг хэрэглэнэ","အရေအတွက်ကငွေတောင်းပြေစာပို့သက်ဆိုင်","इनभ्वाइस नम्बरमा लागू हुन्छ","Kreditnota for  faktura nr","Ikugwiritsidwa ntchito ku nambala yowonjezera","Dotyczy numeru faktury","Aplica-se ao número da factura","ਇਨਵੌਇਸ ਨੰਬਰ ਤੇ ਲਾਗੂ ਹੁੰਦਾ ਹੈ","Se aplică la numărul facturii","Применяется к номеру счета","Apalai i le numera tau","A 'buntainn ri àireamh an fhàirdeis","Примењује се на број фактуре","E sebetsa ho nomoro ea invoice","Inoshandiswa ku nhamba ye invoice","ඉන්වොයිස් අංකයට අදාල වේ","Platí pre číslo faktúry","Velja za številko računa","Wuxuu adeegsadaa lambarka qaansheegta","Se aplica al número de factura","Manglaku ka invoice angka","Inatumika kwa nambari ya ankara","Gäller fakturanummer","Nalalapat sa numero ng invoice","Рақами суратҳисобро истифода мебарад","விலைப்பட்டியல் எண்ணுக்கு பொருந்தும்","ఇన్వాయిస్ సంఖ్యకు వర్తిస్తుంది","ใช้กับหมายเลขใบแจ้งหนี้","Fatura numarasına uygulanır","Застосовується до рахунку-фактури","Billing raqami uchun amal qiladi","Áp dụng cho số hoá đơn","Yn berthnasol i rif anfoneb","Isebenza kwinombolo ye-invoyisi","Wọ si nọmba nọmba idoba","Isebenza kwinombolo ye-invoyisi"]

{"sheet":"Language table","index":5,"n_rows":97,"n_cols":4,"rows_kept":97,"cut":false,"hidden":true,"merged":[]}
["Language","Code","Selected"]
["Afrikaans","af"]
["Albanian","sq"]
["Amharic","am"]
["Armenian","hy"]
["Azeerbaijani","az"]
["Basque","eu"]
["Belarusian","be"]
["Bengali","bn"]
["Bosnian","bs"]
["Bulgarian","bg"]
["Catalan","ca"]
["Cebuano","ceb",null,"ceb (ISO-639-2)"]
["Chinese (Simplified)","zh-CN",null,"zh-CN (BCP-47)"]
["Chinese (Traditional)","zh-TW",null,"zh-TW (BCP-47)"]
["Corsican","co"]
["Croatian","hr"]
["Czech","cs"]
["Danish","da"]
["Dutch","nl"]
["English","en","x"]
["Esperanto","eo"]
["Estonian","et"]
["Finnish","fi"]
["French","fr"]
["Frisian","fy"]
["Galician","gl"]
["Georgian","ka"]
["German","de"]
["Greek","el"]
["Gujarati","gu"]
["Haitian Creole","ht"]
["Hausa","ha"]
["Hawaiian","haw (ISO-639-2)"]
["Hindi","hi"]
["Hmong","hmn (ISO-639-2)"]
["Hungarian","hu"]
["Icelandic","is"]
["Igbo","ig"]
["Indonesian","id"]
["Irish","ga"]
["Italian","it"]
["Japanese","ja"]
["Javanese","jw"]
["Kannada","kn"]
["Kazakh","kk"]
["Khmer","km"]
["Korean","ko"]
["Kyrgyz","ky"]
["Lao","lo"]
["Latin","la"]
["Latvian","lv"]
["Lithuanian","lt"]
["Luxembourgish","lb"]
["Macedonian","mk"]
["Malagasy","mg"]
["Malay","ms"]
["Malayalam","ml"]
["Maltese","mt"]
["Maori","mi"]
["Marathi","mr"]
["Mongolian","mn"]
["Myanmar (Burmese)","my"]
["Nepali","ne"]
["Norwegian","no","x"]
["Nyanja (Chichewa)","ny"]
["Polish","pl"]
["Portuguese (Portugal, Brazil)","pt"]
["Punjabi","pa"]
["Romanian","ro"]
["Russian","ru"]
["Samoan","sm"]
["Scots Gaelic","gd"]
["Serbian","sr"]
["Sesotho","st"]
["Shona","sn"]
["Sinhala (Sinhalese)","si"]
["Slovak","sk"]
["Slovenian","sl"]
["Somali","so"]
["Spanish","es"]
["Sundanese","su"]
["Swahili","sw"]
["Swedish","sv"]
["Tagalog (Filipino)","tl"]
["Tajik","tg"]
["Tamil","ta"]
["Telugu","te"]
["Thai","th"]
["Turkish","tr"]
["Ukrainian","uk"]
["Uzbek","uz"]
["Vietnamese","vi"]
["Welsh","cy"]
["Xhosa","xh"]
["Yoruba","yo"]
["Zulu","zu"]

{"sheet":"Data","index":6,"n_rows":1,"n_cols":6,"rows_kept":1,"cut":false,"hidden":false,"merged":[]}
[{"$f":"txt(48,_Lng)","v":"Article no"},{"$f":"Parametre!E25","v":"English"},{"$f":"txt(49,_Lng)","v":"Description"},{"$f":"txt(50,_Lng)","v":"Unit"},{"$f":"txt(51,_Lng)","v":"Price"},{"$f":"txt(52,_Lng)","v":"VAT %"}]

{"sheet":"Parametre","index":7,"n_rows":120,"n_cols":8,"rows_kept":120,"cut":false,"hidden":false,"merged":[]}
["Invoice number",1021]
[]
[]
["First invoice number",1000]
["First article row",12]
["Last Article row",39]
["Article Column"]
[]
["Pdf-name","F:\\Data-Lokal\\Guru\\Faktura\\2018.03.03 - Multilanguage\\2021.09.04\\Invoice_1020.pdf"]
[]
["Delete article rows on new invoice","J"]
["Lagret",0]
["Demo",0]
["UpdatelinksOnSave",true]
[]
[]
[]
["English column",2,"en"]
["TranslateArticles","English/Danish"]
["Application interface language",20,{"$f":"INDIRECT(\"Language!\"&coletter(_Lng) & \"1\")","v":"English"}]
["Invoice language",66,{"$f":"INDIRECT(\"Language!\"&coletter(_InvLng) & \"1\")","v":"Polish"}]
["Translate articles?",true]
["CurrencyWarning",true,null,null,"Invoice languages"]
["All languages","Code",null,null,"Application language","Code","Line"]
["Afrikaans","af",null,null,"English","en",21,"<-Application Language"]
["Albanian","sq",null,null,"Norwegian","no",65]
["Amharic","am",null,null,"Swedish","sv"]
["Armenian","hy",null,null,"Danish","da"]
["Azeerbaijani","az",null,null,"Finnish","fi"]
["Basque","eu",null,null,"German","de"]
["Belarusian","be",null,null,"Polish","pl"]
["Bengali","bn",null,null,"Latvian","lv"]
["Bosnian","bs",null,null,"Lithuanian","lt"]
["Bulgarian","bg",null,null,"Russian","ru",71]
["Catalan","ca",null,null,"Punjabi","pa",69]
["Cebuano","ceb (ISO-639-2)"]
["Chinese (Simplified)","zh-CN (BCP-47)"]
["Chinese (Traditional)","zh-TW (BCP-47)"]
["Corsican","co"]
["Croatian","hr"]
["Czech","cs"]
["Danish","da"]
["Dutch","nl"]
["English","en"]
["Esperanto","eo"]
["Estonian","et"]
["Finnish","fi"]
["French","fr"]
["Frisian","fy"]
["Galician","gl"]
["Georgian","ka"]
["German","de"]
["Greek","el"]
["Gujarati","gu"]
["Haitian Creole","ht"]
["Hausa","ha"]
["Hawaiian","haw (ISO-639-2)"]
["Hindi","hi"]
["Hmong","hmn (ISO-639-2)"]
["Hungarian","hu"]
["Icelandic","is"]
["Igbo","ig"]
["Indonesian","id"]
["Irish","ga"]
["Italian","it"]
["Japanese","ja"]
["Javanese","jw"]
["Kannada","kn"]
["Kazakh","kk"]
["Khmer","km"]
["Korean","ko"]
["Kyrgyz","ky"]
["Lao","lo"]
["Latin","la"]
["Latvian","lv"]
["Lithuanian","lt"]
["Luxembourgish","lb"]
["Macedonian","mk"]
["Malagasy","mg"]
["Malay","ms"]
["Malayalam","ml"]
["Maltese","mt"]
["Maori","mi"]
["Marathi","mr"]
["Mongolian","mn"]
["Myanmar (Burmese)","my"]
["Nepali","ne"]
["Norwegian","no"]
["Nyanja (Chichewa)","ny"]
["Polish","pl"]
["Portuguese (Portugal, Brazil)","pt"]
["Punjabi","pa"]
["Romanian","ro"]
["Russian","ru"]
["Samoan","sm"]
["Scots Gaelic","gd"]
["Serbian","sr"]
["Sesotho","st"]
["Shona","sn"]
["Sinhala (Sinhalese)","si"]
["Slovak","sk"]
["Slovenian","sl"]
["Somali","so"]
["Spanish","es"]
["Sundanese","su"]
["Swahili","sw"]
["Swedish","sv"]
["Tagalog (Filipino)","tl"]
["Tajik","tg"]
["Tamil","ta"]
["Telugu","te"]
["Thai","th"]
["Turkish","tr"]
["Ukrainian","uk"]
["Uzbek","uz"]
["Vietnamese","vi"]
["Welsh","cy"]
["Xhosa","xh"]
["Yoruba","yo"]
["Zulu","zu"]